Workbook

Sheet Orçamento
O3: UNIDADE ESCOLAR | V3: CÓDIGO INEP
O4: COLÉGIO ESTADUAL RUY BRASIL CAVALCANTE | V4: 52060993
A6: Nmax | O6: OBRA | S6: DATA | V6: CIDADE
A7: =MAX($C$18:$C$1047) -> 4 | O7: AMPLIAÇÃO E REFORMA | S7: 2020-04-13 | V7: PIRACANJUBA
O9: CRE | R9: ENDEREÇO | V9: REFERÊNCIA AGETOP
O10: PIRACANJUBA | R10: PRACA DIMAS COSTA 413, CENTRO, CEP:75640-000 | V10: DEZ/18 | W10: ONERADA
O12: ÁREA EXISTENTE (M²) | R12: ÁREA A CONSTRUIR (M²) | S12: ÁREA TOTAL CONSTRUÍDA (M²) | V12: REFERÊNCIA SINAPI
O13: 1732.9 | R13: 452.97 | S13: 2185.87 | V13: AGO/19 | W13: ONERADA
L15: FILTRO | O15: PLANILHA ORÇAMENTÁRIA
A16: Nível E | B16: Save Nivel | C16: Nível C | D16: Altura | E16: n1 | F16: n2 | G16: n3 | H16: n4 | I16: n5 | J16: Czero | K16: Cnível | L16: ↓ | M16: Nível | N16: Nível Corrigido | O16: ITEM | P16: TABELA | Q16: CODIGO | R16: DESCRIÇÃO DOS SERVIÇOS | S16: UNID | T16: QUANT | U16: MAT | V16: MO | W16: T.SERVIÇO | X16: OBSERVAÇÕES¹
A17: =CHOOSE(1+LOG(1+2*(ORÇAMENTO.Nivel="Nível 1")+4*(ORÇAMENTO.Nivel="Nível 2")+8*(ORÇAMENTO.Nivel="Nível 3")+16*(ORÇAMENTO.Nivel="Nível 4")+32*(ORÇAMENTO.Nivel="Serviço"),2),0,1,2,3,4,"S") -> S | B17: =IF(OR(C17="s",C17=0),OFFSET(B17,-1,0),C17) -> Save Nivel | C17: =IF(OFFSET(C17,-1,0)="L",1,IF(OFFSET(C17,-1,0)=1,2,IF(OR(A17="s",A17=0),"S",IF(AND(OFFSET(C17,-1,0)=2,A17=4),3,IF(AND(OR(OFFSET(C17,-1,0)="s",OFFSET(C17,-1,0)=0),A17<>"s",A17>OFFSET(B17,-1,0)),OFFSET(B17,-1,0),A17))))) -> S | D17: =IF(OR(C17="S",C17=0),0,IF(ISERROR(K17),J17,SMALL(J17:K17,1))) -> 0 | E17: =IF($C17=1,OFFSET(E17,-1,0)+1,OFFSET(E17,-1,0)) -> n1 | F17: =IF($C17=1,0,IF($C17=2,OFFSET(F17,-1,0)+1,OFFSET(F17,-1,0))) -> n2 | G17: =IF(AND($C17<=2,$C17<>0),0,IF($C17=3,OFFSET(G17,-1,0)+1,OFFSET(G17,-1,0))) -> n3 | H17: =IF(AND($C17<=3,$C17<>0),0,IF($C17=4,OFFSET(H17,-1,0)+1,OFFSET(H17,-1,0))) -> n4 | I17: =IF(AND($C17<=4,$C17<>0),0,IF(AND($C17="S",$W17>0),OFFSET(I17,-1,0)+1,OFFSET(I17,-1,0))) -> n5 | J17: =IF(OR($C17="S",$C17=0),0,MATCH(0,OFFSET($D17,1,$C17,ROW($C$1047)-ROW($C17)),0)) -> 0 | K17: =IF(OR($C17="S",$C17=0),0,MATCH(OFFSET($D17,0,$C17)+1,OFFSET($D17,1,$C17,ROW($C$1047)-ROW($C17)),0)) -> 0 | M17: Serviço | N17: Serviço | O17: - | P17: SINAPI | R17: (sem código) | S17: - | U17: 0 | V17: 0 | W17: 0
A18: 0 | C18: L | D18: =COUNTA(OFFSET(D18,1,0):D$1047) -> 1028 | E18: =LEFT(O19,1)-1 -> 0 | L18: F | M18: LOTE | N18: LOTE | O18: AMPLIAÇÃO E REFORMA - COLÉGIO ESTADUAL RUY BRASIL CAVALCANTE | W18: 0
A19: 1 | B19: =IF(OR(C19="s",C19=0),OFFSET(B19,-1,0),C19) -> 1 | C19: =IF(OFFSET(C19,-1,0)="L",1,IF(OFFSET(C19,-1,0)=1,2,IF(OR(A19="s",A19=0),"S",IF(AND(OFFSET(C19,-1,0)=2,A19=4),3,IF(AND(OR(OFFSET(C19,-1,0)="s",OFFSET(C19,-1,0)=0),A19<>"s",A19>OFFSET(B19,-1,0)),OFFSET(B19,-1,0),A19))))) -> 1 | D19: =IF(OR(C19="S",C19=0),0,IF(ISERROR(K19),J19,SMALL(J19:K19,1))) -> 572 | E19: =IF($C19=1,OFFSET(E19,-1,0)+1,OFFSET(E19,-1,0)) -> 1 | F19: =IF($C19=1,0,IF($C19=2,OFFSET(F19,-1,0)+1,OFFSET(F19,-1,0))) -> 0 | G19: =IF(AND($C19<=2,$C19<>0),0,IF($C19=3,OFFSET(G19,-1,0)+1,OFFSET(G19,-1,0))) -> 0 | H19: =IF(AND($C19<=3,$C19<>0),0,IF($C19=4,OFFSET(H19,-1,0)+1,OFFSET(H19,-1,0))) -> 0 | I19: 0 | J19: =IF(OR($C19="S",$C19=0),0,MATCH(0,OFFSET($D19,1,$C19,ROW($C$1047)-ROW($C19)),0)) -> 1028 | K19: =IF(OR($C19="S",$C19=0),0,MATCH(OFFSET($D19,0,$C19)+1,OFFSET($D19,1,$C19,ROW($C$1047)-ROW($C19)),0)) -> 572 | L19: F | M19: Nível 1 | N19: Nível 1 | O19: 1. | P19: AGETOP | R19: REFORMA | W19: 0
A20: 2 | B20: 2 | C20: =IF(OFFSET(C20,-1,0)="L",1,IF(OFFSET(C20,-1,0)=1,2,IF(OR(A20="s",A20=0),"S",IF(AND(OFFSET(C20,-1,0)=2,A20=4),3,IF(AND(OR(OFFSET(C20,-1,0)="s",OFFSET(C20,-1,0)=0),A20<>"s",A20>OFFSET(B20,-1,0)),OFFSET(B20,-1,0),A20))))) -> 2 | D20: 53 | E20: =IF($C20=1,OFFSET(E20,-1,0)+1,OFFSET(E20,-1,0)) -> 1 | F20: =IF($C20=1,0,IF($C20=2,OFFSET(F20,-1,0)+1,OFFSET(F20,-1,0))) -> 1 | G20: =IF(AND($C20<=2,$C20<>0),0,IF($C20=3,OFFSET(G20,-1,0)+1,OFFSET(G20,-1,0))) -> 0 | H20: =IF(AND($C20<=3,$C20<>0),0,IF($C20=4,OFFSET(H20,-1,0)+1,OFFSET(H20,-1,0))) -> 0 | I20: 0 | J20: 571 | K20: 53 | M20: Nível 2 | N20: Nível 2 | O20: - | P20: SINAPI | R20: SERVIÇOS PRELIMINARES | S20: - | U20: 0 | V20: 0 | W20: 0
A21: 3 | B21: 3 | C21: 3 | D21: 3 | E21: 1 | F21: 1 | G21: 1 | H21: 0 | I21: 0 | J21: 52 | K21: 3 | M21: Nível 3 | N21: Nível 3 | O21: - | P21: SINAPI | R21: SECRETARIA | S21: - | U21: 0 | V21: 0 | W21: 0
A22: S | B22: 3 | C22: S | D22: 0 | E22: 1 | F22: 1 | G22: 1 | H22: 0 | I22: 0 | J22: 0 | K22: 0 | M22: Serviço | N22: Serviço | O22: - | P22: SINAPI | Q22: 97622 | R22: DEMOLIÇÃO DE ALVENARIA DE BLOCO FURADO, DE FORMA MANUAL, SEM REAPROVEITAMENTO. AF_12/2017 | S22: M3 | T22: 0.9 | W22: 0 | X22: Referência: AGETOP - 20118
A23: S | B23: 3 | C23: S | D23: 0 | E23: 1 | F23: 1 | G23: 1 | H23: 0 | I23: 0 | J23: 0 | K23: 0 | M23: Serviço | N23: Serviço | O23: - | P23: SINAPI | Q23: 97644 | R23: REMOÇÃO DE PORTAS, DE FORMA MANUAL, SEM REAPROVEITAMENTO. AF_12/2017 | S23: M2 | T23: 1.68 | W23: 0 | X23: Referência: AGETOP - 20106
A24: 3 | B24: 3 | C24: 3 | D24: 2 | E24: 1 | F24: 1 | G24: 2 | H24: 0 | I24: 0 | J24: 49 | K24: 2 | M24: Nível 3 | N24: Nível 3 | O24: - | P24: SINAPI | R24: ÁREA DE SERVIÇO | S24: - | W24: 0
A25: S | B25: 3 | C25: S | D25: 0 | E25: 1 | F25: 1 | G25: 2 | H25: 0 | I25: 0 | J25: 0 | K25: 0 | M25: Serviço | N25: Serviço | O25: - | P25: SINAPI | Q25: 97622 | R25: DEMOLIÇÃO DE ALVENARIA DE BLOCO FURADO, DE FORMA MANUAL, SEM REAPROVEITAMENTO. AF_12/2017 | S25: M3 | T25: 1.7 | W25: 0 | X25: Referência: AGETOP - 20118
A26: 3 | B26: 3 | C26: 3 | D26: 4 | E26: 1 | F26: 1 | G26: 3 | H26: 0 | I26: 0 | J26: 47 | K26: 4 | M26: Nível 3 | N26: Nível 3 | O26: - | P26: SINAPI | R26: SALA DO PROFESSOR | S26: - | W26: 0
A27: S | B27: =IF(OR(C27="s",C27=0),OFFSET(B27,-1,0),C27) -> 3 | C27: S | D27: =IF(OR(C27="S",C27=0),0,IF(ISERROR(K27),J27,SMALL(J27:K27,1))) -> 0 | E27: 1 | F27: 1 | G27: 3 | H27: 0 | I27: 0 | J27: 0 | K27: 0 | M27: Serviço | N27: Serviço | O27: - | P27: SINAPI | Q27: 97644 | R27: REMOÇÃO DE PORTAS, DE FORMA MANUAL, SEM REAPROVEITAMENTO. AF_12/2017 | S27: M2 | T27: 1.68 | W27: 0 | X27: Referência: AGETOP - 20106
A28: S | B28: 3 | C28: =IF(OFFSET(C28,-1,0)="L",1,IF(OFFSET(C28,-1,0)=1,2,IF(OR(A28="s",A28=0),"S",IF(AND(OFFSET(C28,-1,0)=2,A28=4),3,IF(AND(OR(OFFSET(C28,-1,0)="s",OFFSET(C28,-1,0)=0),A28<>"s",A28>OFFSET(B28,-1,0)),OFFSET(B28,-1,0),A28))))) -> S | D28: 0 | E28: =IF($C28=1,OFFSET(E28,-1,0)+1,OFFSET(E28,-1,0)) -> 1 | F28: =IF($C28=1,0,IF($C28=2,OFFSET(F28,-1,0)+1,OFFSET(F28,-1,0))) -> 1 | G28: =IF(AND($C28<=2,$C28<>0),0,IF($C28=3,OFFSET(G28,-1,0)+1,OFFSET(G28,-1,0))) -> 3 | H28: =IF(AND($C28<=3,$C28<>0),0,IF($C28=4,OFFSET(H28,-1,0)+1,OFFSET(H28,-1,0))) -> 0 | I28: 0 | J28: 0 | K28: 0 | M28: Serviço | N28: Serviço | O28: - | P28: SINAPI | Q28: 97622 | R28: DEMOLIÇÃO DE ALVENARIA DE BLOCO FURADO, DE FORMA MANUAL, SEM REAPROVEITAMENTO. AF_12/2017 | S28: M3 | T28: 3.5 | W28: 0 | X28: Referência: AGETOP - 20118
A29: S | B29: 3 | C29: S | D29: 0 | E29: 1 | F29: 1 | G29: 3 | H29: 0 | I29: 0 | J29: 0 | K29: 0 | M29: Serviço | N29: Serviço | O29: - | P29: AGETOP | Q29: 20163 | R29: DEMOLIÇÃO DAS INSTALAÇÕES HIDROSANITÁRIAS E AFINS C/ TRANSP. ATÉ CB. E CARGA | S29: H | T29: 2 | W29: 0
A30: 3 | B30: 3 | C30: 3 | D30: 3 | E30: 1 | F30: 1 | G30: 4 | H30: 0 | I30: 0 | J30: 43 | K30: 3 | M30: Nível 3 | N30: Nível 3 | O30: - | P30: SINAPI | R30: COORDENAÇÃO | S30: - | W30: 0
A31: S | B31: 3 | C31: S | D31: 0 | E31: 1 | F31: 1 | G31: 4 | H31: 0 | I31: 0 | J31: 0 | K31: 0 | M31: Serviço | N31: Serviço | O31: - | P31: SINAPI | Q31: 97644 | R31: REMOÇÃO DE PORTAS, DE FORMA MANUAL, SEM REAPROVEITAMENTO. AF_12/2017 | S31: M2 | T31: 1.68 | W31: 0 | X31: Referência: AGETOP - 20106
A32: S | B32: 3 | C32: S | D32: 0 | E32: 1 | F32: 1 | G32: 4 | H32: 0 | I32: 0 | J32: 0 | K32: 0 | M32: Serviço | N32: Serviço | O32: - | P32: SINAPI | Q32: 97622 | R32: DEMOLIÇÃO DE ALVENARIA DE BLOCO FURADO, DE FORMA MANUAL, SEM REAPROVEITAMENTO. AF_12/2017 | S32: M3 | T32: 1.05 | W32: 0 | X32: Referência: AGETOP - 20118
A33: 3 | B33: 3 | C33: 3 | D33: 2 | E33: 1 | F33: 1 | G33: 5 | H33: 0 | I33: 0 | J33: 40 | K33: 2 | M33: Nível 3 | N33: Nível 3 | O33: - | P33: SINAPI | R33: BIBLIOTECA | S33: - | W33: 0
A34: S | B34: 3 | C34: S | D34: 0 | E34: 1 | F34: 1 | G34: 5 | H34: 0 | I34: 0 | J34: 0 | K34: 0 | M34: Serviço | N34: Serviço | O34: - | P34: SINAPI | Q34: 97622 | R34: DEMOLIÇÃO DE ALVENARIA DE BLOCO FURADO, DE FORMA MANUAL, SEM REAPROVEITAMENTO. AF_12/2017 | S34: M3 | T34: 1 | W34: 0 | X34: Referência: AGETOP - 20118
A35: 3 | B35: 3 | C35: 3 | D35: 11 | E35: 1 | F35: 1 | G35: 6 | H35: 0 | I35: 0 | J35: 38 | K35: 11 | M35: Nível 3 | N35: Nível 3 | O35: - | P35: SINAPI | R35: S. LEITURA | S35: - | W35: 0
A36: S | B36: 3 | C36: S | D36: 0 | E36: 1 | F36: 1 | G36: 6 | H36: 0 | I36: 0 | J36: 0 | K36: 0 | M36: Serviço | N36: Serviço | O36: - | P36: SINAPI | Q36: 97622 | R36: DEMOLIÇÃO DE ALVENARIA DE BLOCO FURADO, DE FORMA MANUAL, SEM REAPROVEITAMENTO. AF_12/2017 | S36: M3 | T36: 14.68 | W36: 0 | X36: Referência: AGETOP - 20118
A37: S | B37: 3 | C37: S | D37: 0 | E37: 1 | F37: 1 | G37: 6 | H37: 0 | I37: 0 | J37: 0 | K37: 0 | M37: Serviço | N37: Serviço | O37: - | P37: SINAPI | Q37: 97644 | R37: REMOÇÃO DE PORTAS, DE FORMA MANUAL, SEM REAPROVEITAMENTO. AF_12/2017 | S37: M2 | T37: 12.44 | W37: 0 | X37: Referência: AGETOP - 20106
A38: S | B38: 3 | C38: S | D38: 0 | E38: 1 | F38: 1 | G38: 6 | H38: 0 | I38: 0 | J38: 0 | K38: 0 | M38: Serviço | N38: Serviço | O38: - | P38: AGETOP | Q38: 20139 | R38: DEMOLIÇAO DE BANCADAS C/ TRANSP. ATÉ CB. E CARGA | S38: m2 | T38: 4.53 | W38: 0
A39: S | B39: 3 | C39: S | D39: 0 | E39: 1 | F39: 1 | G39: 6 | H39: 0 | I39: 0 | J39: 0 | K39: 0 | M39: Serviço | N39: Serviço | O39: - | P39: AGETOP | Q39: 20163 | R39: DEMOLIÇÃO DAS INSTALAÇÕES HIDROSANITÁRIAS E AFINS C/ TRANSP. ATÉ CB. E CARGA | S39: H | T39: 4 | W39: 0
A40: S | B40: 3 | C40: S | D40: 0 | E40: 1 | F40: 1 | G40: 6 | H40: 0 | I40: 0 | J40: 0 | K40: 0 | M40: Serviço | N40: Serviço | O40: - | P40: AGETOP | Q40: 20138 | R40: DEMOLIÇAO DE LAVATÓRIO C/ TRANSP. ATÉ CB. E CARGA | S40: Un | T40: 2 | W40: 0
A41: S | B41: 3 | C41: S | D41: 0 | E41: 1 | F41: 1 | G41: 6 | H41: 0 | I41: 0 | J41: 0 | K41: 0 | M41: Serviço | N41: Serviço | O41: - | P41: AGETOP | Q41: 20137 | R41: DEMOLIÇAO BACIA SANITARIA C/ TRANSP. ATÉ CB. E CARGA | S41: Un | T41: 4 | W41: 0
A42: S | B42: 3 | C42: S | D42: 0 | E42: 1 | F42: 1 | G42: 6 | H42: 0 | I42: 0 | J42: 0 | K42: 0 | M42: Serviço | N42: Serviço | O42: - | P42: AGETOP | Q42: 20141 | R42: DEMOLIÇAO DE CAIXA DESCARGA EXTERNA C/ TRANSP. ATÉ CB. E CARGA | S42: Un | T42: 4 | W42: 0
A43: S | B43: 3 | C43: S | D43: 0 | E43: 1 | F43: 1 | G43: 6 | H43: 0 | I43: 0 | J43: 0 | K43: 0 | M43: Serviço | N43: Serviço | O43: - | P43: SINAPI | Q43: 97633 | R43: DEMOLIÇÃO DE REVESTIMENTO CERÂMICO, DE FORMA MANUAL, SEM REAPROVEITAMENTO. AF_12/2017 | S43: M2 | T43: 91.6 | W43: 0 | X43: Referência: AGETOP - 20115
A44: S | B44: 3 | C44: S | D44: 0 | E44: 1 | F44: 1 | G44: 6 | H44: 0 | I44: 0 | J44: 0 | K44: 0 | M44: Serviço | N44: Serviço | O44: - | P44: AGETOP | Q44: 20112 | R44: DEM.PISO CERAM. INCLUS. RETIRADA DE CONTRAPISO SOBRE LASTRO CONC.C/TR.CB.E CARGA | S44: m2 | T44: 65.36 | W44: 0
A45: S | B45: 3 | C45: S | D45: 0 | E45: 1 | F45: 1 | G45: 6 | H45: 0 | I45: 0 | J45: 0 | K45: 0 | M45: Serviço | N45: Serviço | O45: - | P45: AGETOP | Q45: 20121 | R45: DEM. MANUAL EM CONCR.SIMPLES C/TR.ATE CB.E CARGA (O.C.) | S45: m3 | T45: 2.16 | W45: 0
A46: 3 | B46: 3 | C46: 3 | D46: 7 | E46: 1 | F46: 1 | G46: 7 | H46: 0 | I46: 0 | J46: 27 | K46: 7 | M46: Nível 3 | N46: Nível 3 | O46: - | P46: SINAPI | R46: SANIT. FEMININO | S46: - | W46: 0
A47: S | B47: 3 | C47: S | D47: 0 | E47: 1 | F47: 1 | G47: 7 | H47: 0 | I47: 0 | J47: 0 | K47: 0 | M47: Serviço | N47: Serviço | O47: - | P47: AGETOP | Q47: 20137 | R47: DEMOLIÇAO BACIA SANITARIA C/ TRANSP. ATÉ CB. E CARGA | S47: Un | T47: 5 | W47: 0
A48: S | B48: 3 | C48: S | D48: 0 | E48: 1 | F48: 1 | G48: 7 | H48: 0 | I48: 0 | J48: 0 | K48: 0 | M48: Serviço | N48: Serviço | O48: - | P48: AGETOP | Q48: 20141 | R48: DEMOLIÇAO DE CAIXA DESCARGA EXTERNA C/ TRANSP. ATÉ CB. E CARGA | S48: Un | T48: 5 | W48: 0
A49: S | B49: 3 | C49: S | D49: 0 | E49: 1 | F49: 1 | G49: 7 | H49: 0 | I49: 0 | J49: 0 | K49: 0 | M49: Serviço | N49: Serviço | O49: - | P49: AGETOP | Q49: 20163 | R49: DEMOLIÇÃO DAS INSTALAÇÕES HIDROSANITÁRIAS E AFINS C/ TRANSP. ATÉ CB. E CARGA | S49: H | T49: 2 | W49: 0
A50: S | B50: 3 | C50: S | D50: 0 | E50: 1 | F50: 1 | G50: 7 | H50: 0 | I50: 0 | J50: 0 | K50: 0 | M50: Serviço | N50: Serviço | O50: - | P50: SINAPI | Q50: 97644 | R50: REMOÇÃO DE PORTAS, DE FORMA MANUAL, SEM REAPROVEITAMENTO. AF_12/2017 | S50: M2 | T50: 1.44 | W50: 0 | X50: Referência: AGETOP - 20106
A51: S | B51: 3 | C51: S | D51: 0 | E51: 1 | F51: 1 | G51: 7 | H51: 0 | I51: 0 | J51: =IF(OR($C51="S",$C51=0),0,MATCH(0,OFFSET($D51,1,$C51,ROW($C$1047)-ROW($C51)),0)) -> 0 | K51: =IF(OR($C51="S",$C51=0),0,MATCH(OFFSET($D51,0,$C51)+1,OFFSET($D51,1,$C51,ROW($C$1047)-ROW($C51)),0)) -> 0 | M51: Serviço | N51: Serviço | O51: - | P51: SINAPI | Q51: 97622 | R51: DEMOLIÇÃO DE ALVENARIA DE BLOCO FURADO, DE FORMA MANUAL, SEM REAPROVEITAMENTO. AF_12/2017 | S51: M3 | T51: 0.24 | W51: 0 | X51: Referência: AGETOP - 20118
A52: S | B52: 3 | C52: S | D52: 0 | E52: 1 | F52: 1 | G52: 7 | H52: 0 | I52: 0 | J52: 0 | K52: 0 | M52: Serviço | N52: Serviço | O52: - | P52: SINAPI | Q52: 97633 | R52: DEMOLIÇÃO DE REVESTIMENTO CERÂMICO, DE FORMA MANUAL, SEM REAPROVEITAMENTO. AF_12/2017 | S52: M2 | T52: 84.7 | W52: 0 | X52: Referência: AGETOP - 20115
A53: 3 | B53: 3 | C53: 3 | D53: 8 | E53: 1 | F53: 1 | G53: 8 | H53: 0 | I53: 0 | J53: 20 | K53: 8 | M53: Nível 3 | N53: Nível 3 | O53: - | P53: SINAPI | R53: SANIT. MASCULINO | S53: - | W53: 0
A54: S | B54: 3 | C54: S | D54: 0 | E54: 1 | F54: 1 | G54: 8 | H54: 0 | I54: 0 | J54: 0 | K54: 0 | M54: Serviço | N54: Serviço | O54: - | P54: AGETOP | Q54: 20137 | R54: DEMOLIÇAO BACIA SANITARIA C/ TRANSP. ATÉ CB. E CARGA | S54: Un | T54: 4 | W54: 0
A55: S | B55: 3 | C55: S | D55: 0 | E55: 1 | F55: 1 | G55: 8 | H55: 0 | I55: 0 | J55: 0 | K55: 0 | M55: Serviço | N55: Serviço | O55: - | P55: AGETOP | Q55: 20141 | R55: DEMOLIÇAO DE CAIXA DESCARGA EXTERNA C/ TRANSP. ATÉ CB. E CARGA | S55: Un | T55: 4 | W55: 0
A56: S | B56: 3 | C56: S | D56: 0 | E56: 1 | F56: 1 | G56: 8 | H56: 0 | I56: 0 | J56: 0 | K56: 0 | M56: Serviço | N56: Serviço | O56: - | P56: AGETOP | Q56: 20163 | R56: DEMOLIÇÃO DAS INSTALAÇÕES HIDROSANITÁRIAS E AFINS C/ TRANSP. ATÉ CB. E CARGA | S56: H | T56: 2 | W56: 0
A57: S | B57: 3 | C57: S | D57: 0 | E57: 1 | F57: 1 | G57: 8 | H57: 0 | I57: 0 | J57: 0 | K57: 0 | M57: Serviço | N57: Serviço | O57: - | P57: AGETOP | Q57: 20146 | R57: DEMOLIÇÃO DE MICTÓRIO C/ TRANSP. ATÉ CB. E CARGA | S57: Un | T57: 2 | W57: 0
A58: S | B58: 3 | C58: S | D58: 0 | E58: 1 | F58: 1 | G58: 8 | H58: 0 | I58: 0 | J58: 0 | K58: 0 | M58: Serviço | N58: Serviço | O58: - | P58: SINAPI | Q58: 97633 | R58: DEMOLIÇÃO DE REVESTIMENTO CERÂMICO, DE FORMA MANUAL, SEM REAPROVEITAMENTO. AF_12/2017 | S58: M2 | T58: 94.71 | W58: 0 | X58: Referência: AGETOP - 20115
A59: S | B59: 3 | C59: S | D59: 0 | E59: 1 | F59: 1 | G59: 8 | H59: 0 | I59: 0 | J59: 0 | K59: 0 | M59: Serviço | N59: Serviço | O59: - | P59: SINAPI | Q59: 97622 | R59: DEMOLIÇÃO DE ALVENARIA DE BLOCO FURADO, DE FORMA MANUAL, SEM REAPROVEITAMENTO. AF_12/2017 | S59: M3 | T59: 0.56 | W59: 0 | X59: Referência: AGETOP - 20118
A60: S | B60: 3 | C60: S | D60: 0 | E60: 1 | F60: 1 | G60: 8 | H60: 0 | I60: 0 | J60: 0 | K60: 0 | M60: Serviço | N60: Serviço | O60: - | P60: SINAPI | Q60: 97644 | R60: REMOÇÃO DE PORTAS, DE FORMA MANUAL, SEM REAPROVEITAMENTO. AF_12/2017 | S60: M2 | T60: 1.44 | W60: 0 | X60: Referência: AGETOP - 20106
A61: 3 | B61: 3 | C61: 3 | D61: 4 | E61: 1 | F61: 1 | G61: 9 | H61: 0 | I61: 0 | J61: 12 | K61: 4 | M61: Nível 3 | N61: Nível 3 | O61: - | P61: SINAPI | R61: ACESSIBILIDADE | S61: - | W61: 0
A62: S | B62: 3 | C62: S | D62: 0 | E62: 1 | F62: 1 | G62: 9 | H62: 0 | I62: 0 | J62: 0 | K62: 0 | M62: Serviço | N62: Serviço | O62: - | P62: AGETOP | Q62: 20121 | R62: DEM. MANUAL EM CONCR.SIMPLES C/TR.ATE CB.E CARGA (O.C.) | S62: m3 | T62: 16.78 | W62: 0
A63: S | B63: 3 | C63: S | D63: 0 | E63: 1 | F63: 1 | G63: 9 | H63: 0 | I63: 0 | J63: 0 | K63: 0 | M63: Serviço | N63: Serviço | O63: - | P63: SINAPI | Q63: 97645 | R63: REMOÇÃO DE JANELAS, DE FORMA MANUAL, SEM REAPROVEITAMENTO. AF_12/2017 | S63: M2 | T63: 61.85 | W63: 0 | X63: Referência: AGETOP - 20106
A64: S | B64: 3 | C64: S | D64: 0 | E64: 1 | F64: 1 | G64: 9 | H64: 0 | I64: 0 | J64: 0 | K64: 0 | M64: Serviço | N64: Serviço | O64: - | P64: AGETOP | Q64: 20107 | R64: CORTE/DESTOC./RETIRADA/REATERRO (MANUAIS) DE ÁRVORE GRANDE PORTE ( H = 8 A 10 M / DIÂMETRO TRONCO 60 A 70CM E COPA DE 10 A 13M ) C/TRANSP.ATE C.B.E CARGA | S64: Un | T64: 2 | W64: 0
A65: 3 | B65: 3 | C65: 3 | D65: 8 | E65: 1 | F65: 1 | G65: 10 | H65: 0 | I65: 0 | J65: 8 | K65: 462 | M65: Nível 3 | N65: Nível 3 | O65: - | P65: SINAPI | R65: OUTROS | S65: - | W65: 0
A66: S | B66: 3 | C66: S | D66: 0 | E66: 1 | F66: 1 | G66: 10 | H66: 0 | I66: 0 | J66: 0 | K66: 0 | M66: Serviço | N66: Serviço | O66: - | P66: AGETOP | Q66: 20162 | R66: DEMOLIÇÃO DAS INSTALAÇÕES ELÉTRICAS E AFINS C/ TRANSP. ATÉ CB. E CARGA | S66: H | T66: 40 | W66: 0
A67: =CHOOSE(1+LOG(1+2*(ORÇAMENTO.Nivel="Nível 1")+4*(ORÇAMENTO.Nivel="Nível 2")+8*(ORÇAMENTO.Nivel="Nível 3")+16*(ORÇAMENTO.Nivel="Nível 4")+32*(ORÇAMENTO.Nivel="Serviço"),2),0,1,2,3,4,"S") -> S | B67: =IF(OR(C67="s",C67=0),OFFSET(B67,-1,0),C67) -> 3 | C67: =IF(OFFSET(C67,-1,0)="L",1,IF(OFFSET(C67,-1,0)=1,2,IF(OR(A67="s",A67=0),"S",IF(AND(OFFSET(C67,-1,0)=2,A67=4),3,IF(AND(OR(OFFSET(C67,-1,0)="s",OFFSET(C67,-1,0)=0),A67<>"s",A67>OFFSET(B67,-1,0)),OFFSET(B67,-1,0),A67))))) -> S | D67: =IF(OR(C67="S",C67=0),0,IF(ISERROR(K67),J67,SMALL(J67:K67,1))) -> 0 | E67: =IF($C67=1,OFFSET(E67,-1,0)+1,OFFSET(E67,-1,0)) -> 1 | F67: =IF($C67=1,0,IF($C67=2,OFFSET(F67,-1,0)+1,OFFSET(F67,-1,0))) -> 1 | G67: =IF(AND($C67<=2,$C67<>0),0,IF($C67=3,OFFSET(G67,-1,0)+1,OFFSET(G67,-1,0))) -> 10 | H67: =IF(AND($C67<=3,$C67<>0),0,IF($C67=4,OFFSET(H67,-1,0)+1,OFFSET(H67,-1,0))) -> 0 | I67: =IF(AND($C67<=4,$C67<>0),0,IF(AND($C67="S",$W67>0),OFFSET(I67,-1,0)+1,OFFSET(I67,-1,0))) -> 0 | J67: 0 | K67: 0 | M67: Serviço | N67: Serviço | O67: - | P67: AGETOP | Q67: 20101 | R67: DEMOLICAO COBERTURA TELHA CERAMICA C/ TRANSP. ATÉ CB. E CARGA | S67: m2 | T67: 546.67 | W67: 0
A68: S | B68: 3 | C68: S | D68: 0 | E68: 1 | F68: 1 | G68: 10 | H68: 0 | I68: 0 | J68: 0 | K68: 0 | M68: Serviço | N68: Serviço | O68: - | P68: AGETOP | Q68: 20103 | R68: DEMOLIÇÃO ESTRUTURA EM MADEIRA TELHADO C/ TRANSP. ATÉ CB. E CARGA | S68: m2 | T68: 897.35 | W68: 0
A69: S | B69: 3 | C69: S | D69: 0 | E69: 1 | F69: 1 | G69: 10 | H69: 0 | I69: 0 | J69: 0 | K69: 0 | M69: Serviço | N69: Serviço | O69: - | P69: COMPOSIÇÃO | Q69: COMP 430_SEE | R69: DEMOLIÇÃO DE ESTRUTURA METÁLICA | S69: M2 | T69: 98.5 | W69: 0
A70: S | B70: 3 | C70: S | D70: 0 | E70: 1 | F70: 1 | G70: 10 | H70: 0 | I70: 0 | J70: 0 | K70: 0 | M70: Serviço | N70: Serviço | O70: - | P70: AGETOP | Q70: 20107 | R70: CORTE/DESTOC./RETIRADA/REATERRO (MANUAIS) DE ÁRVORE GRANDE PORTE ( H = 8 A 10 M / DIÂMETRO TRONCO 60 A 70CM E COPA DE 10 A 13M ) C/TRANSP.ATE C.B.E CARGA | S70: Un | T70: 2 | W70: 0
A71: S | B71: 3 | C71: S | D71: 0 | E71: 1 | F71: 1 | G71: 10 | H71: 0 | I71: 0 | J71: 0 | K71: 0 | M71: Serviço | N71: Serviço | O71: - | P71: SINAPI | Q71: 97622 | R71: DEMOLIÇÃO DE ALVENARIA DE BLOCO FURADO, DE FORMA MANUAL, SEM REAPROVEITAMENTO. AF_12/2017 | S71: M3 | T71: 1.49 | W71: 0 | X71: Referência: AGETOP - 20118
A72: =CHOOSE(1+LOG(1+2*(ORÇAMENTO.Nivel="Nível 1")+4*(ORÇAMENTO.Nivel="Nível 2")+8*(ORÇAMENTO.Nivel="Nível 3")+16*(ORÇAMENTO.Nivel="Nível 4")+32*(ORÇAMENTO.Nivel="Serviço"),2),0,1,2,3,4,"S") -> S | B72: =IF(OR(C72="s",C72=0),OFFSET(B72,-1,0),C72) -> 3 | C72: =IF(OFFSET(C72,-1,0)="L",1,IF(OFFSET(C72,-1,0)=1,2,IF(OR(A72="s",A72=0),"S",IF(AND(OFFSET(C72,-1,0)=2,A72=4),3,IF(AND(OR(OFFSET(C72,-1,0)="s",OFFSET(C72,-1,0)=0),A72<>"s",A72>OFFSET(B72,-1,0)),OFFSET(B72,-1,0),A72))))) -> S | D72: =IF(OR(C72="S",C72=0),0,IF(ISERROR(K72),J72,SMALL(J72:K72,1))) -> 0 | E72: =IF($C72=1,OFFSET(E72,-1,0)+1,OFFSET(E72,-1,0)) -> 1 | F72: =IF($C72=1,0,IF($C72=2,OFFSET(F72,-1,0)+1,OFFSET(F72,-1,0))) -> 1 | G72: =IF(AND($C72<=2,$C72<>0),0,IF($C72=3,OFFSET(G72,-1,0)+1,OFFSET(G72,-1,0))) -> 10 | H72: =IF(AND($C72<=3,$C72<>0),0,IF($C72=4,OFFSET(H72,-1,0)+1,OFFSET(H72,-1,0))) -> 0 | I72: =IF(AND($C72<=4,$C72<>0),0,IF(AND($C72="S",$W72>0),OFFSET(I72,-1,0)+1,OFFSET(I72,-1,0))) -> 0 | J72: 0 | K72: 0 | M72: Serviço | N72: Serviço | O72: - | P72: SINAPI | Q72: 74209/1 | R72: PLACA DE OBRA EM CHAPA DE ACO GALVANIZADO | S72: M2 | T72: 7.5 | W72: 0 | X72: Referência: AGETOP - 21301
A73: 2 | B73: 2 | C73: 2 | D73: 3 | E73: 1 | F73: 2 | G73: 0 | H73: 0 | I73: 0 | J73: 518 | K73: 3 | M73: Nível 2 | N73: Nível 2 | O73: - | P73: AGETOP | R73: TRANSPORTES | S73: - | W73: 0
A74: S | B74: 2 | C74: S | D74: 0 | E74: 1 | F74: 2 | G74: 0 | H74: 0 | I74: 0 | J74: 0 | K74: 0 | M74: Serviço | N74: Serviço | O74: - | P74: SINAPI | Q74: 72900 | R74: TRANSPORTE DE ENTULHO COM CAMINHAO BASCULANTE 6 M3, RODOVIA PAVIMENTADA, DMT 0,5 A 1,0 KM | S74: M3 | T74: 137.8 | W74: 0
A75: S | B75: 2 | C75: S | D75: 0 | E75: 1 | F75: 2 | G75: 0 | H75: 0 | I75: 0 | J75: 0 | K75: 0 | M75: Serviço | N75: Serviço | O75: - | P75: SINAPI | Q75: 72897 | R75: CARGA MANUAL DE ENTULHO EM CAMINHAO BASCULANTE 6 M3 | S75: M3 | T75: 137.8 | W75: 0
A76: =CHOOSE(1+LOG(1+2*(ORÇAMENTO.Nivel="Nível 1")+4*(ORÇAMENTO.Nivel="Nível 2")+8*(ORÇAMENTO.Nivel="Nível 3")+16*(ORÇAMENTO.Nivel="Nível 4")+32*(ORÇAMENTO.Nivel="Serviço"),2),0,1,2,3,4,"S") -> 2 | B76: =IF(OR(C76="s",C76=0),OFFSET(B76,-1,0),C76) -> 2 | C76: =IF(OFFSET(C76,-1,0)="L",1,IF(OFFSET(C76,-1,0)=1,2,IF(OR(A76="s",A76=0),"S",IF(AND(OFFSET(C76,-1,0)=2,A76=4),3,IF(AND(OR(OFFSET(C76,-1,0)="s",OFFSET(C76,-1,0)=0),A76<>"s",A76>OFFSET(B76,-1,0)),OFFSET(B76,-1,0),A76))))) -> 2 | D76: =IF(OR(C76="S",C76=0),0,IF(ISERROR(K76),J76,SMALL(J76:K76,1))) -> 11 | E76: =IF($C76=1,OFFSET(E76,-1,0)+1,OFFSET(E76,-1,0)) -> 1 | F76: =IF($C76=1,0,IF($C76=2,OFFSET(F76,-1,0)+1,OFFSET(F76,-1,0))) -> 3 | G76: =IF(AND($C76<=2,$C76<>0),0,IF($C76=3,OFFSET(G76,-1,0)+1,OFFSET(G76,-1,0))) -> 0 | H76: =IF(AND($C76<=3,$C76<>0),0,IF($C76=4,OFFSET(H76,-1,0)+1,OFFSET(H76,-1,0))) -> 0 | I76: =IF(AND($C76<=4,$C76<>0),0,IF(AND($C76="S",$W76>0),OFFSET(I76,-1,0)+1,OFFSET(I76,-1,0))) -> 0 | J76: 515 | K76: 11 | M76: Nível 2 | N76: Nível 2 | O76: - | P76: SINAPI | R76: SERVIÇO EM TERRA | S76: - | W76: 0
A77: 3 | B77: 3 | C77: 3 | D77: 7 | E77: 1 | F77: 3 | G77: 1 | H77: 0 | I77: 0 | J77: 10 | K77: 7 | M77: Nível 3 | N77: Nível 3 | O77: - | P77: SINAPI | R77: ACESSIBILIDADE | S77: - | W77: 0
A78: S | B78: 3 | C78: S | D78: 0 | E78: 1 | F78: 3 | G78: 1 | H78: 0 | I78: 0 | J78: 0 | K78: 0 | M78: Serviço | N78: Serviço | O78: - | P78: SINAPI | Q78: 79480 | R78: ESCAVACAO MECANICA CAMPO ABERTO EM SOLO EXCETO ROCHA ATE 2,00M PROFUNDIDADE | S78: M3 | T78: 58.21 | W78: 0 | X78: Referência: AGETOP - 41004
A79: S | B79: 3 | C79: S | D79: 0 | E79: 1 | F79: 3 | G79: 1 | H79: 0 | I79: 0 | J79: 0 | K79: 0 | M79: Serviço | N79: Serviço | O79: - | P79: SINAPI | Q79: 72898 | R79: CARGA E DESCARGA MECANIZADAS DE ENTULHO EM CAMINHAO BASCULANTE 6 M3 | S79: M3 | T79: 33.47 | W79: 0 | X79: Referência: AGETOP - 41005
A80: S | B80: 3 | C80: S | D80: 0 | E80: 1 | F80: 3 | G80: 1 | H80: 0 | I80: 0 | J80: 0 | K80: 0 | M80: Serviço | N80: Serviço | O80: - | P80: AGETOP | Q80: 41012 | R80: INDENIZAÇÃO DE JAZIDA | S80: m3 | T80: 33.47 | W80: 0
A81: S | B81: 3 | C81: S | D81: 0 | E81: 1 | F81: 3 | G81: 1 | H81: 0 | I81: 0 | J81: 0 | K81: 0 | M81: Serviço | N81: Serviço | O81: - | P81: AGETOP | Q81: 41006 | R81: TRANSPORTE DE MATERIAL ESCAVADO M3.KM | S81: m3km | T81: 334.7 | W81: 0
A82: S | B82: 3 | C82: S | D82: 0 | E82: 1 | F82: 3 | G82: 1 | H82: 0 | I82: 0 | J82: 0 | K82: 0 | M82: Serviço | N82: Serviço | O82: - | P82: AGETOP | Q82: 41010 | R82: TRANSPORTE COM LÂMINA ATE 100 M - (OBRAS CIVIS) | S82: m3 | T82: 24.74 | W82: 0
A83: S | B83: 3 | C83: S | D83: 0 | E83: 1 | F83: 3 | G83: 1 | H83: 0 | I83: 0 | J83: =IF(OR($C83="S",$C83=0),0,MATCH(0,OFFSET($D83,1,$C83,ROW($C$1047)-ROW($C83)),0)) -> 0 | K83: =IF(OR($C83="S",$C83=0),0,MATCH(OFFSET($D83,0,$C83)+1,OFFSET($D83,1,$C83,ROW($C$1047)-ROW($C83)),0)) -> 0 | M83: Serviço | N83: Serviço | O83: - | P83: SINAPI | Q83: 74005/2 | R83: COMPACTACAO MECANICA C/ CONTROLE DO GC>=95% DO PN (AREAS) (C/MONIVELADORA 140 HP E ROLO COMPRESSOR VIBRATORIO 80 HP) | S83: M3 | T83: 46.57 | W83: 0 | X83: Referência: AGETOP - 41008
A84: 3 | B84: 3 | C84: 3 | D84: 3 | E84: 1 | F84: 3 | G84: 2 | H84: 0 | I84: 0 | J84: 3 | K84: 77 | M84: Nível 3 | N84: Nível 3 | O84: - | P84: SINAPI | R84: OUTROS | S84: - | W84: 0
A85: S | B85: 3 | C85: S | D85: 0 | E85: 1 | F85: 3 | G85: 2 | H85: 0 | I85: 0 | J85: 0 | K85: 0 | M85: Serviço | N85: Serviço | O85: - | P85: AGETOP | Q85: 41140 | R85: REGULARIZAÇÃO DO TERRENO SEM APILOAMENTO COM TRANSPORTE MANUAL DA TERRA ESCAVADA | S85: m2 | T85: 452.97 | W85: 0
A86: S | B86: 3 | C86: S | D86: 0 | E86: 1 | F86: 3 | G86: 2 | H86: 0 | I86: 0 | J86: 0 | K86: 0 | M86: Serviço | N86: Serviço | O86: - | P86: AGETOP | Q86: 41002 | R86: APILOAMENTO | S86: m2 | T86: 452.97 | W86: 0
A87: 2 | B87: 2 | C87: 2 | D87: 113 | E87: 1 | F87: 4 | G87: 0 | H87: 0 | I87: 0 | J87: 504 | K87: 113 | M87: Nível 2 | N87: Nível 2 | O87: - | P87: SINAPI | R87: INSTALAÇÕES ELÉTRICAS | S87: - | W87: 0
A88: =CHOOSE(1+LOG(1+2*(ORÇAMENTO.Nivel="Nível 1")+4*(ORÇAMENTO.Nivel="Nível 2")+8*(ORÇAMENTO.Nivel="Nível 3")+16*(ORÇAMENTO.Nivel="Nível 4")+32*(ORÇAMENTO.Nivel="Serviço"),2),0,1,2,3,4,"S") -> 3 | B88: =IF(OR(C88="s",C88=0),OFFSET(B88,-1,0),C88) -> 3 | C88: =IF(OFFSET(C88,-1,0)="L",1,IF(OFFSET(C88,-1,0)=1,2,IF(OR(A88="s",A88=0),"S",IF(AND(OFFSET(C88,-1,0)=2,A88=4),3,IF(AND(OR(OFFSET(C88,-1,0)="s",OFFSET(C88,-1,0)=0),A88<>"s",A88>OFFSET(B88,-1,0)),OFFSET(B88,-1,0),A88))))) -> 3 | D88: =IF(OR(C88="S",C88=0),0,IF(ISERROR(K88),J88,SMALL(J88:K88,1))) -> 58 | E88: =IF($C88=1,OFFSET(E88,-1,0)+1,OFFSET(E88,-1,0)) -> 1 | F88: =IF($C88=1,0,IF($C88=2,OFFSET(F88,-1,0)+1,OFFSET(F88,-1,0))) -> 4 | G88: =IF(AND($C88<=2,$C88<>0),0,IF($C88=3,OFFSET(G88,-1,0)+1,OFFSET(G88,-1,0))) -> 1 | H88: =IF(AND($C88<=3,$C88<>0),0,IF($C88=4,OFFSET(H88,-1,0)+1,OFFSET(H88,-1,0))) -> 0 | I88: =IF(AND($C88<=4,$C88<>0),0,IF(AND($C88="S",$W88>0),OFFSET(I88,-1,0)+1,OFFSET(I88,-1,0))) -> 0 | J88: 112 | K88: 58 | M88: Nível 3 | N88: Nível 3 | O88: - | P88: SINAPI | R88: INST. ELÉTRICAS | S88: - | W88: 0
A89: S | B89: 3 | C89: S | D89: 0 | E89: 1 | F89: 4 | G89: 1 | H89: 0 | I89: 0 | J89: 0 | K89: 0 | M89: Serviço | N89: Serviço | O89: - | P89: SINAPI | Q89: 74131/4 | R89: QUADRO DE DISTRIBUICAO DE ENERGIA DE EMBUTIR, EM CHAPA METALICA, PARA 18 DISJUNTORES TERMOMAGNETICOS MONOPOLARES, COM BARRAMENTO TRIFASICO E NEUTRO, FORNECIMENTO E INSTALACAO | S89: UN | T89: 2 | W89: 0
A90: S | B90: 3 | C90: S | D90: 0 | E90: 1 | F90: 4 | G90: 1 | H90: 0 | I90: 0 | J90: 0 | K90: 0 | M90: Serviço | N90: Serviço | O90: - | P90: SINAPI | Q90: 74131/6 | R90: QUADRO DE DISTRIBUICAO DE ENERGIA DE EMBUTIR, EM CHAPA METALICA, PARA 32 DISJUNTORES TERMOMAGNETICOS MONOPOLARES, COM BARRAMENTO TRIFASICO E NEUTRO, FORNECIMENTO E INSTALACAO | S90: UN | T90: 2 | W90: 0 | X90: Referência: AGETOP - 72198
A91: S | B91: 3 | C91: S | D91: 0 | E91: 1 | F91: 4 | G91: 1 | H91: 0 | I91: 0 | J91: 0 | K91: 0 | M91: Serviço | N91: Serviço | O91: - | P91: SINAPI | Q91: 74131/7 | R91: QUADRO DE DISTRIBUICAO DE ENERGIA DE EMBUTIR, EM CHAPA METALICA, PARA 40 DISJUNTORES TERMOMAGNETICOS MONOPOLARES, COM BARRAMENTO TRIFASICO E NEUTRO, FORNECIMENTO E INSTALACAO | S91: UN | T91: 1 | W91: 0
A92: S | B92: 3 | C92: S | D92: 0 | E92: 1 | F92: 4 | G92: 1 | H92: 0 | I92: 0 | J92: 0 | K92: 0 | M92: Serviço | N92: Serviço | O92: - | P92: SINAPI | Q92: 93670 | R92: DISJUNTOR TRIPOLAR TIPO DIN, CORRENTE NOMINAL DE 25A - FORNECIMENTO E INSTALAÇÃO. AF_04/2016 | S92: UN | T92: 1 | W92: 0 | X92: Referência: AGETOP - 71173
A93: =CHOOSE(1+LOG(1+2*(ORÇAMENTO.Nivel="Nível 1")+4*(ORÇAMENTO.Nivel="Nível 2")+8*(ORÇAMENTO.Nivel="Nível 3")+16*(ORÇAMENTO.Nivel="Nível 4")+32*(ORÇAMENTO.Nivel="Serviço"),2),0,1,2,3,4,"S") -> S | B93: =IF(OR(C93="s",C93=0),OFFSET(B93,-1,0),C93) -> 3 | C93: =IF(OFFSET(C93,-1,0)="L",1,IF(OFFSET(C93,-1,0)=1,2,IF(OR(A93="s",A93=0),"S",IF(AND(OFFSET(C93,-1,0)=2,A93=4),3,IF(AND(OR(OFFSET(C93,-1,0)="s",OFFSET(C93,-1,0)=0),A93<>"s",A93>OFFSET(B93,-1,0)),OFFSET(B93,-1,0),A93))))) -> S | D93: =IF(OR(C93="S",C93=0),0,IF(ISERROR(K93),J93,SMALL(J93:K93,1))) -> 0 | E93: =IF($C93=1,OFFSET(E93,-1,0)+1,OFFSET(E93,-1,0)) -> 1 | F93: =IF($C93=1,0,IF($C93=2,OFFSET(F93,-1,0)+1,OFFSET(F93,-1,0))) -> 4 | G93: =IF(AND($C93<=2,$C93<>0),0,IF($C93=3,OFFSET(G93,-1,0)+1,OFFSET(G93,-1,0))) -> 1 | H93: =IF(AND($C93<=3,$C93<>0),0,IF($C93=4,OFFSET(H93,-1,0)+1,OFFSET(H93,-1,0))) -> 0 | I93: =IF(AND($C93<=4,$C93<>0),0,IF(AND($C93="S",$W93>0),OFFSET(I93,-1,0)+1,OFFSET(I93,-1,0))) -> 0 | J93: 0 | K93: 0 | M93: Serviço | N93: Serviço | O93: - | P93: SINAPI | Q93: 93671 | R93: DISJUNTOR TRIPOLAR TIPO DIN, CORRENTE NOMINAL DE 32A - FORNECIMENTO E INSTALAÇÃO. AF_04/2016 | S93: UN | T93: 1 | W93: 0 | X93: Referência: AGETOP - 71173
A94: S | B94: 3 | C94: S | D94: 0 | E94: 1 | F94: 4 | G94: 1 | H94: 0 | I94: 0 | J94: 0 | K94: 0 | M94: Serviço | N94: Serviço | O94: - | P94: SINAPI | Q94: 93673 | R94: DISJUNTOR TRIPOLAR TIPO DIN, CORRENTE NOMINAL DE 50A - FORNECIMENTO E INSTALAÇÃO. AF_04/2016 | S94: UN | T94: 1 | W94: 0 | X94: Referência: AGETOP - 71174
A95: S | B95: 3 | C95: S | D95: 0 | E95: 1 | F95: 4 | G95: 1 | H95: 0 | I95: 0 | J95: 0 | K95: 0 | M95: Serviço | N95: Serviço | O95: - | P95: AGETOP | Q95: 71175 | R95: DISJUNTOR TRIPOLAR DE 60 A 100-A | S95: Un | T95: 2 | W95: 0
A96: S | B96: 3 | C96: S | D96: 0 | E96: 1 | F96: 4 | G96: 1 | H96: 0 | I96: 0 | J96: 0 | K96: 0 | M96: Serviço | N96: Serviço | O96: - | P96: SINAPI | Q96: 74130/10 | R96: DISJUNTOR TERMOMAGNETICO TRIPOLAR EM CAIXA MOLDADA 175 A 225A 240V, FORNECIMENTO E INSTALACAO | S96: UN | T96: 2 | W96: 0
A97: S | B97: 3 | C97: S | D97: 0 | E97: 1 | F97: 4 | G97: 1 | H97: 0 | I97: 0 | J97: 0 | K97: 0 | M97: Serviço | N97: Serviço | O97: - | P97: SINAPI | Q97: 93656 | R97: DISJUNTOR MONOPOLAR TIPO DIN, CORRENTE NOMINAL DE 25A - FORNECIMENTO E INSTALAÇÃO. AF_04/2016 | S97: UN | T97: 26 | W97: 0
A98: S | B98: 3 | C98: S | D98: 0 | E98: 1 | F98: 4 | G98: 1 | H98: 0 | I98: 0 | J98: 0 | K98: 0 | M98: Serviço | N98: Serviço | O98: - | P98: SINAPI | Q98: 93654 | R98: DISJUNTOR MONOPOLAR TIPO DIN, CORRENTE NOMINAL DE 16A - FORNECIMENTO E INSTALAÇÃO. AF_04/2016 | S98: UN | T98: 37 | W98: 0
A99: S | B99: 3 | C99: S | D99: 0 | E99: 1 | F99: 4 | G99: 1 | H99: 0 | I99: 0 | J99: 0 | K99: 0 | M99: Serviço | N99: Serviço | O99: - | P99: SINAPI | Q99: 93653 | R99: DISJUNTOR MONOPOLAR TIPO DIN, CORRENTE NOMINAL DE 10A - FORNECIMENTO E INSTALAÇÃO. AF_04/2016 | S99: UN | T99: 32 | W99: 0
A100: S | B100: 3 | C100: S | D100: 0 | E100: 1 | F100: 4 | G100: 1 | H100: 0 | I100: 0 | J100: 0 | K100: 0 | M100: Serviço | N100: Serviço | O100: - | P100: AGETOP | Q100: 71184 | R100: DISPOSITIVO DE PROTEÇÃO CONTRA SURTOS (D.P.S.) 275V DE 8 A 40KA | S100: Un | T100: 3 | W100: 0
A101: S | B101: 3 | C101: S | D101: 0 | E101: 1 | F101: 4 | G101: 1 | H101: 0 | I101: 0 | J101: 0 | K101: 0 | M101: Serviço | N101: Serviço | O101: - | P101: AGETOP | Q101: 71451 | R101: INTERRUPTOR DIFERENCIAL RESIDUAL (D.R.) BIPOLAR DE 40A-30mA | S101: Un | T101: 5 | W101: 0
A102: S | B102: 3 | C102: S | D102: 0 | E102: 1 | F102: 4 | G102: 1 | H102: 0 | I102: 0 | J102: 0 | K102: 0 | M102: Serviço | N102: Serviço | O102: - | P102: SINAPI | Q102: 91926 | R102: CABO DE COBRE FLEXÍVEL ISOLADO, 2,5 MM², ANTI-CHAMA 450/750 V, PARA CIRCUITOS TERMINAIS - FORNECIMENTO E INSTALAÇÃO. AF_12/2015 | S102: M | T102: 3008.4 | W102: 0 | X102: Referência: AGETOP - 70563
A103: S | B103: 3 | C103: S | D103: 0 | E103: 1 | F103: 4 | G103: 1 | H103: 0 | I103: 0 | J103: 0 | K103: 0 | M103: Serviço | N103: Serviço | O103: - | P103: SINAPI | Q103: 91928 | R103: CABO DE COBRE FLEXÍVEL ISOLADO, 4 MM², ANTI-CHAMA 450/750 V, PARA CIRCUITOS TERMINAIS - FORNECIMENTO E INSTALAÇÃO. AF_12/2015 | S103: M | T103: 2002.05 | W103: 0 | X103: Referência: AGETOP - 70564
A104: S | B104: 3 | C104: S | D104: 0 | E104: 1 | F104: 4 | G104: 1 | H104: 0 | I104: 0 | J104: 0 | K104: 0 | M104: Serviço | N104: Serviço | O104: - | P104: SINAPI | Q104: 91930 | R104: CABO DE COBRE FLEXÍVEL ISOLADO, 6 MM², ANTI-CHAMA 450/750 V, PARA CIRCUITOS TERMINAIS - FORNECIMENTO E INSTALAÇÃO. AF_12/2015 | S104: M | T104: 914.1 | W104: 0 | X104: Referência: AGETOP - 70565
A105: S | B105: 3 | C105: S | D105: 0 | E105: 1 | F105: 4 | G105: 1 | H105: 0 | I105: 0 | J105: 0 | K105: 0 | M105: Serviço | N105: Serviço | O105: - | P105: SINAPI | Q105: 92979 | R105: CABO DE COBRE FLEXÍVEL ISOLADO, 10 MM², ANTI-CHAMA 450/750 V, PARA DISTRIBUIÇÃO - FORNECIMENTO E INSTALAÇÃO. AF_12/2015 | S105: M | T105: 15.5 | W105: 0
A106: S | B106: 3 | C106: S | D106: 0 | E106: 1 | F106: 4 | G106: 1 | H106: 0 | I106: 0 | J106: 0 | K106: 0 | M106: Serviço | N106: Serviço | O106: - | P106: SINAPI | Q106: 92981 | R106: CABO DE COBRE FLEXÍVEL ISOLADO, 16 MM², ANTI-CHAMA 450/750 V, PARA DISTRIBUIÇÃO - FORNECIMENTO E INSTALAÇÃO. AF_12/2015 | S106: M | T106: 409.2 | W106: 0
A107: S | B107: 3 | C107: S | D107: 0 | E107: 1 | F107: 4 | G107: 1 | H107: 0 | I107: 0 | J107: 0 | K107: 0 | M107: Serviço | N107: Serviço | O107: - | P107: SINAPI | Q107: 92985 | R107: CABO DE COBRE FLEXÍVEL ISOLADO, 35 MM², ANTI-CHAMA 450/750 V, PARA DISTRIBUIÇÃO - FORNECIMENTO E INSTALAÇÃO. AF_12/2015 | S107: M | T107: 146.8 | W107: 0
A108: S | B108: 3 | C108: S | D108: 0 | E108: 1 | F108: 4 | G108: 1 | H108: 0 | I108: 0 | J108: 0 | K108: 0 | M108: Serviço | N108: Serviço | O108: - | P108: SINAPI | Q108: 92990 | R108: CABO DE COBRE FLEXÍVEL ISOLADO, 70 MM², ANTI-CHAMA 0,6/1,0 KV, PARA DISTRIBUIÇÃO - FORNECIMENTO E INSTALAÇÃO. AF_12/2015 | S108: M | T108: 85.2 | W108: 0 | X108: Referência: AGETOP - 70514
A109: S | B109: 3 | C109: S | D109: 0 | E109: 1 | F109: 4 | G109: 1 | H109: 0 | I109: 0 | J109: 0 | K109: 0 | M109: Serviço | N109: Serviço | O109: - | P109: SINAPI | Q109: 92986 | R109: CABO DE COBRE FLEXÍVEL ISOLADO, 35 MM², ANTI-CHAMA 0,6/1,0 KV, PARA DISTRIBUIÇÃO - FORNECIMENTO E INSTALAÇÃO. AF_12/2015 | S109: M | T109: 24 | W109: 0 | X109: Referência: AGETOP - 70512
A110: S | B110: 3 | C110: S | D110: 0 | E110: 1 | F110: 4 | G110: 1 | H110: 0 | I110: 0 | J110: 0 | K110: 0 | M110: Serviço | N110: Serviço | O110: - | P110: AGETOP | Q110: 70541 | R110: CABO DE COBRE NU No. 16 MM2 (6,94 M/KG) | S110: M | T110: 15 | W110: 0
A111: S | B111: 3 | C111: S | D111: 0 | E111: 1 | F111: 4 | G111: 1 | H111: 0 | I111: 0 | J111: 0 | K111: 0 | M111: Serviço | N111: Serviço | O111: - | P111: AGETOP | Q111: 70544 | R111: CABO DE COBRE NÚ No. 50 MM2 | S111: M | T111: 15 | W111: 0
A112: S | B112: 3 | C112: S | D112: 0 | E112: 1 | F112: 4 | G112: 1 | H112: 0 | I112: 0 | J112: 0 | K112: 0 | M112: Serviço | N112: Serviço | O112: - | P112: SINAPI | Q112: 91867 | R112: ELETRODUTO RÍGIDO ROSCÁVEL, PVC, DN 25 MM (3/4"), PARA CIRCUITOS TERMINAIS, INSTALADO EM LAJE - FORNECIMENTO E INSTALAÇÃO. AF_12/2015 | S112: M | T112: 280.28 | W112: 0 | X112: Referência: AGETOP - 71201
A113: S | B113: 3 | C113: S | D113: 0 | E113: 1 | F113: 4 | G113: 1 | H113: 0 | I113: 0 | J113: 0 | K113: 0 | M113: Serviço | N113: Serviço | O113: - | P113: SINAPI | Q113: 91834 | R113: ELETRODUTO FLEXÍVEL CORRUGADO, PVC, DN 25 MM (3/4"), PARA CIRCUITOS TERMINAIS, INSTALADO EM FORRO - FORNECIMENTO E INSTALAÇÃO. AF_12/2015 | S113: M | T113: 934.25 | W113: 0 | X113: Referência: AGETOP - 71194
A114: S | B114: 3 | C114: S | D114: 0 | E114: 1 | F114: 4 | G114: 1 | H114: 0 | I114: 0 | J114: 0 | K114: 0 | M114: Serviço | N114: Serviço | O114: - | P114: SINAPI | Q114: 91836 | R114: ELETRODUTO FLEXÍVEL CORRUGADO, PVC, DN 32 MM (1"), PARA CIRCUITOS TERMINAIS, INSTALADO EM FORRO - FORNECIMENTO E INSTALAÇÃO. AF_12/2015 | S114: M | T114: 387 | W114: 0 | X114: Referência: AGETOP - 71195
A115: S | B115: 3 | C115: S | D115: 0 | E115: 1 | F115: 4 | G115: 1 | H115: 0 | I115: 0 | J115: =IF(OR($C115="S",$C115=0),0,MATCH(0,OFFSET($D115,1,$C115,ROW($C$1047)-ROW($C115)),0)) -> 0 | K115: =IF(OR($C115="S",$C115=0),0,MATCH(OFFSET($D115,0,$C115)+1,OFFSET($D115,1,$C115,ROW($C$1047)-ROW($C115)),0)) -> 0 | M115: Serviço | N115: Serviço | O115: - | P115: AGETOP | Q115: 71197 | R115: ELETRODUTO PVC FLEXÍVEL - MANGUEIRA CORRUGADA REFORÇADA - DIAM. 50MM | S115: M | T115: 158.15 | W115: 0
A116: S | B116: 3 | C116: S | D116: 0 | E116: 1 | F116: 4 | G116: 1 | H116: 0 | I116: 0 | J116: 0 | K116: 0 | M116: Serviço | N116: Serviço | O116: - | P116: SINAPI | Q116: 91868 | R116: ELETRODUTO RÍGIDO ROSCÁVEL, PVC, DN 32 MM (1"), PARA CIRCUITOS TERMINAIS, INSTALADO EM LAJE - FORNECIMENTO E INSTALAÇÃO. AF_12/2015 | S116: M | T116: 116 | W116: 0 | X116: Referência: AGETOP - 71202
A117: S | B117: 3 | C117: S | D117: 0 | E117: 1 | F117: 4 | G117: 1 | H117: 0 | I117: 0 | J117: 0 | K117: 0 | M117: Serviço | N117: Serviço | O117: - | P117: SINAPI | Q117: 93008 | R117: ELETRODUTO RÍGIDO ROSCÁVEL, PVC, DN 50 MM (1 1/2") - FORNECIMENTO E INSTALAÇÃO. AF_12/2015 | S117: M | T117: 45 | W117: 0
A118: S | B118: 3 | C118: S | D118: 0 | E118: 1 | F118: 4 | G118: 1 | H118: 0 | I118: 0 | J118: 0 | K118: 0 | M118: Serviço | N118: Serviço | O118: - | P118: SINAPI | Q118: 93009 | R118: ELETRODUTO RÍGIDO ROSCÁVEL, PVC, DN 60 MM (2") - FORNECIMENTO E INSTALAÇÃO. AF_12/2015 | S118: M | T118: 139 | W118: 0
A119: S | B119: 3 | C119: S | D119: 0 | E119: 1 | F119: 4 | G119: 1 | H119: 0 | I119: 0 | J119: 0 | K119: 0 | M119: Serviço | N119: Serviço | O119: - | P119: SINAPI | Q119: 93010 | R119: ELETRODUTO RÍGIDO ROSCÁVEL, PVC, DN 75 MM (2 1/2") - FORNECIMENTO E INSTALAÇÃO. AF_12/2015 | S119: M | T119: 24 | W119: 0
A120: S | B120: 3 | C120: S | D120: 0 | E120: 1 | F120: 4 | G120: 1 | H120: 0 | I120: 0 | J120: 0 | K120: 0 | M120: Serviço | N120: Serviço | O120: - | P120: AGETOP | Q120: 70351 | R120: BRACADEIRA METALICA TIPO "U" DIAM. 3/4" | S120: Un | T120: 94 | W120: 0
A121: S | B121: 3 | C121: S | D121: 0 | E121: 1 | F121: 4 | G121: 1 | H121: 0 | I121: 0 | J121: 0 | K121: 0 | M121: Serviço | N121: Serviço | O121: - | P121: AGETOP | Q121: 70352 | R121: BRACADEIRA METALICA TIPO "U" DIAM. 1" | S121: Un | T121: 39 | W121: 0
A122: S | B122: 3 | C122: S | D122: 0 | E122: 1 | F122: 4 | G122: 1 | H122: 0 | I122: 0 | J122: 0 | K122: 0 | M122: Serviço | N122: Serviço | O122: - | P122: AGETOP | Q122: 70354 | R122: BRACADEIRA METALICA TIPO "U" DIAM. 1.1/2" | S122: Un | T122: 15 | W122: 0
A123: S | B123: 3 | C123: S | D123: 0 | E123: 1 | F123: 4 | G123: 1 | H123: 0 | I123: 0 | J123: 0 | K123: 0 | M123: Serviço | N123: Serviço | O123: - | P123: AGETOP | Q123: 70355 | R123: BRACADEIRA METALICA TIPO "U" DIAM. 2" | S123: Un | T123: 47 | W123: 0
A124: S | B124: 3 | C124: S | D124: 0 | E124: 1 | F124: 4 | G124: 1 | H124: 0 | I124: 0 | J124: 0 | K124: 0 | M124: Serviço | N124: Serviço | O124: - | P124: SINAPI | Q124: 91879 | R124: LUVA PARA ELETRODUTO, PVC, ROSCÁVEL, DN 25 MM (3/4"), PARA CIRCUITOS TERMINAIS, INSTALADA EM LAJE - FORNECIMENTO E INSTALAÇÃO. AF_12/2015 | S124: UN | T124: 94 | W124: 0 | X124: Referência: AGETOP - 71741
A125: S | B125: 3 | C125: S | D125: 0 | E125: 1 | F125: 4 | G125: 1 | H125: 0 | I125: 0 | J125: 0 | K125: 0 | M125: Serviço | N125: Serviço | O125: - | P125: SINAPI | Q125: 91880 | R125: LUVA PARA ELETRODUTO, PVC, ROSCÁVEL, DN 32 MM (1"), PARA CIRCUITOS TERMINAIS, INSTALADA EM LAJE - FORNECIMENTO E INSTALAÇÃO. AF_12/2015 | S125: UN | T125: 39 | W125: 0 | X125: Referência: AGETOP - 71742
A126: S | B126: 3 | C126: S | D126: 0 | E126: 1 | F126: 4 | G126: 1 | H126: 0 | I126: 0 | J126: 0 | K126: 0 | M126: Serviço | N126: Serviço | O126: - | P126: SINAPI | Q126: 93013 | R126: LUVA PARA ELETRODUTO, PVC, ROSCÁVEL, DN 50 MM (1 1/2") - FORNECIMENTO E INSTALAÇÃO. AF_12/2015 | S126: UN | T126: 15 | W126: 0 | X126: Referência: AGETOP - 71744
A127: S | B127: 3 | C127: S | D127: 0 | E127: 1 | F127: 4 | G127: 1 | H127: 0 | I127: 0 | J127: 0 | K127: 0 | M127: Serviço | N127: Serviço | O127: - | P127: SINAPI | Q127: 93014 | R127: LUVA PARA ELETRODUTO, PVC, ROSCÁVEL, DN 60 MM (2") - FORNECIMENTO E INSTALAÇÃO. AF_12/2015 | S127: UN | T127: 47 | W127: 0 | X127: Referência: AGETOP - 71745
A128: S | B128: 3 | C128: S | D128: 0 | E128: 1 | F128: 4 | G128: 1 | H128: 0 | I128: 0 | J128: 0 | K128: 0 | M128: Serviço | N128: Serviço | O128: - | P128: SINAPI | Q128: 91939 | R128: CAIXA RETANGULAR 4" X 2" ALTA (2,00 M DO PISO), PVC, INSTALADA EM PAREDE - FORNECIMENTO E INSTALAÇÃO. AF_12/2015 | S128: UN | T128: 146 | W128: 0
A129: S | B129: 3 | C129: S | D129: 0 | E129: 1 | F129: 4 | G129: 1 | H129: 0 | I129: 0 | J129: 0 | K129: 0 | M129: Serviço | N129: Serviço | O129: - | P129: SINAPI | Q129: 91937 | R129: CAIXA OCTOGONAL 3" X 3", PVC, INSTALADA EM LAJE - FORNECIMENTO E INSTALAÇÃO. AF_12/2015 | S129: UN | T129: 189 | W129: 0
A130: S | B130: 3 | C130: S | D130: 0 | E130: 1 | F130: 4 | G130: 1 | H130: 0 | I130: 0 | J130: 0 | K130: 0 | M130: Serviço | N130: Serviço | O130: - | P130: SINAPI | Q130: 91993 | R130: TOMADA ALTA DE EMBUTIR (1 MÓDULO), 2P+T 20 A, INCLUINDO SUPORTE E PLACA - FORNECIMENTO E INSTALAÇÃO. AF_12/2015 | S130: UN | T130: 26 | W130: 0 | X130: Referência: AGETOP - 72585
A131: S | B131: 3 | C131: S | D131: 0 | E131: 1 | F131: 4 | G131: 1 | H131: 0 | I131: 0 | J131: 0 | K131: 0 | M131: Serviço | N131: Serviço | O131: - | P131: SINAPI | Q131: 91992 | R131: TOMADA ALTA DE EMBUTIR (1 MÓDULO), 2P+T 10 A, INCLUINDO SUPORTE E PLACA - FORNECIMENTO E INSTALAÇÃO. AF_12/2015 | S131: UN | T131: 18 | W131: 0
A132: S | B132: 3 | C132: S | D132: 0 | E132: 1 | F132: 4 | G132: 1 | H132: 0 | I132: 0 | J132: 0 | K132: 0 | M132: Serviço | N132: Serviço | O132: - | P132: SINAPI | Q132: 92004 | R132: TOMADA MÉDIA DE EMBUTIR (2 MÓDULOS), 2P+T 10 A, INCLUINDO SUPORTE E PLACA - FORNECIMENTO E INSTALAÇÃO. AF_12/2015 | S132: UN | T132: 15 | W132: 0 | X132: Referência: AGETOP - 72578
A133: S | B133: 3 | C133: S | D133: 0 | E133: 1 | F133: 4 | G133: 1 | H133: 0 | I133: 0 | J133: 0 | K133: 0 | M133: Serviço | N133: Serviço | O133: - | P133: SINAPI | Q133: 92008 | R133: TOMADA BAIXA DE EMBUTIR (2 MÓDULOS), 2P+T 10 A, INCLUINDO SUPORTE E PLACA - FORNECIMENTO E INSTALAÇÃO. AF_12/2015 | S133: UN | T133: 28 | W133: 0
A134: S | B134: 3 | C134: S | D134: 0 | E134: 1 | F134: 4 | G134: 1 | H134: 0 | I134: 0 | J134: 0 | K134: 0 | M134: Serviço | N134: Serviço | O134: - | P134: SINAPI | Q134: 92000 | R134: TOMADA BAIXA DE EMBUTIR (1 MÓDULO), 2P+T 10 A, INCLUINDO SUPORTE E PLACA - FORNECIMENTO E INSTALAÇÃO. AF_12/2015 | S134: UN | T134: 50 | W134: 0 | X134: Referência: AGETOP - 72578
A135: S | B135: 3 | C135: S | D135: 0 | E135: 1 | F135: 4 | G135: 1 | H135: 0 | I135: 0 | J135: 0 | K135: 0 | M135: Serviço | N135: Serviço | O135: - | P135: SINAPI | Q135: 97585 | R135: LUMINÁRIA TIPO CALHA, DE SOBREPOR, COM 2 LÂMPADAS TUBULARES DE 18 W - FORNECIMENTO E INSTALAÇÃO. AF_11/2017 | S135: UN | T135: 168 | W135: 0
A136: S | B136: 3 | C136: S | D136: 0 | E136: 1 | F136: 4 | G136: 1 | H136: 0 | I136: 0 | J136: 0 | K136: 0 | M136: Serviço | N136: Serviço | O136: - | P136: SINAPI | Q136: 97593 | R136: LUMINÁRIA TIPO SPOT, DE SOBREPOR, COM 1 LÂMPADA DE 15 W - FORNECIMENTO E INSTALAÇÃO. AF_11/2017 | S136: UN | T136: 3 | W136: 0 | X136: Referência: AGETOP - 71688
A137: S | B137: 3 | C137: S | D137: 0 | E137: 1 | F137: 4 | G137: 1 | H137: 0 | I137: 0 | J137: 0 | K137: 0 | M137: Serviço | N137: Serviço | O137: - | P137: SINAPI | Q137: 97606 | R137: LUMINÁRIA ARANDELA TIPO MEIA-LUA, PARA 1 LÂMPADA DE 15 W - FORNECIMENTO E INSTALAÇÃO. AF_11/2017 | S137: UN | T137: 14 | W137: 0
A138: S | B138: 3 | C138: S | D138: 0 | E138: 1 | F138: 4 | G138: 1 | H138: 0 | I138: 0 | J138: 0 | K138: 0 | M138: Serviço | N138: Serviço | O138: - | P138: SINAPI | Q138: 97610 | R138: LÂMPADA COMPACTA DE LED 10 W, BASE E27 - FORNECIMENTO E INSTALAÇÃO. AF_11/2017 | S138: UN | T138: 17 | W138: 0
A139: S | B139: 3 | C139: S | D139: 0 | E139: 1 | F139: 4 | G139: 1 | H139: 0 | I139: 0 | J139: 0 | K139: 0 | M139: Serviço | N139: Serviço | O139: - | P139: SINAPI | Q139: 91953 | R139: INTERRUPTOR SIMPLES (1 MÓDULO), 10A/250V, INCLUINDO SUPORTE E PLACA - FORNECIMENTO E INSTALAÇÃO. AF_12/2015 | S139: UN | T139: 19 | W139: 0 | X139: Referência: AGETOP - 71440
A140: S | B140: 3 | C140: S | D140: 0 | E140: 1 | F140: 4 | G140: 1 | H140: 0 | I140: 0 | J140: 0 | K140: 0 | M140: Serviço | N140: Serviço | O140: - | P140: SINAPI | Q140: 91959 | R140: INTERRUPTOR SIMPLES (2 MÓDULOS), 10A/250V, INCLUINDO SUPORTE E PLACA - FORNECIMENTO E INSTALAÇÃO. AF_12/2015 | S140: UN | T140: 14 | W140: 0 | X140: Referência: AGETOP - 71441
A141: S | B141: 3 | C141: S | D141: 0 | E141: 1 | F141: 4 | G141: 1 | H141: 0 | I141: 0 | J141: 0 | K141: 0 | M141: Serviço | N141: Serviço | O141: - | P141: SINAPI | Q141: 97889 | R141: CAIXA ENTERRADA ELÉTRICA RETANGULAR, EM ALVENARIA COM TIJOLOS CERÂMICOS MACIÇOS, FUNDO COM BRITA, DIMENSÕES INTERNAS: 0,8X0,8X0,6 M. AF_05/2018 | S141: UN | T141: 4 | W141: 0
A142: S | B142: 3 | C142: S | D142: 0 | E142: 1 | F142: 4 | G142: 1 | H142: 0 | I142: 0 | J142: 0 | K142: 0 | M142: Serviço | N142: Serviço | O142: - | P142: SINAPI | Q142: 6171 | R142: TAMPA DE CONCRETO ARMADO 60X60X5CM PARA CAIXA | S142: UN | T142: 7 | W142: 0
A143: S | B143: 3 | C143: S | D143: 0 | E143: 1 | F143: 4 | G143: 1 | H143: 0 | I143: 0 | J143: 0 | K143: 0 | M143: Serviço | N143: Serviço | O143: - | P143: AGETOP | Q143: 71861 | R143: PARAFUSO P/BUCHA S-6 | S143: Un | T143: 500 | W143: 0
A144: S | B144: 3 | C144: S | D144: 0 | E144: 1 | F144: 4 | G144: 1 | H144: 0 | I144: 0 | J144: 0 | K144: 0 | M144: Serviço | N144: Serviço | O144: - | P144: AGETOP | Q144: 70647 | R144: CAIXA DE PASSAGEM METÁLICA DE EMBUTIR 30X30X12 CM | S144: Un | T144: 3 | W144: 0
A145: S | B145: 3 | C145: S | D145: 0 | E145: 1 | F145: 4 | G145: 1 | H145: 0 | I145: 0 | J145: 0 | K145: 0 | M145: Serviço | N145: Serviço | O145: - | P145: AGETOP | Q145: 70391 | R145: BUCHA DE NYLON S-6 | S145: Un | T145: 500 | W145: 0
A146: 3 | B146: 3 | C146: 3 | D146: 15 | E146: 1 | F146: 4 | G146: 2 | H146: 0 | I146: 0 | J146: 54 | K146: 15 | M146: Nível 3 | N146: Nível 3 | O146: - | R146: IMPLANTAÇÃO DOS BLOCOS | S146: - | W146: 0
A147: S | B147: 3 | C147: S | D147: 0 | E147: 1 | F147: 4 | G147: 2 | H147: 0 | I147: 0 | J147: =IF(OR($C147="S",$C147=0),0,MATCH(0,OFFSET($D147,1,$C147,ROW($C$1047)-ROW($C147)),0)) -> 0 | K147: =IF(OR($C147="S",$C147=0),0,MATCH(OFFSET($D147,0,$C147)+1,OFFSET($D147,1,$C147,ROW($C$1047)-ROW($C147)),0)) -> 0 | M147: Serviço | N147: Serviço | O147: - | P147: SINAPI | Q147: 93671 | R147: DISJUNTOR TRIPOLAR TIPO DIN, CORRENTE NOMINAL DE 32A - FORNECIMENTO E INSTALAÇÃO. AF_04/2016 | S147: UN | T147: 1 | W147: 0 | X147: Referência: AGETOP - 71173
A148: S | B148: 3 | C148: S | D148: 0 | E148: 1 | F148: 4 | G148: 2 | H148: 0 | I148: 0 | J148: 0 | K148: 0 | M148: Serviço | N148: Serviço | O148: - | P148: AGETOP | Q148: 71175 | R148: DISJUNTOR TRIPOLAR DE 60 A 100-A | S148: Un | T148: 2 | W148: 0
A149: S | B149: 3 | C149: S | D149: 0 | E149: 1 | F149: 4 | G149: 2 | H149: 0 | I149: 0 | J149: 0 | K149: 0 | M149: Serviço | N149: Serviço | O149: - | P149: SINAPI | Q149: 91930 | R149: CABO DE COBRE FLEXÍVEL ISOLADO, 6 MM², ANTI-CHAMA 450/750 V, PARA CIRCUITOS TERMINAIS - FORNECIMENTO E INSTALAÇÃO. AF_12/2015 | S149: M | T149: 638.65 | W149: 0 | X149: Referência: AGETOP - 70565
A150: S | B150: 3 | C150: S | D150: 0 | E150: 1 | F150: 4 | G150: 2 | H150: 0 | I150: 0 | J150: 0 | K150: 0 | M150: Serviço | N150: Serviço | O150: - | P150: SINAPI | Q150: 92981 | R150: CABO DE COBRE FLEXÍVEL ISOLADO, 16 MM², ANTI-CHAMA 450/750 V, PARA DISTRIBUIÇÃO - FORNECIMENTO E INSTALAÇÃO. AF_12/2015 | S150: M | T150: 1929.76 | W150: 0
A151: S | B151: 3 | C151: S | D151: 0 | E151: 1 | F151: 4 | G151: 2 | H151: 0 | I151: 0 | J151: 0 | K151: 0 | M151: Serviço | N151: Serviço | O151: - | P151: SINAPI | Q151: 91872 | R151: ELETRODUTO RÍGIDO ROSCÁVEL, PVC, DN 32 MM (1"), PARA CIRCUITOS TERMINAIS, INSTALADO EM PAREDE - FORNECIMENTO E INSTALAÇÃO. AF_12/2015 | S151: M | T151: 144.4 | W151: 0 | X151: Referência: AGETOP - 71202
A152: S | B152: 3 | C152: S | D152: 0 | E152: 1 | F152: 4 | G152: 2 | H152: 0 | I152: 0 | J152: 0 | K152: 0 | M152: Serviço | N152: Serviço | O152: - | P152: SINAPI | Q152: 93008 | R152: ELETRODUTO RÍGIDO ROSCÁVEL, PVC, DN 50 MM (1 1/2") - FORNECIMENTO E INSTALAÇÃO. AF_12/2015 | S152: M | T152: 112.15 | W152: 0
A153: S | B153: 3 | C153: S | D153: 0 | E153: 1 | F153: 4 | G153: 2 | H153: 0 | I153: 0 | J153: 0 | K153: 0 | M153: Serviço | N153: Serviço | O153: - | P153: AGETOP | Q153: 70352 | R153: BRACADEIRA METALICA TIPO "U" DIAM. 1" | S153: Un | T153: 49 | W153: 0
A154: S | B154: 3 | C154: S | D154: 0 | E154: 1 | F154: 4 | G154: 2 | H154: 0 | I154: 0 | J154: 0 | K154: 0 | M154: Serviço | N154: Serviço | O154: - | P154: AGETOP | Q154: 70354 | R154: BRACADEIRA METALICA TIPO "U" DIAM. 1.1/2" | S154: Un | T154: 38 | W154: 0
A155: S | B155: 3 | C155: S | D155: 0 | E155: 1 | F155: 4 | G155: 2 | H155: 0 | I155: 0 | J155: 0 | K155: 0 | M155: Serviço | N155: Serviço | O155: - | P155: SINAPI | Q155: 91880 | R155: LUVA PARA ELETRODUTO, PVC, ROSCÁVEL, DN 32 MM (1"), PARA CIRCUITOS TERMINAIS, INSTALADA EM LAJE - FORNECIMENTO E INSTALAÇÃO. AF_12/2015 | S155: UN | T155: 49 | W155: 0 | X155: Referência: AGETOP - 71742
A156: =CHOOSE(1+LOG(1+2*(ORÇAMENTO.Nivel="Nível 1")+4*(ORÇAMENTO.Nivel="Nível 2")+8*(ORÇAMENTO.Nivel="Nível 3")+16*(ORÇAMENTO.Nivel="Nível 4")+32*(ORÇAMENTO.Nivel="Serviço"),2),0,1,2,3,4,"S") -> S | B156: =IF(OR(C156="s",C156=0),OFFSET(B156,-1,0),C156) -> 3 | C156: =IF(OFFSET(C156,-1,0)="L",1,IF(OFFSET(C156,-1,0)=1,2,IF(OR(A156="s",A156=0),"S",IF(AND(OFFSET(C156,-1,0)=2,A156=4),3,IF(AND(OR(OFFSET(C156,-1,0)="s",OFFSET(C156,-1,0)=0),A156<>"s",A156>OFFSET(B156,-1,0)),OFFSET(B156,-1,0),A156))))) -> S | D156: =IF(OR(C156="S",C156=0),0,IF(ISERROR(K156),J156,SMALL(J156:K156,1))) -> 0 | E156: =IF($C156=1,OFFSET(E156,-1,0)+1,OFFSET(E156,-1,0)) -> 1 | F156: =IF($C156=1,0,IF($C156=2,OFFSET(F156,-1,0)+1,OFFSET(F156,-1,0))) -> 4 | G156: =IF(AND($C156<=2,$C156<>0),0,IF($C156=3,OFFSET(G156,-1,0)+1,OFFSET(G156,-1,0))) -> 2 | H156: =IF(AND($C156<=3,$C156<>0),0,IF($C156=4,OFFSET(H156,-1,0)+1,OFFSET(H156,-1,0))) -> 0 | I156: =IF(AND($C156<=4,$C156<>0),0,IF(AND($C156="S",$W156>0),OFFSET(I156,-1,0)+1,OFFSET(I156,-1,0))) -> 0 | J156: 0 | K156: 0 | M156: Serviço | N156: Serviço | O156: - | P156: SINAPI | Q156: 93013 | R156: LUVA PARA ELETRODUTO, PVC, ROSCÁVEL, DN 50 MM (1 1/2") - FORNECIMENTO E INSTALAÇÃO. AF_12/2015 | S156: UN | T156: 38 | W156: 0 | X156: Referência: AGETOP - 71744
A157: S | B157: 3 | C157: S | D157: 0 | E157: 1 | F157: 4 | G157: 2 | H157: 0 | I157: 0 | J157: 0 | K157: 0 | M157: Serviço | N157: Serviço | O157: - | P157: SINAPI | Q157: 97889 | R157: CAIXA ENTERRADA ELÉTRICA RETANGULAR, EM ALVENARIA COM TIJOLOS CERÂMICOS MACIÇOS, FUNDO COM BRITA, DIMENSÕES INTERNAS: 0,8X0,8X0,6 M. AF_05/2018 | S157: UN | T157: 3 | W157: 0
A158: S | B158: 3 | C158: S | D158: 0 | E158: 1 | F158: 4 | G158: 2 | H158: 0 | I158: 0 | J158: 0 | K158: 0 | M158: Serviço | N158: Serviço | O158: - | P158: SINAPI | Q158: 6171 | R158: TAMPA DE CONCRETO ARMADO 60X60X5CM PARA CAIXA | S158: UN | T158: 3 | W158: 0
A159: S | B159: 3 | C159: S | D159: 0 | E159: 1 | F159: 4 | G159: 2 | H159: 0 | I159: 0 | J159: 0 | K159: 0 | M159: Serviço | N159: Serviço | O159: - | P159: AGETOP | Q159: 71861 | R159: PARAFUSO P/BUCHA S-6 | S159: Un | T159: 150 | W159: 0
A160: S | B160: 3 | C160: S | D160: 0 | E160: 1 | F160: 4 | G160: 2 | H160: 0 | I160: 0 | J160: 0 | K160: 0 | M160: Serviço | N160: Serviço | O160: - | P160: AGETOP | Q160: 70391 | R160: BUCHA DE NYLON S-6 | S160: Un | T160: 150 | W160: 0
A161: 3 | B161: 3 | C161: 3 | D161: 39 | E161: 1 | F161: 4 | G161: 3 | H161: 0 | I161: 0 | J161: 39 | K161: 144 | M161: Nível 3 | N161: Nível 3 | O161: - | P161: SINAPI | R161: SUBESTAÇÃO | S161: - | W161: 0
A162: S | B162: 3 | C162: S | D162: 0 | E162: 1 | F162: 4 | G162: 3 | H162: 0 | I162: 0 | J162: 0 | K162: 0 | M162: Serviço | N162: Serviço | O162: - | P162: AGETOP | Q162: 70386 | R162: BRAÇO C AÇO GALVANIZADO , CONFORME NTD-17 | S162: un | T162: 1 | W162: 0
A163: S | B163: 3 | C163: S | D163: 0 | E163: 1 | F163: 4 | G163: 3 | H163: 0 | I163: 0 | J163: 0 | K163: 0 | M163: Serviço | N163: Serviço | O163: - | P163: SINAPI | Q163: 73767/2 | R163: ALCA PRE-FORMADA DISTRIBUIÇÃO EM ACO RECOBERTO COM ALUMINIO PARA CABO 25MM2, ENCAPADO. FORNECIMENTO E INSTALAÇÃO. | S163: UN | T163: 1 | W163: 0
A164: S | B164: 3 | C164: S | D164: 0 | E164: 1 | F164: 4 | G164: 3 | H164: 0 | I164: 0 | J164: 0 | K164: 0 | M164: Serviço | N164: Serviço | O164: - | P164: SINAPI | Q164: 73767/1 | R164: GRAMPO PARALELO EM ALUMINIO FUNDIDO OU ESTRUDADO DE 2 PARAFUSOS, PARA CABO DE 6 A 50 MM2, PASTA ANTIOXIDANTE. FORNEC E INSTALAÇÃO. | S164: UN | T164: 3 | W164: 0
A165: S | B165: 3 | C165: S | D165: 0 | E165: 1 | F165: 4 | G165: 3 | H165: 0 | I165: 0 | J165: 0 | K165: 0 | M165: Serviço | N165: Serviço | O165: - | P165: SINAPI | Q165: 83377 | R165: CONECTOR DE PARAFUSO FENDIDO EM LIGA DE COBRE COM SEPARADOR DE CABOS PARA CABO 50 MM2 - FORNECIMENTO E INSTALACAO | S165: UN | T165: 6 | W165: 0
A166: S | B166: 3 | C166: S | D166: 0 | E166: 1 | F166: 4 | G166: 3 | H166: 0 | I166: 0 | J166: 0 | K166: 0 | M166: Serviço | N166: Serviço | O166: - | P166: SINAPI | Q166: 72263 | R166: TERMINAL OU CONECTOR DE PRESSAO - PARA CABO 50MM2 - FORNECIMENTO E INSTALACAO | S166: UN | T166: 1 | W166: 0
A167: S | B167: 3 | C167: S | D167: 0 | E167: 1 | F167: 4 | G167: 3 | H167: 0 | I167: 0 | J167: 0 | K167: 0 | M167: Serviço | N167: Serviço | O167: - | P167: AGETOP | Q167: 71833 | R167: PARA RAIOS DISTRIBUIDOR POLIMÉRICO ÓXIDO DE ZINCO S/CENTELHADOR C/ DESLIGAMENTO AUTOMÁTICO 15KV,10KA | S167: Un | T167: 3 | W167: 0
A168: S | B168: 3 | C168: S | D168: 0 | E168: 1 | F168: 4 | G168: 3 | H168: 0 | I168: 0 | J168: 0 | K168: 0 | M168: Serviço | N168: Serviço | O168: - | P168: SINAPI | Q168: 88544 | R168: ARMACAO SECUNDARIA OU REX COMPLETA PARA DUAS LINHAS-FORNECIMENTO E INSTALACAO. | S168: UN | T168: 1 | W168: 0
A169: S | B169: 3 | C169: S | D169: 0 | E169: 1 | F169: 4 | G169: 3 | H169: 0 | I169: 0 | J169: 0 | K169: 0 | M169: Serviço | N169: Serviço | O169: - | P169: COMPOSIÇÃO | Q169: COMP 046_SEE | R169: CAPUZ PARA PROTEÇÃO DOS PARA RAIOS | S169: UN | T169: 3 | W169: 0
A170: S | B170: 3 | C170: S | D170: 0 | E170: 1 | F170: 4 | G170: 3 | H170: 0 | I170: 0 | J170: 0 | K170: 0 | M170: Serviço | N170: Serviço | O170: - | P170: COMPOSIÇÃO | Q170: COMP 047_SEE | R170: CAPUZ DE PROTEÇÃO PARA BUCHA DE TRANSFORMADOR | S170: UN | T170: 3 | W170: 0
A171: S | B171: 3 | C171: S | D171: 0 | E171: 1 | F171: 4 | G171: 3 | H171: 0 | I171: 0 | J171: 0 | K171: 0 | M171: Serviço | N171: Serviço | O171: - | P171: COMPOSIÇÃO | Q171: COMP 048_SEE | R171: HASTE ROSQUEADA "TIRANTE" 3/8" | S171: M | T171: 0.5 | W171: 0
A172: S | B172: 3 | C172: S | D172: 0 | E172: 1 | F172: 4 | G172: 3 | H172: 0 | I172: 0 | J172: 0 | K172: 0 | M172: Serviço | N172: Serviço | O172: - | P172: COMPOSIÇÃO | Q172: COMP 049_SEE | R172: PORCA SEXTAVADA 3/8" | S172: UN | T172: 8 | W172: 0
A173: S | B173: 3 | C173: S | D173: 0 | E173: 1 | F173: 4 | G173: 3 | H173: 0 | I173: 0 | J173: 0 | K173: 0 | M173: Serviço | N173: Serviço | O173: - | P173: SINAPI | Q173: 73781/2 | R173: ISOLADOR DE PINO TP HI-POT CILINDRICO CLASSE 15KV. FORNECIMENTO E INSTALACAO. | S173: UN | T173: 3 | W173: 0
A174: =CHOOSE(1+LOG(1+2*(ORÇAMENTO.Nivel="Nível 1")+4*(ORÇAMENTO.Nivel="Nível 2")+8*(ORÇAMENTO.Nivel="Nível 3")+16*(ORÇAMENTO.Nivel="Nível 4")+32*(ORÇAMENTO.Nivel="Serviço"),2),0,1,2,3,4,"S") -> S | B174: 3 | C174: S | D174: 0 | E174: 1 | F174: 4 | G174: 3 | H174: 0 | I174: =IF(AND($C174<=4,$C174<>0),0,IF(AND($C174="S",$W174>0),OFFSET(I174,-1,0)+1,OFFSET(I174,-1,0))) -> 0 | J174: 0 | K174: 0 | M174: Serviço | N174: Serviço | O174: - | P174: SINAPI | Q174: 73781/3 | R174: ISOLADOR DE SUSPENSAO (DISCO) TP CAVILHA CLASSE 15KV - 6''. FORNECIMENTO E INSTALACAO. | S174: UN | T174: 1 | W174: 0
A175: S | B175: 3 | C175: S | D175: 0 | E175: 1 | F175: 4 | G175: 3 | H175: 0 | I175: 0 | J175: 0 | K175: 0 | M175: Serviço | N175: Serviço | O175: - | P175: AGETOP | Q175: 70252 | R175: ARRUELA LISA D=5/16" | S175: Un | T175: 8 | W175: 0
A176: S | B176: 3 | C176: S | D176: 0 | E176: 1 | F176: 4 | G176: 3 | H176: 0 | I176: 0 | J176: 0 | K176: 0 | M176: Serviço | N176: Serviço | O176: - | P176: AGETOP | Q176: 70720 | R176: CAIXA METÁLICA PARA MEDIDOR POLIFÁSICO PADRÃO ENEL 500X380X166MM | S176: Un | T176: 1 | W176: 0
A177: S | B177: 3 | C177: S | D177: 0 | E177: 1 | F177: 4 | G177: 3 | H177: 0 | I177: 0 | J177: 0 | K177: 0 | M177: Serviço | N177: Serviço | O177: - | P177: AGETOP | Q177: 70695 | R177: CAIXA METÁLICA PARA PROTEÇÃO GERAL 580X500X216MM ATÉ 175A | S177: Un | T177: 1 | W177: 0
A178: S | B178: 3 | C178: S | D178: 0 | E178: 1 | F178: 4 | G178: 3 | H178: 0 | I178: 0 | J178: 0 | K178: 0 | M178: Serviço | N178: Serviço | O178: - | P178: AGETOP | Q178: 70725 | R178: CAIXA METÁLICA PARA T.C. 580X500X216MM - ATÉ 175A | S178: Un | T178: 1 | W178: 0
A179: S | B179: 3 | C179: S | D179: 0 | E179: 1 | F179: 4 | G179: 3 | H179: 0 | I179: 0 | J179: =IF(OR($C179="S",$C179=0),0,MATCH(0,OFFSET($D179,1,$C179,ROW($C$1047)-ROW($C179)),0)) -> 0 | K179: =IF(OR($C179="S",$C179=0),0,MATCH(OFFSET($D179,0,$C179)+1,OFFSET($D179,1,$C179,ROW($C$1047)-ROW($C179)),0)) -> 0 | M179: Serviço | N179: Serviço | O179: - | P179: SINAPI | Q179: 93205 | R179: CINTA DE AMARRAÇÃO DE ALVENARIA MOLDADA IN LOCO COM UTILIZAÇÃO DE BLOCOS CANALETA. AF_03/2016 | S179: M | T179: 6 | W179: 0
A180: S | B180: 3 | C180: S | D180: 0 | E180: 1 | F180: 4 | G180: 3 | H180: 0 | I180: 0 | J180: 0 | K180: 0 | M180: Serviço | N180: Serviço | O180: - | P180: AGETOP | Q180: 71268 | R180: ELO FUSÍVEL 6 K | S180: Un | T180: 3 | W180: 0
A181: S | B181: 3 | C181: S | D181: 0 | E181: 1 | F181: 4 | G181: 3 | H181: 0 | I181: 0 | J181: 0 | K181: 0 | M181: Serviço | N181: Serviço | O181: - | P181: AGETOP | Q181: 71186 | R181: DISPOSITIVO DE PROTEÇÃO CONTRA SURTOS (D.P.S.) 275V DE 90KA | S181: Un | T181: 3 | W181: 0
A182: S | B182: 3 | C182: S | D182: 0 | E182: 1 | F182: 4 | G182: 3 | H182: 0 | I182: 0 | J182: 0 | K182: 0 | M182: Serviço | N182: Serviço | O182: - | P182: AGETOP | Q182: 71320 | R182: FITA DE AUTO FUSAO, ROLO DE 2,00 M | S182: Un | T182: 5 | W182: 0
A183: S | B183: 3 | C183: S | D183: 0 | E183: 1 | F183: 4 | G183: 3 | H183: 0 | I183: 0 | J183: 0 | K183: 0 | M183: Serviço | N183: Serviço | O183: - | P183: AGETOP | Q183: 70771 | R183: CANTONEIRA AUXILIAR PARA BRAÇO TIPO C | S183: un | T183: 3 | W183: 0
A184: S | B184: 3 | C184: S | D184: 0 | E184: 1 | F184: 4 | G184: 3 | H184: 0 | I184: 0 | J184: 0 | K184: 0 | M184: Serviço | N184: Serviço | O184: - | P184: SINAPI | Q184: 93022 | R184: CURVA 90 GRAUS PARA ELETRODUTO, PVC, ROSCÁVEL, DN 75 MM (2 1/2") - FORNECIMENTO E INSTALAÇÃO. AF_12/2015 | S184: UN | T184: 2 | W184: 0
A185: S | B185: 3 | C185: S | D185: 0 | E185: 1 | F185: 4 | G185: 3 | H185: 0 | I185: 0 | J185: 0 | K185: 0 | M185: Serviço | N185: Serviço | O185: - | P185: AGETOP | Q185: 72329 | R185: SAPATILHA DE AÇO GALVANIZADO PARA POSTE COM TRANSFORMADOR | S185: un | T185: 3 | W185: 0
A186: S | B186: 3 | C186: S | D186: 0 | E186: 1 | F186: 4 | G186: 3 | H186: 0 | I186: 0 | J186: 0 | K186: 0 | M186: Serviço | N186: Serviço | O186: - | P186: AGETOP | Q186: 71795 | R186: OLHAL PARA PARAFUSO | S186: un | T186: 3 | W186: 0
A187: S | B187: 3 | C187: S | D187: 0 | E187: 1 | F187: 4 | G187: 3 | H187: 0 | I187: 0 | J187: 0 | K187: 0 | M187: Serviço | N187: Serviço | O187: - | P187: AGETOP | Q187: 71761 | R187: MURETA MEDIÇÃO ALVEN. 1 1/2 V.(35CM) REBOC.C/PINTURA ACRÍL. E LAJE CONC. 20MPA MALHA 8.0MM CADA 10CM REVEST.C/ARGAMASSA 1:3 C/ IMPERMEABILIZANTE | S187: m2 | T187: 1 | W187: 0
A188: S | B188: 3 | C188: S | D188: 0 | E188: 1 | F188: 4 | G188: 3 | H188: 0 | I188: 0 | J188: 0 | K188: 0 | M188: Serviço | N188: Serviço | O188: - | P188: AGETOP | Q188: 71776 | R188: NIPLE METALICO Fo.Zo. DIAMETRO 2.1/2" | S188: Un | T188: 1 | W188: 0
A189: S | B189: 3 | C189: S | D189: 0 | E189: 1 | F189: 4 | G189: 3 | H189: 0 | I189: 0 | J189: 0 | K189: 0 | M189: Serviço | N189: Serviço | O189: - | P189: AGETOP | Q189: 71791 | R189: NIPLE DUPLO FERRO GALVANIZADO 2" | S189: Un | T189: 1 | W189: 0
A190: S | B190: 3 | C190: S | D190: 0 | E190: 1 | F190: 4 | G190: 3 | H190: 0 | I190: 0 | J190: 0 | K190: 0 | M190: Serviço | N190: Serviço | O190: - | P190: SINAPI | Q190: 73624 | R190: SUPORTE PARA TRANSFORMADOR EM POSTE DE CONCRETO CIRCULAR | S190: UN | T190: 2 | W190: 0
A191: S | B191: 3 | C191: S | D191: 0 | E191: 1 | F191: 4 | G191: 3 | H191: 0 | I191: 0 | J191: 0 | K191: 0 | M191: Serviço | N191: Serviço | O191: - | P191: AGETOP | Q191: 72060 | R191: POSTE DE CONCRETO SC 11/400 - SEM FUNDAÇÃO/CONCRETO | S191: Un | T191: 1 | W191: 0
A192: S | B192: 3 | C192: S | D192: 0 | E192: 1 | F192: 4 | G192: 3 | H192: 0 | I192: 0 | J192: 0 | K192: 0 | M192: Serviço | N192: Serviço | O192: - | P192: AGETOP | Q192: 72000 | R192: POSTE - ENGASTAMENTO SIMPLES PARA POSTE DE CONCRETO SEÇÃO CIRCULAR | S192: m3 | T192: 0.5 | W192: 0
A193: S | B193: 3 | C193: S | D193: 0 | E193: 1 | F193: 4 | G193: 3 | H193: 0 | I193: 0 | J193: 0 | K193: 0 | M193: Serviço | N193: Serviço | O193: - | P193: SINAPI | Q193: 72263 | R193: TERMINAL OU CONECTOR DE PRESSAO - PARA CABO 50MM2 - FORNECIMENTO E INSTALACAO | S193: UN | T193: 1 | W193: 0
A194: S | B194: 3 | C194: S | D194: 0 | E194: 1 | F194: 4 | G194: 3 | H194: 0 | I194: 0 | J194: 0 | K194: 0 | M194: Serviço | N194: Serviço | O194: - | P194: AGETOP | Q194: 72535 | R194: TERMINAL DE PRESSAO 70 MMM2 | S194: Un | T194: 8 | W194: 0
A195: S | B195: 3 | C195: S | D195: 0 | E195: 1 | F195: 4 | G195: 3 | H195: 0 | I195: 0 | J195: 0 | K195: 0 | M195: Serviço | N195: Serviço | O195: - | P195: AGETOP | Q195: 72528 | R195: TERMINAL DE PRESSAO 35 MM2 | S195: Un | T195: 10 | W195: 0
A196: S | B196: 3 | C196: S | D196: 0 | E196: 1 | F196: 4 | G196: 3 | H196: 0 | I196: 0 | J196: 0 | K196: 0 | M196: Serviço | N196: Serviço | O196: - | P196: AGETOP | Q196: 72518 | R196: TERMINAL DE PRESSAO 10 MM2 | S196: Un | T196: 10 | W196: 0
A197: S | B197: 3 | C197: S | D197: 0 | E197: 1 | F197: 4 | G197: 3 | H197: 0 | I197: 0 | J197: 0 | K197: 0 | M197: Serviço | N197: Serviço | O197: - | P197: SINAPI | Q197: 73857/2 | R197: TRANSFORMADOR DISTRIBUICAO 112,5KVA TRIFASICO 60HZ CLASSE 15KV IMERSO EM ÓLEO MINERAL FORNECIMENTO E INSTALACAO | S197: UN | T197: 1 | W197: 0
A198: S | B198: 3 | C198: S | D198: 0 | E198: 1 | F198: 4 | G198: 3 | H198: 0 | I198: 0 | J198: 0 | K198: 0 | M198: Serviço | N198: Serviço | O198: - | P198: AGETOP | Q198: 72630 | R198: TRILHO OU SUPORTE P/BORNE TERMINAL | S198: M | T198: 0.2 | W198: 0
A199: S | B199: 3 | C199: S | D199: 0 | E199: 1 | F199: 4 | G199: 3 | H199: 0 | I199: 0 | J199: 0 | K199: 0 | M199: Serviço | N199: Serviço | O199: - | P199: AGETOP | Q199: 72080 | R199: POSTE/TRAFO - CAMINHÃO MUNCK 12 TON. (MÍNIMO 4H/DIA) | S199: H | T199: 8 | W199: 0
A200: 2 | B200: 2 | C200: 2 | D200: 149 | E200: 1 | F200: 5 | G200: 0 | H200: 0 | I200: 0 | J200: 391 | K200: 149 | M200: Nível 2 | N200: Nível 2 | O200: - | P200: SINAPI | R200: INSTALAÇÕES HIDROSSANITÁRIAS | S200: - | W200: 0
A201: 3 | B201: 3 | C201: 3 | D201: 31 | E201: 1 | F201: 5 | G201: 1 | H201: 0 | I201: 0 | J201: 148 | K201: 31 | M201: Nível 3 | N201: Nível 3 | O201: - | P201: SINAPI | R201: PEÇAS E ACESSÓRIOS | S201: - | W201: 0
A202: 4 | B202: 4 | C202: 4 | D202: 7 | E202: 1 | F202: 5 | G202: 1 | H202: 1 | I202: 0 | J202: 30 | K202: 7 | M202: Nível 4 | N202: Nível 4 | O202: - | P202: SINAPI | R202: VASO SANITÁRIO E ACESSÓRIOS | S202: - | W202: 0
A203: S | B203: =IF(OR(C203="s",C203=0),OFFSET(B203,-1,0),C203) -> 4 | C203: =IF(OFFSET(C203,-1,0)="L",1,IF(OFFSET(C203,-1,0)=1,2,IF(OR(A203="s",A203=0),"S",IF(AND(OFFSET(C203,-1,0)=2,A203=4),3,IF(AND(OR(OFFSET(C203,-1,0)="s",OFFSET(C203,-1,0)=0),A203<>"s",A203>OFFSET(B203,-1,0)),OFFSET(B203,-1,0),A203))))) -> S | D203: =IF(OR(C203="S",C203=0),0,IF(ISERROR(K203),J203,SMALL(J203:K203,1))) -> 0 | E203: =IF($C203=1,OFFSET(E203,-1,0)+1,OFFSET(E203,-1,0)) -> 1 | F203: =IF($C203=1,0,IF($C203=2,OFFSET(F203,-1,0)+1,OFFSET(F203,-1,0))) -> 5 | G203: =IF(AND($C203<=2,$C203<>0),0,IF($C203=3,OFFSET(G203,-1,0)+1,OFFSET(G203,-1,0))) -> 1 | H203: =IF(AND($C203<=3,$C203<>0),0,IF($C203=4,OFFSET(H203,-1,0)+1,OFFSET(H203,-1,0))) -> 1 | I203: 0 | J203: 0 | K203: 0 | M203: Serviço | N203: Serviço | O203: - | P203: SINAPI | Q203: 95470 | R203: VASO SANITARIO SIFONADO CONVENCIONAL COM LOUÇA BRANCA, INCLUSO CONJUNTO DE LIGAÇÃO PARA BACIA SANITÁRIA AJUSTÁVEL - FORNECIMENTO E INSTALAÇÃO. AF_10/2016 | S203: UN | T203: 9 | W203: 0
A204: S | B204: 4 | C204: S | D204: 0 | E204: 1 | F204: 5 | G204: 1 | H204: 1 | I204: 0 | J204: 0 | K204: 0 | M204: Serviço | N204: Serviço | O204: - | P204: AGETOP | Q204: 80517 | R204: VÁLVULA DE DESCARGA DUPLO ACIONAMENTO COM ACABAMENTO CROMADO ANTIVANDALISMO | S204: Un | T204: 9 | W204: 0
A205: S | B205: 4 | C205: S | D205: 0 | E205: 1 | F205: 5 | G205: 1 | H205: 1 | I205: 0 | J205: 0 | K205: 0 | M205: Serviço | N205: Serviço | O205: - | P205: AGETOP | Q205: 80520 | R205: CONJUNTO DE FIXACAO P/VASO SANITARIO (PAR) | S205: CJ | T205: 9 | W205: 0
A206: S | B206: 4 | C206: S | D206: 0 | E206: 1 | F206: 5 | G206: 1 | H206: 1 | I206: 0 | J206: 0 | K206: 0 | M206: Serviço | N206: Serviço | O206: - | P206: AGETOP | Q206: 80526 | R206: ASSENTO EM POLIPROPILENO COM SISTEMA DE FECHAMENTO SUAVE PARA VASO SANITÁRIO | S206: Un | T206: 9 | W206: 0
... 914 more rows

Sheet Resumo
B3: UNIDADE ESCOLAR | G3: CÓDIGO INEP
B4: =Orçamento!$O$4 -> COLÉGIO ESTADUAL RUY BRASIL CAVALCANTE | G4: =Orçamento!V4 -> 52060993
B6: OBRA | G6: CIDADE
B7: =Orçamento!$O$7 -> AMPLIAÇÃO E REFORMA | G7: =Orçamento!$V$7 -> PIRACANJUBA
B9: ENDEREÇO | G9: CRE
B10: =Orçamento!$R$10 -> PRACA DIMAS COSTA 413, CENTRO, CEP:75640-000 | G10: =Orçamento!$O$10 -> PIRACANJUBA
B12: REFERÊNCIA | D12: DATA | G12: ÁREA TOTAL CONSTRUÍDA (M²)
B13: =CONCATENATE("AGETOP E SINAPI - ",Orçamento!$W$10) -> AGETOP E SINAPI - ONERADA | D13: =Orçamento!$S$7 -> 2020-04-13 | G13: =Orçamento!$S$13 -> 2185.87
A14: FILTRO
B15: RESUMO GERAL DO ORÇAMENTO
A16: ↓ | B16: ITEM | C16: DESCRIÇÃO DOS SERVIÇOS | E16: UNID | F16: QUANT | G16: PREÇO SEM BDI | H16: PREÇO COM BDI | I16: PARTICIP. (%)
A17: =IF(E17>0,"F","") -> F | B17: 1. | C17: =Orçamento!$P1100 -> REFORMA | E17: UN | F17: 1 | G17: =IFERROR(Orçamento!S1100,"-") -> 0 | H17: =IFERROR(Orçamento!V1100,"") -> 0 | I17: =Orçamento!X1100 -> 
A18: =IF(E18>0,"F","") -> F | B18: 2. | C18: =Orçamento!$P1101 -> BLOCO 02 SALAS PADRÃO SEDUC 2017 - LAJE | E18: UN | F18: 1 | G18: =IFERROR(Orçamento!S1101,"-") -> 0 | H18: =IFERROR(Orçamento!V1101,"") -> 0 | I18: =Orçamento!X1101 -> 
A19: F | B19: 3. | C19: =Orçamento!$P1102 -> PÁTIO MULTIUSO - PADRÃO SEDUC - OPÇÃO 03 | E19: UN | F19: 1 | G19: =IFERROR(Orçamento!S1102,"-") -> 0 | H19: =IFERROR(Orçamento!V1102,"") -> 0 | I19: =Orçamento!X1102 -> 
A20: F | B20: 4. | C20: =Orçamento!$P1103 -> COZINHA / PÁTIO / SANITÁRIO SEDUC 2009 | E20: UN | F20: 1 | G20: =IFERROR(Orçamento!S1103,"-") -> 0 | H20: =IFERROR(Orçamento!V1103,"") -> 0 | I20: =Orçamento!X1103 -> 
B21: 5. | C21: =Orçamento!$P1104 ->  | G21: =IFERROR(Orçamento!S1104,"-") -> 0 | H21: =IFERROR(Orçamento!V1104,"") -> 0 | I21: =Orçamento!X1104 -> 
B22: 6. | C22: =Orçamento!$P1105 ->  | G22: =IFERROR(Orçamento!S1105,"-") -> 0 | H22: =IFERROR(Orçamento!V1105,"") -> 0 | I22: =Orçamento!X1105 -> 
B23: 7. | C23: =Orçamento!$P1106 ->  | G23: =IFERROR(Orçamento!S1106,"-") -> 0 | H23: =IFERROR(Orçamento!V1106,"") -> 0 | I23: =Orçamento!X1106 -> 
B24: 8. | C24: =Orçamento!$P1107 ->  | G24: =IFERROR(Orçamento!S1107,"-") -> 0 | H24: =IFERROR(Orçamento!V1107,"") -> 0 | I24: =Orçamento!X1107 -> 
B25: 9. | C25: =Orçamento!$P1108 ->  | G25: =IFERROR(Orçamento!S1108,"-") -> 0 | H25: =IFERROR(Orçamento!V1108,"") -> 0 | I25: =Orçamento!X1108 -> 
B26: 10. | C26: =Orçamento!$P1109 ->  | G26: =IFERROR(Orçamento!S1109,"-") -> 0 | H26: =IFERROR(Orçamento!V1109,"") -> 0 | I26: =Orçamento!X1109 -> 
B27: 11. | C27: =Orçamento!$P1110 ->  | G27: =IFERROR(Orçamento!S1110,"-") -> 0 | H27: =IFERROR(Orçamento!V1110,"") -> 0 | I27: =Orçamento!X1110 -> 
B28: 12. | C28: =Orçamento!$P1111 ->  | G28: =IFERROR(Orçamento!S1111,"-") -> 0 | H28: =IFERROR(Orçamento!V1111,"") -> 0 | I28: =Orçamento!X1111 -> 
B29: 13. | C29: =Orçamento!$P1112 ->  | G29: =IFERROR(Orçamento!S1112,"-") -> 0 | H29: =IFERROR(Orçamento!V1112,"") -> 0 | I29: =Orçamento!X1112 -> 
B30: 14. | C30: =Orçamento!$P1113 ->  | G30: =IFERROR(Orçamento!S1113,"-") -> 0 | H30: =IFERROR(Orçamento!V1113,"") -> 0 | I30: =Orçamento!X1113 -> 
B31: 15. | C31: =Orçamento!$P1114 ->  | G31: =IFERROR(Orçamento!S1114,"-") -> 0 | H31: =IFERROR(Orçamento!V1114,"") -> 0 | I31: =Orçamento!X1114 -> 
B32: 16. | C32: =Orçamento!$P1115 ->  | G32: =IFERROR(Orçamento!S1115,"-") -> 0 | H32: =IFERROR(Orçamento!V1115,"") -> 0 | I32: =Orçamento!X1115 -> 
B33: 17. | C33: =Orçamento!$P1116 ->  | G33: =IFERROR(Orçamento!S1116,"-") -> 0 | H33: =IFERROR(Orçamento!V1116,"") -> 0 | I33: =Orçamento!X1116 -> 
B34: 18. | C34: =Orçamento!$P1117 ->  | G34: =IFERROR(Orçamento!S1117,"-") -> 0 | H34: =IFERROR(Orçamento!V1117,"") -> 0 | I34: =Orçamento!X1117 -> 
B35: 19. | C35: =Orçamento!$P1118 ->  | G35: =IFERROR(Orçamento!S1118,"-") -> 0 | H35: =IFERROR(Orçamento!V1118,"") -> 0 | I35: =Orçamento!X1118 -> 
B36: 20. | C36: =Orçamento!$P1119 ->  | G36: =IFERROR(Orçamento!S1119,"-") -> 0 | H36: =IFERROR(Orçamento!V1119,"") -> 0 | I36: =Orçamento!X1119 -> 
A37: F | B37: TOTAL GERAL DO ORÇAMENTO (R$) | G37: =SUM(G17:G36) -> 0 | H37: 0 | I37: =SUM(I17:I36) -> 
A38: F
A39: F

Sheet Somatório
B3: UNIDADE ESCOLAR | E3: CÓDIGO INEP
B4: =Orçamento!$O$4 -> COLÉGIO ESTADUAL RUY BRASIL CAVALCANTE | E4: =Orçamento!V4 -> 52060993
B6: OBRA | E6: CIDADE
B7: =Orçamento!$O$7 -> AMPLIAÇÃO E REFORMA | E7: =Orçamento!$V$7 -> PIRACANJUBA
B9: ENDEREÇO | E9: CRE
B10: =Orçamento!$R$10 -> PRACA DIMAS COSTA 413, CENTRO, CEP:75640-000 | E10: =Orçamento!$O$10 -> PIRACANJUBA
B12: REFERÊNCIA | D12: DATA | E12: ÁREA TOTAL CONSTRUÍDA (M²)
B13: =CONCATENATE("AGETOP E SINAPI - ",Orçamento!$W$10) -> AGETOP E SINAPI - ONERADA | D13: =Orçamento!$S$7 -> 2020-04-13 | E13: =Orçamento!$S$13 -> 2185.87
A14: FILTRO
B15: SOMATÓRIO DE SERVIÇOS
A16: ↓ | B16: ITEM | C16: DESCRIÇÃO DOS SERVIÇOS | D16: PREÇO SEM BDI (R$) | E16: PREÇO COM BDI (R$) | F16: PARTIC. ( % )
A17: =IF(D17>0,"F","") ->  | B17: a. | C17: =Orçamento!P1066 -> SERVIÇOS PRELIMINARES | D17: =Orçamento!S1066 -> 0 | E17: =Orçamento!V1066 -> 0 | F17: =Orçamento!X1066 -> 0
A18: =IF(D18>0,"F","") ->  | B18: b. | C18: =Orçamento!P1067 -> TRANSPORTES | D18: =Orçamento!S1067 -> 0 | E18: =Orçamento!V1067 -> 0 | F18: =Orçamento!X1067 -> 0
B19: c. | C19: =Orçamento!P1068 -> SERVIÇO EM TERRA | D19: =Orçamento!S1068 -> 0 | E19: =Orçamento!V1068 -> 0 | F19: =Orçamento!X1068 -> 0
B20: d. | C20: =Orçamento!P1069 -> FUNDAÇÕES E SONDAGENS | D20: =Orçamento!S1069 -> 0 | E20: =Orçamento!V1069 -> 0 | F20: =Orçamento!X1069 -> 0
B21: e. | C21: =Orçamento!P1070 -> ESTRUTURA | D21: =Orçamento!S1070 -> 0 | E21: =Orçamento!V1070 -> 0 | F21: =Orçamento!X1070 -> 0
B22: f. | C22: =Orçamento!P1071 -> INSTALAÇÕES ELÉTRICAS | D22: =Orçamento!S1071 -> 0 | E22: =Orçamento!V1071 -> 0 | F22: =Orçamento!X1071 -> 0
B23: g. | C23: =Orçamento!P1072 -> INSTALAÇÕES HIDROSSANITÁRIAS | D23: =Orçamento!S1072 -> 0 | E23: =Orçamento!V1072 -> 0 | F23: =Orçamento!X1072 -> 0
B24: h. | C24: =Orçamento!P1073 -> INSTALAÇÕES ESPECIAIS | D24: =Orçamento!S1073 -> 0 | E24: =Orçamento!V1073 -> 0 | F24: =Orçamento!X1073 -> 0
B25: i. | C25: =Orçamento!P1074 -> ALVENARIAS E DIVISÓRIAS | D25: =Orçamento!S1074 -> 0 | E25: =Orçamento!V1074 -> 0 | F25: =Orçamento!X1074 -> 0
B26: j. | C26: =Orçamento!P1075 -> ALVENARIA AUTO-PORTANTE | D26: =Orçamento!S1075 -> 0 | E26: =Orçamento!V1075 -> 0 | F26: =Orçamento!X1075 -> 0
B27: k. | C27: =Orçamento!P1076 -> IMPERMEABILIZAÇÃO | D27: =Orçamento!S1076 -> 0 | E27: =Orçamento!V1076 -> 0 | F27: =Orçamento!X1076 -> 0
B28: l. | C28: =Orçamento!P1077 -> ISOLAMENTO TÉRMICO E ACÚSTICO | D28: =Orçamento!S1077 -> 0 | E28: =Orçamento!V1077 -> 0 | F28: =Orçamento!X1077 -> 0
B29: m. | C29: =Orçamento!P1078 -> ESTRUTURA DE MADEIRA | D29: =Orçamento!S1078 -> 0 | E29: =Orçamento!V1078 -> 0 | F29: =Orçamento!X1078 -> 0
B30: n. | C30: =Orçamento!P1079 -> ESTRUTURAS METÁLICAS | D30: =Orçamento!S1079 -> 0 | E30: =Orçamento!V1079 -> 0 | F30: =Orçamento!X1079 -> 0
B31: o. | C31: =Orçamento!P1080 -> COBERTURAS | D31: =Orçamento!S1080 -> 0 | E31: =Orçamento!V1080 -> 0 | F31: =Orçamento!X1080 -> 0
B32: p. | C32: =Orçamento!P1081 -> ESQUADRIAS DE MADEIRA | D32: =Orçamento!S1081 -> 0 | E32: =Orçamento!V1081 -> 0 | F32: =Orçamento!X1081 -> 0
B33: q. | C33: =Orçamento!P1082 -> ESQUADRIAS METÁLICAS | D33: =Orçamento!S1082 -> 0 | E33: =Orçamento!V1082 -> 0 | F33: =Orçamento!X1082 -> 0
B34: r. | C34: =Orçamento!P1083 -> VIDROS | D34: =Orçamento!S1083 -> 0 | E34: =Orçamento!V1083 -> 0 | F34: =Orçamento!X1083 -> 0
B35: s. | C35: =Orçamento!P1084 -> REVESTIMENTO DE PAREDE | D35: =Orçamento!S1084 -> 0 | E35: =Orçamento!V1084 -> 0 | F35: =Orçamento!X1084 -> 0
B36: t. | C36: =Orçamento!P1085 -> FORROS | D36: =Orçamento!S1085 -> 0 | E36: =Orçamento!V1085 -> 0 | F36: =Orçamento!X1085 -> 0
B37: u. | C37: =Orçamento!P1086 -> REVESTIMENTO DE PISO | D37: =Orçamento!S1086 -> 0 | E37: =Orçamento!V1086 -> 0 | F37: =Orçamento!X1086 -> 0
B38: v. | C38: =Orçamento!P1087 -> FERRAGENS | D38: =Orçamento!S1087 -> 0 | E38: =Orçamento!V1087 -> 0 | F38: =Orçamento!X1087 -> 0
B39: w. | C39: =Orçamento!P1088 -> MARCENARIA | D39: =Orçamento!S1088 -> 0 | E39: =Orçamento!V1088 -> 0 | F39: =Orçamento!X1088 -> 0
B40: x. | C40: =Orçamento!P1089 -> ADMINISTRAÇÃO | D40: =Orçamento!S1089 -> 0 | E40: =Orçamento!V1089 -> 0 | F40: =Orçamento!X1089 -> 0
B41: y. | C41: =Orçamento!P1090 -> PINTURA | D41: =Orçamento!S1090 -> 0 | E41: =Orçamento!V1090 -> 0 | F41: =Orçamento!X1090 -> 0
B42: z. | C42: =Orçamento!P1091 -> DIVERSOS | D42: =Orçamento!S1091 -> 0 | E42: =Orçamento!V1091 -> 0 | F42: =Orçamento!X1091 -> 0
A43: F | B43: TOTAL GERAL DO ORÇAMENTO | D43: =SUM(D17:D42) -> 0 | E43: =SUM(E17:E42) -> 0 | F43: =SUM(F17:F42) -> 0
B45: (*) Para itens da AGETOP, os vidros não estão inclusos nas esquadrias e já foram considerados os custos de contramarco para as esquadrias de alumínio;

Sheet Cronog_150_Dias
B3: UNIDADE ESCOLAR | I3: PRAZO
B4: =Orçamento!O4 -> COLÉGIO ESTADUAL RUY BRASIL CAVALCANTE | I4: 150 DIAS CORRIDOS
B6: OBRA | I6: DATA
B7: =Orçamento!O7 -> AMPLIAÇÃO E REFORMA | I7: =Orçamento!S7 -> 2020-04-13
B9: LOCAL | I9: ÁREA TOTAL CONSTRUÍDA (M²)
A10: FILTRO | B10: =Orçamento!V7 -> PIRACANJUBA | I10: =Orçamento!S13 -> 2185.87
B12: CRONOGRAMA - FÍSICO FINANCEIRO
A13: ↓ | B13: CUSTO TOTAL: | C13: =D93 -> 0 | D13: VALOR | E13: Dias: | F13: 30 | J13: 60 | N13: 90 | R13: 120 | V13: 150 | Z13: TOTAL
B14: DESCRIÇÃO DOS SERVIÇOS | E14: % | F14: 1ª PARCELA | J14: 2ª PARCELA | N14: 3ª PARCELA | R14: 4ª PARCELA | V14: 5ª PARCELA
A15: =IF(D15>0,"F","") ->  | B15: SERVIÇOS PRELIMINARES | D15: =Orçamento!V1066 -> 0 | E15: =Orçamento!X1066 -> 0 | F15: =ROUND(F17*$D$15,2) -> 0 | J15: =ROUND(J17*$D$15,2) -> 0 | N15: =ROUND(N17*$D$15,2) -> 0 | R15: =ROUND(R17*$D$15,2) -> 0 | V15: =ROUND(V17*$D$15,2) -> 0 | Z15: =SUM(F15:Y15) -> 0
A16: =IF(A15="F",A15,"") -> 
A17: =IF(A16="F",A16,"") ->  | F17: 1 | J17: 0 | N17: 0 | R17: 0 | V17: =100%-(SUM(F17:U17)) -> 0 | Z17: =IFERROR(E15/100,"") -> 0
A18: =IF(D18>0,"F","") ->  | B18: TRANSPORTES | D18: =Orçamento!V1067 -> 0 | E18: =Orçamento!X1067 -> 0 | F18: =ROUND(F20*$D$18,2)+0.01 -> 0.01 | J18: =ROUND(J20*$D$18,2) -> 0 | N18: =ROUND(N20*$D$18,2) -> 0 | R18: =ROUND(R20*$D$18,2) -> 0 | V18: =ROUND(V20*$D$18,2) -> 0 | Z18: =SUM(F18:Y18) -> 0.01
A19: =IF(A18="F",A18,"") -> 
A20: =IF(A19="F",A19,"") ->  | F20: 0.21 | J20: 0.2 | N20: 0.2 | R20: 0.2 | V20: =100%-(SUM(F20:U20)) -> 0.19 | Z20: =IFERROR(E18/100,"") -> 0
A21: =IF(D21>0,"F","") ->  | B21: SERVIÇO EM TERRA | D21: =Orçamento!V1068 -> 0 | E21: =Orçamento!X1068 -> 0 | F21: =ROUND(F23*$D$21,2) -> 0 | J21: =ROUND(J23*$D$21,2) -> 0 | N21: =ROUND(N23*$D$21,2) -> 0 | R21: =ROUND(R23*$D$21,2) -> 0 | V21: =ROUND(V23*$D$21,2) -> 0 | Z21: =SUM(F21:Y21) -> 0
A22: =IF(A21="F",A21,"") -> 
A23: =IF(A22="F",A22,"") ->  | F23: 0.79 | J23: 0.21 | N23: 0 | R23: 0 | V23: =100%-(SUM(F23:U23)) -> 0 | Z23: =IFERROR(E21/100,"") -> 0
A24: =IF(D24>0,"F","") ->  | B24: FUNDAÇÕES E SONDAGENS | D24: =Orçamento!V1069 -> 0 | E24: =Orçamento!X1069 -> 0 | F24: =ROUND(F26*$D$24,2) -> 0 | J24: =ROUND(J26*$D$24,2) -> 0 | N24: =ROUND(N26*$D$24,2) -> 0 | R24: =ROUND(R26*$D$24,2) -> 0 | V24: =ROUND(V26*$D$24,2) -> 0 | Z24: =SUM(F24:Y24) -> 0
A25: =IF(A24="F",A24,"") -> 
A26: =IF(A25="F",A25,"") ->  | F26: 0.44 | J26: 0.56 | V26: =100%-(SUM(F26:U26)) -> 0 | Z26: =IFERROR(E24/100,"") -> 0
A27: =IF(D27>0,"F","") ->  | B27: ESTRUTURA | D27: =Orçamento!V1070 -> 0 | E27: =Orçamento!X1070 -> 0 | F27: =ROUND(F29*$D$27,2) -> 0 | J27: =ROUND(J29*$D$27,2) -> 0 | N27: =ROUND(N29*$D$27,2) -> 0 | R27: =ROUND(R29*$D$27,2) -> 0 | V27: =ROUND(V29*$D$27,2) -> 0 | Z27: =SUM(F27:Y27) -> 0
A28: =IF(A27="F",A27,"") -> 
A29: =IF(A28="F",A28,"") ->  | J29: 1 | R29: 0 | V29: =100%-(SUM(F29:U29)) -> 0 | Z29: =IFERROR(E27/100,"") -> 0
A30: =IF(D30>0,"F","") ->  | B30: INST.ELET/TELEFÔNICA/CABEAMENTO ESTRUTURADO | D30: =Orçamento!V1071 -> 0 | E30: =Orçamento!X1071 -> 0 | F30: =ROUND(F32*$D$30,2) -> 0 | J30: =ROUND(J32*$D$30,2) -> 0 | N30: =ROUND(N32*$D$30,2) -> 0 | R30: =ROUND(R32*$D$30,2) -> 0 | V30: =ROUND(V32*$D$30,2) -> 0 | Z30: =SUM(F30:Y30) -> 0
A31: =IF(A30="F",A30,"") -> 
A32: =IF(A31="F",A31,"") ->  | J32: 0.38 | N32: 0.62 | R32: 0 | V32: =100%-(SUM(F32:U32)) -> 0 | Z32: =IFERROR(E30/100,"") -> 0
A33: =IF(D33>0,"F","") ->  | B33: INSTALAÇÕES HIDROSSANITÁRIAS | D33: =Orçamento!V1072 -> 0 | E33: =Orçamento!X1072 -> 0 | F33: =ROUND(F35*$D$33,2) -> 0 | J33: =ROUND(J35*$D$33,2) -> 0 | N33: =ROUND(N35*$D$33,2) -> 0 | R33: =ROUND(R35*$D$33,2) -> 0 | V33: =ROUND(V35*$D$33,2) -> 0 | Z33: =SUM(F33:Y33) -> 0
A34: =IF(A33="F",A33,"") -> 
A35: =IF(A34="F",A34,"") ->  | J35: 0.38 | N35: 0.62 | R35: 0 | V35: =100%-(SUM(F35:U35)) -> 0 | Z35: =IFERROR(E33/100,"") -> 0
A36: =IF(D36>0,"F","") ->  | B36: INSTALAÇÕES ESPECIAIS | D36: =Orçamento!V1073 -> 0 | E36: =Orçamento!X1073 -> 0 | F36: =ROUND(F38*$D$36,2) -> 0 | J36: =ROUND(J38*$D$36,2) -> 0 | N36: =ROUND(N38*$D$36,2) -> 0 | R36: =ROUND(R38*$D$36,2) -> 0 | V36: =ROUND(V38*$D$36,2) -> 0 | Z36: =SUM(F36:Y36) -> 0
A37: =IF(A36="F",A36,"") -> 
A38: =IF(A37="F",A37,"") ->  | N38: 0.7 | R38: 0.3 | V38: =100%-(SUM(F38:U38)) -> 0 | Z38: =IFERROR(E36/100,"") -> 0
A39: =IF(D39>0,"F","") ->  | B39: ALVENARIA E DIVISÓRIAS | D39: =Orçamento!V1074 -> 0 | E39: =Orçamento!X1074 -> 0 | F39: =ROUND(F41*$D$39,2) -> 0 | J39: =ROUND(J41*$D$39,2) -> 0 | N39: =ROUND(N41*$D$39,2) -> 0 | R39: =ROUND(R41*$D$39,2) -> 0 | V39: =ROUND(V41*$D$39,2) -> 0 | Z39: =SUM(F39:Y39) -> 0
A40: =IF(A39="F",A39,"") -> 
A41: =IF(A40="F",A40,"") ->  | N41: 1 | R41: 0 | V41: =100%-(SUM(F41:U41)) -> 0 | Z41: =IFERROR(E39/100,"") -> 0
A42: =IF(D42>0,"F","") ->  | B42: ALVENARIA AUTO-PORTANTE | D42: =Orçamento!V1075 -> 0 | E42: =Orçamento!X1075 -> 0 | F42: =ROUND(F44*$D$42,2) -> 0 | J42: =ROUND(J44*$D$42,2) -> 0 | N42: =ROUND(N44*$D$42,2) -> 0 | R42: =ROUND(R44*$D$42,2) -> 0 | V42: =ROUND(V44*$D$42,2) -> 0 | Z42: =SUM(F42:Y42) -> 0
A43: =IF(A42="F",A42,"") -> 
A44: =IF(A43="F",A43,"") ->  | N44: 1 | R44: 0 | V44: =100%-(SUM(F44:U44)) -> 0 | Z44: =IFERROR(E42/100,"") -> 0
A45: =IF(D45>0,"F","") ->  | B45: IMPERMEABILIZAÇÃO | D45: =Orçamento!V1076 -> 0 | E45: =Orçamento!X1076 -> 0 | F45: =ROUND(F47*$D$45,2) -> 0 | J45: =ROUND(J47*$D$45,2) -> 0 | N45: =ROUND(N47*$D$45,2) -> 0 | R45: =ROUND(R47*$D$45,2) -> 0 | V45: =ROUND(V47*$D$45,2) -> 0 | Z45: =SUM(F45:Y45) -> 0
A46: =IF(A45="F",A45,"") -> 
A47: =IF(A46="F",A46,"") ->  | J47: 0.86 | N47: 0.14 | R47: 0 | V47: =100%-(SUM(F47:U47)) -> 0 | Z47: =IFERROR(E45/100,"") -> 0
A48: =IF(D48>0,"F","") ->  | B48: ISOLAMENTO TÉRMICO E ACÚSTICO | D48: =Orçamento!V1077 -> 0 | E48: =Orçamento!X1077 -> 0 | F48: =ROUND(F50*$D$48,2) -> 0 | J48: =ROUND(J50*$D$48,2) -> 0 | N48: =ROUND(N50*$D$48,2) -> 0 | R48: =ROUND(R50*$D$48,2) -> 0 | V48: =ROUND(V50*$D$48,2) -> 0 | Z48: =SUM(F48:Y48) -> 0
A49: =IF(A48="F",A48,"") -> 
A50: =IF(A49="F",A49,"") ->  | N50: 1 | V50: =100%-(SUM(F50:U50)) -> 0 | Z50: =IFERROR(E48/100,"") -> 0
A51: =IF(D51>0,"F","") ->  | B51: ESTRUTURA DE MADEIRA | D51: =Orçamento!V1078 -> 0 | E51: =Orçamento!X1078 -> 0 | F51: =ROUND(F53*$D$51,2) -> 0 | J51: =ROUND(J53*$D$51,2) -> 0 | N51: =ROUND(N53*$D$51,2) -> 0 | R51: =ROUND(R53*$D$51,2) -> 0 | V51: =ROUND(V53*$D$51,2) -> 0 | Z51: =SUM(F51:Y51) -> 0
A52: =IF(A51="F",A51,"") -> 
A53: =IF(A52="F",A52,"") ->  | N53: 0 | R53: 1 | V53: =100%-(SUM(F53:U53)) -> 0 | Z53: =IFERROR(E51/100,"") -> 0
A54: =IF(D54>0,"F","") ->  | B54: ESTRUTURA METÁLICA | D54: =Orçamento!V1079 -> 0 | E54: =Orçamento!X1079 -> 0 | F54: =ROUND(F56*$D$54,2) -> 0 | J54: =ROUND(J56*$D$54,2) -> 0 | N54: =ROUND(N56*$D$54,2) -> 0 | R54: =ROUND(R56*$D$54,2) -> 0 | V54: =ROUND(V56*$D$54,2) -> 0 | Z54: =SUM(F54:Y54) -> 0
A55: =IF(A54="F",A54,"") -> 
A56: =IF(A55="F",A55,"") ->  | N56: 0 | R56: 1 | V56: =100%-(SUM(F56:U56)) -> 0 | Z56: =IFERROR(E54/100,"") -> 0
A57: =IF(D57>0,"F","") ->  | B57: COBERTURAS | D57: =Orçamento!V1080 -> 0 | E57: =Orçamento!X1080 -> 0 | F57: =ROUND(F59*$D$57,2) -> 0 | J57: =ROUND(J59*$D$57,2) -> 0 | N57: =ROUND(N59*$D$57,2) -> 0 | R57: =ROUND(R59*$D$57,2) -> 0 | V57: =ROUND(V59*$D$57,2) -> 0 | Z57: =SUM(F57:Y57) -> 0
A58: =IF(A57="F",A57,"") -> 
A59: =IF(A58="F",A58,"") ->  | N59: 0 | R59: 1 | V59: =100%-(SUM(F59:U59)) -> 0 | Z59: =IFERROR(E57/100,"") -> 0
A60: =IF(D60>0,"F","") ->  | B60: ESQUADRIAS DE MADEIRA | D60: =Orçamento!V1081 -> 0 | E60: =Orçamento!X1081 -> 0 | F60: =ROUND(F62*$D$60,2) -> 0 | J60: =ROUND(J62*$D$60,2) -> 0 | N60: =ROUND(N62*$D$60,2) -> 0 | R60: =ROUND(R62*$D$60,2) -> 0 | V60: =ROUND(V62*$D$60,2) -> 0 | Z60: =SUM(F60:Y60) -> 0
A61: =IF(A60="F",A60,"") -> 
A62: =IF(A61="F",A61,"") ->  | R62: 0.35 | V62: =100%-(SUM(F62:U62)) -> 0.65 | Z62: =IFERROR(E60/100,"") -> 0
A63: =IF(D63>0,"F","") ->  | B63: ESQUADRIAS METÁLICAS | D63: =Orçamento!V1082 -> 0 | E63: =Orçamento!X1082 -> 0 | F63: =ROUND(F65*$D$63,2) -> 0 | J63: =ROUND(J65*$D$63,2) -> 0 | N63: =ROUND(N65*$D$63,2) -> 0 | R63: =ROUND(R65*$D$63,2) -> 0 | V63: =ROUND(V65*$D$63,2) -> 0 | Z63: =SUM(F63:Y63) -> 0
A64: =IF(A63="F",A63,"") -> 
A65: =IF(A64="F",A64,"") ->  | R65: 0.35 | V65: =100%-(SUM(F65:U65)) -> 0.65 | Z65: =IFERROR(E63/100,"") -> 0
A66: =IF(D66>0,"F","") ->  | B66: VIDROS | D66: =Orçamento!V1083 -> 0 | E66: =Orçamento!X1083 -> 0 | F66: =ROUND(F68*$D$66,2) -> 0 | J66: =ROUND(J68*$D$66,2) -> 0 | N66: =ROUND(N68*$D$66,2) -> 0 | R66: =ROUND(R68*$D$66,2) -> 0 | V66: =ROUND(V68*$D$66,2) -> 0 | Z66: =SUM(F66:Y66) -> 0
A67: =IF(A66="F",A66,"") -> 
A68: =IF(A67="F",A67,"") ->  | R68: 0 | V68: 1 | Z68: =IFERROR(E66/100,"") -> 0
A69: =IF(D69>0,"F","") ->  | B69: REVESTIMENTO DE PAREDE | D69: =Orçamento!V1084 -> 0 | E69: =Orçamento!X1084 -> 0 | F69: =ROUND(F71*$D$69,2) -> 0 | J69: =ROUND(J71*$D$69,2) -> 0 | N69: =ROUND(N71*$D$69,2) -> 0 | R69: =ROUND(R71*$D$69,2) -> 0 | V69: =ROUND(V71*$D$69,2) -> 0 | Z69: =SUM(F69:Y69) -> 0
A70: =IF(A69="F",A69,"") -> 
A71: =IF(A70="F",A70,"") ->  | N71: 0 | R71: 1 | V71: =100%-(SUM(F71:U71)) -> 0 | Z71: =IFERROR(E69/100,"") -> 0
A72: =IF(D72>0,"F","") ->  | B72: FORROS | D72: =Orçamento!V1085 -> 0 | E72: =Orçamento!X1085 -> 0 | F72: =ROUND(F74*$D$72,2) -> 0 | J72: =ROUND(J74*$D$72,2) -> 0 | N72: =ROUND(N74*$D$72,2) -> 0 | R72: =ROUND(R74*$D$72,2) -> 0 | V72: =ROUND(V74*$D$72,2) -> 0 | Z72: =SUM(F72:Y72) -> 0
A73: =IF(A72="F",A72,"") -> 
A74: =IF(A73="F",A73,"") ->  | N74: 0 | R74: 0.4 | V74: =100%-(SUM(F74:U74)) -> 0.6 | Z74: =IFERROR(E72/100,"") -> 0
A75: =IF(D75>0,"F","") ->  | B75: REVESTIMENTO DE PISO | D75: =Orçamento!V1086 -> 0 | E75: =Orçamento!X1086 -> 0 | F75: =ROUND(F77*$D$75,2) -> 0 | J75: =ROUND(J77*$D$75,2) -> 0 | N75: =ROUND(N77*$D$75,2) -> 0 | R75: =ROUND(R77*$D$75,2) -> 0 | V75: =ROUND(V77*$D$75,2) -> 0 | Z75: =SUM(F75:Y75) -> 0
A76: =IF(A75="F",A75,"") -> 
A77: =IF(A76="F",A76,"") ->  | R77: 0.4 | V77: =100%-(SUM(F77:U77)) -> 0.6 | Z77: =IFERROR(E75/100,"") -> 0
A78: =IF(D78>0,"F","") ->  | B78: FERRAGENS | D78: =Orçamento!V1087 -> 0 | E78: =Orçamento!X1087 -> 0 | F78: =ROUND(F80*$D$78,2) -> 0 | J78: =ROUND(J80*$D$78,2) -> 0 | N78: =ROUND(N80*$D$78,2) -> 0 | R78: =ROUND(R80*$D$78,2) -> 0 | V78: =ROUND(V80*$D$78,2) -> 0 | Z78: =SUM(F78:Y78) -> 0
A79: =IF(A78="F",A78,"") -> 
A80: =IF(A79="F",A79,"") ->  | V80: =100%-(SUM(F80:U80)) -> 1 | Z80: =IFERROR(E78/100,"") -> 0
A81: =IF(D81>0,"F","") ->  | B81: MARCENARIA | D81: =Orçamento!V1088 -> 0 | E81: =Orçamento!X1088 -> 0 | F81: =ROUND(F83*$D$81,2) -> 0 | J81: =ROUND(J83*$D$81,2) -> 0 | N81: =ROUND(N83*$D$81,2) -> 0 | R81: =ROUND(R83*$D$81,2) -> 0 | V81: =ROUND(V83*$D$81,2) -> 0 | Z81: =SUM(F81:Y81) -> 0
A82: =IF(A81="F",A81,"") -> 
A83: =IF(A82="F",A82,"") ->  | V83: =100%-(SUM(F83:U83)) -> 1 | Z83: =IFERROR(E81/100,"") -> 0
A84: =IF(D84>0,"F","") ->  | B84: ADMINISTRAÇÃO - MENSALISTAS | D84: =Orçamento!V1089 -> 0 | E84: =Orçamento!X1089 -> 0 | F84: =ROUND(F86*$D$84,2) -> 0 | J84: =ROUND(J86*$D$84,2) -> 0 | N84: =ROUND(N86*$D$84,2) -> 0 | R84: =ROUND(R86*$D$84,2) -> 0 | V84: =ROUND(V86*$D$84,2) -> 0 | Z84: =SUM(F84:Y84) -> 0
A85: =IF(A84="F",A84,"") -> 
A86: =IF(A85="F",A85,"") ->  | F86: 0.23 | J86: 0.2 | N86: 0.2 | R86: 0.2 | V86: =100%-(SUM(F86:U86)) -> 0.17 | Z86: =IFERROR(E84/100,"") -> 0
A87: =IF(D87>0,"F","") ->  | B87: PINTURA | D87: =Orçamento!V1090 -> 0 | E87: =Orçamento!X1090 -> 0 | F87: =ROUND(F89*$D$87,2) -> 0 | J87: =ROUND(J89*$D$87,2) -> 0 | N87: =ROUND(N89*$D$87,2) -> 0 | R87: =ROUND(R89*$D$87,2) -> 0 | V87: =ROUND(V89*$D$87,2) -> 0 | Z87: =SUM(F87:Y87) -> 0
A88: =IF(A87="F",A87,"") -> 
A89: =IF(A88="F",A88,"") ->  | R89: 0.36 | V89: =100%-(SUM(F89:U89)) -> 0.64 | Z89: =IFERROR(E87/100,"") -> 0
A90: =IF(D90>0,"F","") ->  | B90: DIVERSOS | D90: =Orçamento!V1091 -> 0 | E90: =Orçamento!X1091 -> 0 | F90: =ROUND(F92*$D$90,2)+0.01 -> 0.01 | J90: =ROUND(J92*$D$90,2) -> 0 | N90: =ROUND(N92*$D$90,2) -> 0 | R90: =ROUND(R92*$D$90,2) -> 0 | V90: =ROUND(V92*$D$90,2) -> 0 | Z90: =SUM(F90:Y90) -> 0.01
A91: =IF(A90="F",A90,"") -> 
A92: =IF(A91="F",A91,"") ->  | F92: 0.23 | J92: 0.2 | N92: 0.2 | R92: 0.2 | V92: =100%-(SUM(F92:U92)) -> 0.17 | Z92: =IFERROR(E90/100,"") -> 0
A93: F | B93: CUSTO DO ORÇAMENTO | D93: =SUM(D15:D92) -> 0 | E93: =SUM(E15:E92) -> 0 | F93: =F15+F18+F21+F24+F27+F30+F33+F36+F39+F42+F45+F48+F51+F54+F57+F60+F63+F66+F69+F72+F75+F78+F81+F84+F87+F90 -> 0.02 | J93: =J15+J18+J21+J24+J27+J30+J33+J36+J39+J42+J45+J48+J51+J54+J57+J60+J63+J66+J69+J72+J75+J78+J81+J84+J87+J90 -> 0 | N93: =N15+N18+N21+N24+N27+N30+N33+N36+N39+N42+N45+N48+N51+N54+N57+N60+N63+N66+N69+N72+N75+N78+N81+N84+N87+N90 -> 0 | R93: =R15+R18+R21+R24+R27+R30+R33+R36+R39+R42+R45+R48+R51+R54+R57+R60+R63+R66+R69+R72+R75+R78+R81+R84+R87+R90 -> 0 | V93: =V15+V18+V21+V24+V27+V30+V33+V36+V39+V42+V45+V48+V51+V54+V57+V60+V63+V66+V69+V72+V75+V78+V81+V84+V87+V90 -> 0 | Z93: =Z15+Z18+Z21+Z24+Z27+Z30+Z33+Z36+Z39+Z42+Z45+Z48+Z51+Z54+Z57+Z60+Z63+Z66+Z69+Z72+Z75+Z78+Z81+Z84+Z87+Z90 -> 0.02
A94: F | B94: PERCENTUAIS: | F94: =IFERROR(F93/$D$93,"") ->  | J94: =IFERROR(J93/$D$93,"") ->  | N94: =IFERROR(N93/$D$93,"") ->  | R94: =IFERROR(R93/$D$93,"") ->  | V94: =IFERROR(V93/$D$93,"") ->  | Z94: =SUM(F94:Y94) -> 0
A95: F | B95: TOTAIS ACUMULADOS: | F95: =F93 -> 0.02 | J95: =J93+F95 -> 0.02 | N95: =N93+J95 -> 0.02 | R95: =R93+N95 -> 0.02 | V95: =V93+R95 -> 0.02
A96: F | B96: PERCENTUAIS ACUMULADOS: | F96: =F94 ->  | J96: =J94+F96 ->  | N96: =N94+J96 ->  | R96: =R94+N96 ->  | V96: =V94+R96 -> 
A97: F
A98: F | B98: OBSERVAÇÕES:
A99: F | B99: Os pagamentos somente poderão ser efetuados mediante medição e atesto pelos técnicos da Secretaria da Educação.

Sheet Composição BDI
A3: UNIDADE ESCOLAR
A4: =Orçamento!$O$4 -> COLÉGIO ESTADUAL RUY BRASIL CAVALCANTE
A6: OBRA
A7: =Orçamento!$O$7 -> AMPLIAÇÃO E REFORMA
A9: ENDEREÇO
A10: =Orçamento!$R$10 -> PRACA DIMAS COSTA 413, CENTRO, CEP:75640-000
A12: CIDADE
A13: =Orçamento!$V$7 -> PIRACANJUBA
A15: CRE
A16: =Orçamento!$O$10 -> PIRACANJUBA
A18: DETALHAMENTO DA COMPOSIÇÃO DE BDI
A19: COMPOSIÇÃO BDI PARA OBRAS CIVIS | F19: BDI CONSTRUÇÃO E REFORMA
A20: DESCRIÇÃO | B20: COEF. | C20: TAXA % (a.m) | D20: % no preço de venda | F20: Situação | G20: 1º Quartil | H20: Médio | I20: 3º Quartil
A21: 1) COFINS | B21: 1 | C21: 0.03 | D21: =C21 -> 0.03 | F21: =IF(OR(C21<G21,C21>I21),"FORA DO INTERVALO","OK") -> OK | G21: 0.03 | H21: 0.03 | I21: 0.03
A22: 2) PIS | B22: 1 | C22: 0.0065 | D22: =C22 -> 0.0065 | F22: =IF(OR(C22<G22,C22>I22),"FORA DO INTERVALO","OK") -> OK | G22: 0.0065 | H22: 0.0065 | I22: 0.0065
A23: 3) ISSQN | B23: 1 | C23: 0.025 | D23: =C23*B23 -> 0.025 | F23: OK | G23: 0.02 | H23: 0.035 | I23: 0.05
A24: 4) CPRB | B24: 1 | C24: 0 | D24: =C24 -> 0 | F24: FORA DO INTERVALO | G24: 0.045 | H24: 0.045 | I24: 0.045
A25: 5) Administração Central | B25: 1 | C25: 0.04 | D25: 0.04 | F25: OK | G25: 0.03 | H25: 0.04 | I25: 0.055
A26: 6) Despesas Financeiras | B26: 1 | C26: 0.0056 | D26: 0.0056 | F26: FORA DO INTERVALO | G26: 0.0059 | H26: 0.0123 | I26: 0.0139
A27: 7) Seguros + Garantias | B27: 1 | C27: 0.0012 | D27: 0.0012 | F27: FORA DO INTERVALO | G27: 0.008 | H27: 0.008 | I27: 0.01
A28: 8) Risco | B28: 1 | C28: 0.0097 | D28: 0.0097 | F28: OK | G28: 0.0097 | H28: 0.0127 | I28: 0.0127
A29: 9) Lucro | B29: 1 | C29: 0.0688 | D29: 0.0688 | F29: OK | G29: 0.0616 | H29: 0.074 | I29: 0.0896
A30: BDI - FINAL | D30: =(((1+D25+D27+D28)*(1+D26)*(1+D29))/(1-(D21+D22+D23+D24))-1) -> 0.2035075661 | F30: =IF(OR(D30<G30,D30>I30),"FORA DO INTERVALO","OK") -> OK | G30: 0.2034 | H30: 0.2212 | I30: 0.25
A32: Notas:
A33: (1) e (2) Alíquota definida por lei.
A34: (3) Alíquota e base de cálculo definidas pela legislação municipal.
A35: (4) Alíquota definida pelas leis 12.546/11, 12844/13 e 13.161/15 (CPRB – contribuição previdenciária sobre a receita bruta).
A36: (5) Valores definidos a partir dos limites no Acórdão nº 2.622/2013 - TCU – Plenário. Valores entre o 1º e 3º quartis.
A37: (6) Valor calculado pela expressão matemática do acórdão 2.369/2011 – TCU – Plenário e disponibilizado pela AGETOP em dezembro de 2018. (Foi utilizado para o cálculo a média da Taxa SELIC no período de 11/2017 a 10/2018)
A39: (7) Valores definidos pela AGETOP a partir dos limites no Acórdão nº 2.622/2013 - TCU – Plenário. Valores médios. Observação da AGETOP: (Seguros contra erros de execução, incêndio e explosão, danos da natureza (vendaval, destelhamento, alagamento, inundação, desmoronamento, geadas etc.), emprego de material defeituoso ou inadequado, roubo e/ou furto qualificado, quebra de equipamentos, desmoronamento de estrutura, nas modalidades de Obras Civis em Construção (OCC); Instalação e Montagem (IM); e Obras Civis em Construção e Instalação e Montagem (OCC/IM). Bem como coberturas adicionais para ampliação dessas coberturas básicas, como: cobertura de responsabilidade civil geral, cobertura de responsabilidade civil cruzada, cobertura de despesas extraordinárias, cobertura de tumultos, cobertura de desentulho do local, cobertura de riscos do fabricante, dentre outras, incluindo o seguro de vida em grupo regido pela convenção coletiva dos trabalhadores na indústria da construção civil). A partir de 24/02/2015 por intermédio da Portaria 449/2015 a Presidência da AGETOP, na pessoa do Senhor Jayme Eduardo Rincon, determinou a exclusão dos valores referentes aos Seguros de Risco de Engenharia e Responsabilidade Civil do Profissional na composição do cálculo do B.D.I..
A40: (8) Valores definidos a partir dos limites no Acórdão nº 2.622/2013 - TCU – Plenário. Valores entre 1º e 3° quartis.
A41: (9) Valores definidos a partir dos limites definidos no Acórdão nº 2.622/2013 - TCU – Plenário. Valores adotados e praticados no mercado ( “ ex ante ” ) ou aqueles entre os 1º e 3º quartis.
A43: (*) A fórmula para estipulação da taxa de BDI estimado adotado é a mesma que foi aplicada para a obtenção das tabelas contidas no Acórdão n. 2.622/2013 – TCUPlenário
A45: Obs.: Para obras com valores superiores a R$ 20.000.000,00 sugere-se recalcular o BDI, dimensionando as taxas de administração central e lucro para patamares inferiores ao estipulado acima.

Sheet Relatório CENTRAL
B3: UNIDADE ESCOLAR | D3: CIDADE
B4: =Orçamento!$O$4 -> COLÉGIO ESTADUAL RUY BRASIL CAVALCANTE | D4: =Orçamento!$V$7 -> PIRACANJUBA
B6: OBRA | D6: CRE
B7: =Orçamento!$O$7 -> AMPLIAÇÃO E REFORMA | D7: =Orçamento!$O$10 -> PIRACANJUBA
B9: ENDEREÇO | D9: DATA
A10: FILTRO | B10: =Orçamento!$R$10 -> PRACA DIMAS COSTA 413, CENTRO, CEP:75640-000 | D10: =Orçamento!$S$7 -> 2020-04-13
B12: RELATÓRIO CENTRAL
A13: ↓ | B13: CÓDIGO | C13: ETAPA | D13: PREÇO (R$) C/ BDI | E13: PARTIC ( % )
A14: =IF(D14>0,"F","") ->  | B14: =Orçamento!O1066 -> a. | C14: =Orçamento!P1066 -> SERVIÇOS PRELIMINARES | D14: =Orçamento!V1066 -> 0 | E14: =Orçamento!X1066 -> 0
A15: =IF(D15>0,"F","") ->  | B15: =Orçamento!O1067 -> b. | C15: =Orçamento!P1067 -> TRANSPORTES | D15: =Orçamento!V1067 -> 0 | E15: =Orçamento!X1067 -> 0
B16: =Orçamento!O1068 -> c. | C16: =Orçamento!P1068 -> SERVIÇO EM TERRA | D16: =Orçamento!V1068 -> 0 | E16: =Orçamento!X1068 -> 0
B17: =Orçamento!O1069 -> d. | C17: =Orçamento!P1069 -> FUNDAÇÕES E SONDAGENS | D17: =Orçamento!V1069 -> 0 | E17: =Orçamento!X1069 -> 0
B18: =Orçamento!O1070 -> e. | C18: =Orçamento!P1070 -> ESTRUTURA | D18: =Orçamento!V1070 -> 0 | E18: =Orçamento!X1070 -> 0
B19: =Orçamento!O1071 -> f. | C19: =Orçamento!P1071 -> INSTALAÇÕES ELÉTRICAS | D19: =Orçamento!V1071 -> 0 | E19: =Orçamento!X1071 -> 0
B20: =Orçamento!O1072 -> g. | C20: =Orçamento!P1072 -> INSTALAÇÕES HIDROSSANITÁRIAS | D20: =Orçamento!V1072 -> 0 | E20: =Orçamento!X1072 -> 0
B21: =Orçamento!O1073 -> h | C21: =Orçamento!P1073 -> INSTALAÇÕES ESPECIAIS | D21: =Orçamento!V1073 -> 0 | E21: =Orçamento!X1073 -> 0
B22: =Orçamento!O1074 -> i. | C22: =Orçamento!P1074 -> ALVENARIAS E DIVISÓRIAS | D22: =Orçamento!V1074 -> 0 | E22: =Orçamento!X1074 -> 0
B23: =Orçamento!O1075 -> j. | C23: =Orçamento!P1075 -> ALVENARIA AUTO-PORTANTE | D23: =Orçamento!V1075 -> 0 | E23: =Orçamento!X1075 -> 0
B24: =Orçamento!O1076 -> k. | C24: =Orçamento!P1076 -> IMPERMEABILIZAÇÃO | D24: =Orçamento!V1076 -> 0 | E24: =Orçamento!X1076 -> 0
B25: =Orçamento!O1077 -> l. | C25: =Orçamento!P1077 -> ISOLAMENTO TÉRMICO E ACÚSTICO | D25: =Orçamento!V1077 -> 0 | E25: =Orçamento!X1077 -> 0
B26: =Orçamento!O1078 -> m. | C26: =Orçamento!P1078 -> ESTRUTURA DE MADEIRA | D26: =Orçamento!V1078 -> 0 | E26: =Orçamento!X1078 -> 0
B27: =Orçamento!O1079 -> n. | C27: =Orçamento!P1079 -> ESTRUTURAS METÁLICAS | D27: =Orçamento!V1079 -> 0 | E27: =Orçamento!X1079 -> 0
B28: =Orçamento!O1080 -> o. | C28: =Orçamento!P1080 -> COBERTURAS | D28: =Orçamento!V1080 -> 0 | E28: =Orçamento!X1080 -> 0
B29: =Orçamento!O1081 -> p. | C29: =Orçamento!P1081 -> ESQUADRIAS DE MADEIRA | D29: =Orçamento!V1081 -> 0 | E29: =Orçamento!X1081 -> 0
B30: =Orçamento!O1082 -> q. | C30: =Orçamento!P1082 -> ESQUADRIAS METÁLICAS | D30: =Orçamento!V1082 -> 0 | E30: =Orçamento!X1082 -> 0
B31: =Orçamento!O1083 -> r. | C31: =Orçamento!P1083 -> VIDROS | D31: =Orçamento!V1083 -> 0 | E31: =Orçamento!X1083 -> 0
B32: =Orçamento!O1084 -> s. | C32: =Orçamento!P1084 -> REVESTIMENTO DE PAREDE | D32: =Orçamento!V1084 -> 0 | E32: =Orçamento!X1084 -> 0
B33: =Orçamento!O1085 -> t. | C33: =Orçamento!P1085 -> FORROS | D33: =Orçamento!V1085 -> 0 | E33: =Orçamento!X1085 -> 0
B34: =Orçamento!O1086 -> u. | C34: =Orçamento!P1086 -> REVESTIMENTO DE PISO | D34: =Orçamento!V1086 -> 0 | E34: =Orçamento!X1086 -> 0
B35: =Orçamento!O1087 -> v. | C35: =Orçamento!P1087 -> FERRAGENS | D35: =Orçamento!V1087 -> 0 | E35: =Orçamento!X1087 -> 0
B36: =Orçamento!O1088 -> w. | C36: =Orçamento!P1088 -> MARCENARIA | D36: =Orçamento!V1088 -> 0 | E36: =Orçamento!X1088 -> 0
B37: =Orçamento!O1089 -> x. | C37: =Orçamento!P1089 -> ADMINISTRAÇÃO | D37: =Orçamento!V1089 -> 0 | E37: =Orçamento!X1089 -> 0
B38: =Orçamento!O1090 -> y. | C38: =Orçamento!P1090 -> PINTURA | D38: =Orçamento!V1090 -> 0 | E38: =Orçamento!X1090 -> 0
B39: =Orçamento!O1091 -> z. | C39: =Orçamento!P1091 -> DIVERSOS | D39: =Orçamento!V1091 -> 0 | E39: =Orçamento!X1091 -> 0
A40: F | B40: TOTAL GERAL DO ORÇAMENTO (R$) C/BDI | D40: =SUM(D14:D39) -> 0 | E40: =SUM(E14:E39) -> 0

Sheet Parc Maior Relev
B3: UNIDADE ESCOLAR | E3: CÓDIGO INEP
B4: =Orçamento!$O$4 -> COLÉGIO ESTADUAL RUY BRASIL CAVALCANTE | E4: =Orçamento!$V$4 -> 52060993
B6: OBRA | E6: CIDADE
B7: =Orçamento!$O$7 -> AMPLIAÇÃO E REFORMA | E7: =Orçamento!$V$7 -> PIRACANJUBA
B9: CRE | E9: ÁREA TOTAL CONSTRUÍDA (M²)
B10: =Orçamento!$O$10 -> PIRACANJUBA | E10: =Orçamento!$S$13 -> 2185.87
A11: FILTRO
B12: PARCELA DE MAIOR RELEVÂNCIA
B13: CÓDIGO | C13: SERVIÇO | D13: DESCRIÇÃO | E13: UNID | F13: QUANT | G13: PARC. MAIOR RELEV (100%)
B14: 70000 | C14: INSTALAÇÕES ELÉTRICAS | D14: SUBESTAÇÃO | E14: KVA | F14: 112.5 | G14: =F14 -> 112.5
B15: CÓDIGO | C15: SERVIÇO | D15: DESCRIÇÃO | E15: UNID | F15: QUANT | G15: PARC. MAIOR RELEV (50%)
B16: 70000 | C16: INSTALAÇÕES ELÉTRICAS | D16: INSTALAÇÕES ELÉTRICAS | E16: KVA | F16: =SUMIF(Orçamento!$R$591:$R$1047,'Parc Maior Relev'!D16,Orçamento!$T$591:$T$1047) -> 0 | G16: =F16*0.5 -> 0
B17: 160000 | C17: COBERTURAS | D17: TELHA CERÂMICA | E17: M2 | F17: =Orçamento!T395+Orçamento!T682+Orçamento!T803+Orçamento!T1009 -> 1049.17 | G17: =F17*0.5 -> 524.585
B18: 160000 | C18: COBERTURAS | D18: TELHA FIBROCIMENTO | E18: M2 | F18: =SUMIF(Orçamento!$R$591:$R$1047,'Parc Maior Relev'!D18,Orçamento!$T$591:$T$1047) -> 0 | G18: 0
B19: 160000 | C19: COBERTURAS | D19: TELHA METÁLICA | E19: M2 | F19: =SUMIF(Orçamento!$R$591:$R$1047,'Parc Maior Relev'!D19,Orçamento!$T$591:$T$1047) -> 0 | G19: 0
B20: 200000 | C20: REVESTIMENTO DE PAREDE | D20: REBOCO | E20: M2 | F20: =SUMIF(Orçamento!$R$591:$R$1047,'Parc Maior Relev'!D20,Orçamento!$T$591:$T$1047) -> 0 | G20: =F20*0.5 -> 0
B21: 200000 | C21: REVESTIMENTO DE PAREDE | D21: REVESTIMENTO CERÂMICO | E21: M2 | F21: =SUMIF(Orçamento!$R$591:$R$1047,'Parc Maior Relev'!D21,Orçamento!$T$591:$T$1047) -> 0 | G21: 0
B22: 210000 | C22: FORROS | D22: FORRO DE GESSO | E22: M2 | F22: =SUMIF(Orçamento!$R$591:$R$1047,'Parc Maior Relev'!D22,Orçamento!$T$591:$T$1047) -> 0 | G22: =F22*0.5 -> 0
B23: 210000 | C23: FORROS | D23: FORRO PVC | E23: M2 | F23: =SUMIF(Orçamento!$R$591:$R$1047,'Parc Maior Relev'!D23,Orçamento!$T$591:$T$1047) -> 0 | G23: 0
B24: 210000 | C24: FORROS | D24: FORRO ACARTONADO | E24: M2 | F24: =SUMIF(Orçamento!$R$591:$R$1047,'Parc Maior Relev'!D24,Orçamento!$T$591:$T$1047) -> 0 | G24: 0
B25: 220000 | C25: REVESTIMENTO DE PISO | D25: PISO GRANITINA | E25: M2 | F25: =Orçamento!T454+Orçamento!T700+Orçamento!T813+Orçamento!T1028 -> 514.85 | G25: 257.425
B26: 220000 | C26: REVESTIMENTO DE PISO | D26: PISO LAMINADO | E26: M2 | F26: =SUMIF(Orçamento!$R$591:$R$1047,'Parc Maior Relev'!D26,Orçamento!$T$591:$T$1047) -> 0 | G26: 0
B27: 220000 | C27: REVESTIMENTO DE PISO | D27: PISO CONCRETO DESEMPENADO | E27: M2 | F27: =SUMIF(Orçamento!$R$591:$R$1047,'Parc Maior Relev'!D27,Orçamento!$T$591:$T$1047) -> 0 | G27: 0
B28: 220000 | C28: REVESTIMENTO DE PISO | D28: PISO CERÂMICO | E28: M2 | F28: =SUMIF(Orçamento!$R$591:$R$1047,'Parc Maior Relev'!D28,Orçamento!$T$591:$T$1047) -> 0 | G28: =F28*0.5 -> 0
B29: 260000 | C29: PINTURA | D29: PINTURA | E29: M2 | F29: =SUMIF(Orçamento!$R$591:$R$1047,'Parc Maior Relev'!D29,Orçamento!$T$591:$T$1047) -> 0 | G29: 0
A30: F
A31: F | B31: (*) Para os fins do inciso I dp § 1º do Art. 30 da Lei Federal 8.666/93, são consideradas parcelas de maior relevância técnica as execuções apresentadas
A32: F

Sheet Composições
A4: UNIDADE ESCOLAR | H4: CÓDIGO INEP
A5: =Orçamento!$O$4 -> COLÉGIO ESTADUAL RUY BRASIL CAVALCANTE | H5: =Orçamento!$V$4 -> 52060993
A7: OBRA | H7: CIDADE
A8: =Orçamento!$O$7 -> AMPLIAÇÃO E REFORMA | H8: =Orçamento!$V$7 -> PIRACANJUBA
A10: CRE | D10: ENDEREÇO | H10: REFERÊNCIA AGETOP
A11: =Orçamento!$O$10 -> PIRACANJUBA | D11: =Orçamento!$R$10 -> PRACA DIMAS COSTA 413, CENTRO, CEP:75640-000 | H11: =Orçamento!$V$10 -> DEZ/18 | I11: =Orçamento!$W$10 -> ONERADA
A13: DATA | D13: ÁREA TOTAL CONSTRUÍDA (M²) | H13: REFERÊNCIA SINAPI
A14: =Orçamento!$S$7 -> 2020-04-13 | D14: =Orçamento!$S$13 -> 2185.87 | H14: =Orçamento!$V$13 -> AGO/19 | I14: =Orçamento!$W$13 -> ONERADA
A16: COMPOSIÇÕES DE CUSTOS UNITÁRIOS - SEE-GO
A17: 430 | B17: FONTE | C17: CÓDIGO | D17: DESCRIÇÃO | E17: UNIDADE | F17: COEFIC. | G17: CUSTO UNITÁRIO | I17: CUSTO TOTAL (A) + (B) + (C) + (D) + (E)
G18: DESONERADO | H18: NÃO DESONER. | I18: DESONERADO | J18: NÃO DESONER.
B19: COMPOSIÇÃO | C19: COMP 430_SEE | D19: DEMOLIÇÃO DE ESTRUTURA METÁLICA | E19: M2 | I19: 8.8 | J19: 10.16
B20: AGETOP_I | C20: 21 | D20: SERRALHEIRO | E20: h | F20: 0.33 | G20: 13.4 | H20: 15.53 | I20: 4.42 | J20: 5.12
B21: AGETOP_I | C21: 8 | D21: AJUDANTE | E21: h | F21: 0.5 | G21: 8.2 | H21: 9.51 | I21: 4.1 | J21: 4.76
G22: 0 | H22: 0 | I22: 0 | J22: 0
B23: MÃO DE OBRA (B) - TOTAL | I23: 8.52 | J23: 9.88
B24: AGETOP_I | C24: 1334 | D24: DISCO DE CORTE DIAM. 5/8"- 10" | E24: un | F24: 0.05 | G24: 5.5 | H24: 5.5 | I24: 0.28 | J24: 0.28
G25: 0 | H25: 0 | I25: 0 | J25: 0
G26: 0 | H26: 0 | I26: 0 | J26: 0
B27: MATERIAL (C) - TOTAL | I27: 0.28 | J27: 0.28
A29: 46 | B29: FONTE | C29: CÓDIGO | D29: DESCRIÇÃO | E29: UNIDADE | F29: COEFIC. | G29: CUSTO UNITÁRIO | I29: CUSTO TOTAL (A) + (B) + (C) + (D) + (E)
G30: DESONERADO | H30: NÃO DESONER. | I30: DESONERADO | J30: NÃO DESONER.
B31: COMPOSIÇÃO | C31: COMP 046_SEE | D31: CAPUZ PARA PROTEÇÃO DOS PARA RAIOS | E31: UN | I31: 16.53 | J31: 16.65
B32: AGETOP_I | C32: 8 | D32: AJUDANTE | E32: h | F32: 0.0333 | G32: 8.2 | H32: 9.51 | I32: 0.27 | J32: 0.32
B33: AGETOP_I | C33: 12 | D33: ELETRICISTA | E33: h | F33: 0.0333 | G33: 13.4 | H33: 15.53 | I33: 0.45 | J33: 0.52
G34: 0 | H34: 0 | I34: 0 | J34: 0
B35: MÃO DE OBRA (B) - TOTAL | I35: 0.72 | J35: 0.84
B36: COTAÇÃO | C36: COT 010_SEE | D36: CAPUZ PARA PROTEÇÃO DOS PARA RAIOS | E36: UN | F36: 1 | G36: 15.81 | H36: 15.81 | I36: 15.81 | J36: 15.81
G37: 0 | H37: 0 | I37: 0 | J37: 0
G38: 0 | H38: 0 | I38: 0 | J38: 0
B39: MATERIAL (C) - TOTAL | I39: 15.81 | J39: 15.81
A41: 47 | B41: FONTE | C41: CÓDIGO | D41: DESCRIÇÃO | E41: UNIDADE | F41: COEFIC. | G41: CUSTO UNITÁRIO | I41: CUSTO TOTAL (A) + (B) + (C) + (D) + (E)
G42: DESONERADO | H42: NÃO DESONER. | I42: DESONERADO | J42: NÃO DESONER.
B43: COMPOSIÇÃO | C43: COMP 047_SEE | D43: CAPUZ DE PROTEÇÃO PARA BUCHA DE TRANSFORMADOR | E43: UN | I43: 16.53 | J43: 16.65
B44: AGETOP_I | C44: 8 | D44: AJUDANTE | E44: h | F44: 0.0333 | G44: 8.2 | H44: 9.51 | I44: 0.27 | J44: 0.32
B45: AGETOP_I | C45: 12 | D45: ELETRICISTA | E45: h | F45: 0.0333 | G45: 13.4 | H45: 15.53 | I45: 0.45 | J45: 0.52
G46: 0 | H46: 0 | I46: 0 | J46: 0
B47: MÃO DE OBRA (B) - TOTAL | I47: 0.72 | J47: 0.84
B48: COTAÇÃO | C48: COT 011_SEE | D48: CAPUZ DE PROTEÇÃO PARA BUCHA DE TRANSFORMADOR | E48: UN | F48: 1 | G48: 15.81 | H48: 15.81 | I48: 15.81 | J48: 15.81
G49: 0 | H49: 0 | I49: 0 | J49: 0
G50: 0 | H50: 0 | I50: 0 | J50: 0
B51: MATERIAL (C) - TOTAL | I51: 15.81 | J51: 15.81
A53: 48 | B53: FONTE | C53: CÓDIGO | D53: DESCRIÇÃO | E53: UNIDADE | F53: COEFIC. | G53: CUSTO UNITÁRIO | I53: CUSTO TOTAL (A) + (B) + (C) + (D) + (E)
G54: DESONERADO | H54: NÃO DESONER. | I54: DESONERADO | J54: NÃO DESONER.
B55: COMPOSIÇÃO | C55: COMP 048_SEE | D55: HASTE ROSQUEADA "TIRANTE" 3/8" | E55: M | I55: 14.02 | J55: 15.39
B56: AGETOP_I | C56: 8 | D56: AJUDANTE | E56: h | F56: 0.4 | G56: 8.2 | H56: 9.51 | I56: 3.28 | J56: 3.8
B57: AGETOP_I | C57: 12 | D57: ELETRICISTA | E57: h | F57: 0.4 | G57: 13.4 | H57: 15.53 | I57: 5.36 | J57: 6.21
G58: 0 | H58: 0 | I58: 0 | J58: 0
B59: MÃO DE OBRA (B) - TOTAL | I59: 8.64 | J59: 10.01
B60: COTAÇÃO | C60: COT 012_SEE | D60: HASTE ROSQUEADA "TIRANTE" 3/8" | E60: M | F60: 1 | G60: 5.383333333 | H60: 5.383333333 | I60: 5.38 | J60: 5.38
G61: 0 | H61: 0 | I61: 0 | J61: 0
G62: 0 | H62: 0 | I62: 0 | J62: 0
B63: MATERIAL (C) - TOTAL | I63: 5.38 | J63: 5.38
A65: 49 | B65: FONTE | C65: CÓDIGO | D65: DESCRIÇÃO | E65: UNIDADE | F65: COEFIC. | G65: CUSTO UNITÁRIO | I65: CUSTO TOTAL (A) + (B) + (C) + (D) + (E)
G66: DESONERADO | H66: NÃO DESONER. | I66: DESONERADO | J66: NÃO DESONER.
B67: COMPOSIÇÃO | C67: COMP 049_SEE | D67: PORCA SEXTAVADA 3/8" | E67: UN | I67: 0.2 | J67: 0.22
B68: AGETOP_I | C68: 8 | D68: AJUDANTE | E68: h | F68: 0.009 | G68: 8.2 | H68: 9.51 | I68: 0.07 | J68: 0.09
G69: 0 | H69: 0 | I69: 0 | J69: 0
G70: 0 | H70: 0 | I70: 0 | J70: 0
B71: MÃO DE OBRA (B) - TOTAL | I71: 0.07 | J71: 0.09
B72: COTAÇÃO | C72: COT 013_SEE | D72: PORCA SEXTAVADA 3/8" | E72: UN | F72: 1 | G72: 0.13 | H72: 0.13 | I72: 0.13 | J72: 0.13
G73: 0 | H73: 0 | I73: 0 | J73: 0
G74: 0 | H74: 0 | I74: 0 | J74: 0
B75: MATERIAL (C) - TOTAL | I75: 0.13 | J75: 0.13
A77: 28 | B77: FONTE | C77: CÓDIGO | D77: DESCRIÇÃO | E77: UNIDADE | F77: COEFIC. | G77: CUSTO UNITÁRIO | I77: CUSTO TOTAL (A) + (B) + (C) + (D) + (E)
G78: DESONERADO | H78: NÃO DESONER. | I78: DESONERADO | J78: NÃO DESONER.
B79: COMPOSIÇÃO | C79: COMP 028_SEE | D79: ADAPTADOR PVC SOLDAVEL FLANGES LIVRES P/ CAIXA D' AGUA 85 MM X 3" | E79: UN | I79: 167.31 | J79: 167.62
B80: AGETOP_I | C80: 8 | D80: AJUDANTE | E80: h | F80: 0.09 | G80: 8.2 | H80: 9.51 | I80: 0.74 | J80: 0.86
B81: AGETOP_I | C81: 11 | D81: ENCANADOR | E81: h | F81: 0.09 | G81: 13.4 | H81: 15.53 | I81: 1.21 | J81: 1.4
B82: MÃO DE OBRA (B) - TOTAL | I82: 1.95 | J82: 2.26
B83: AGETOP_I | C83: H689 | D83: FITA VEDAROSCA 12 MM | E83: m | F83: 4.5 | G83: 0.28 | H83: 0.28 | I83: 1.26 | J83: 1.26
B84: SINAPI_I | C84: 74 | D84: ADAPTADOR PVC SOLDAVEL, COM FLANGES LIVRES, 85 MM X 3", PARA CAIXA D' AGUA | E84: UN | F84: 1 | G84: 164.1 | H84: 164.1 | I84: 164.1 | J84: 164.1
B85: MATERIAL (C) - TOTAL | I85: 165.36 | J85: 165.36
A87: 557 | B87: FONTE | C87: CÓDIGO | D87: DESCRIÇÃO | E87: UNID | F87: COEFIC. | G87: CUSTO UNITÁRIO | I87: CUSTO TOTAL (A) + (B) + (C) + (D) + (E)
G88: DESONERADO | H88: NÃO DESONER. | I88: DESONERADO | J88: NÃO DESONER.
B89: COMPOSIÇÃO | C89: COMP 557_SEE | D89: BOMBA THSI-18 10,0 CV TRIFÁSICA | E89: UN | F89: - | G89: - | H89: - | I89: 5193.73 | J89: 5221.25
B90: AGETOP_I | C90: 8 | D90: AJUDANTE | E90: h | F90: 8 | G90: 8.2 | H90: 9.51 | I90: 65.6 | J90: 76.08
B91: AGETOP_I | C91: 12 | D91: ELETRICISTA | E91: h | F91: 8 | G91: 13.4 | H91: 15.53 | I91: 107.2 | J91: 124.24
G92: 0 | H92: 0 | I92: 0 | J92: 0
B93: MÃO DE OBRA (B) - TOTAL | I93: 172.8 | J93: 200.32
B94: COTAÇÃO | C94: COT 302_SEE | D94: BOMBA THSI-18 10,0 CV TRIFÁSICA | E94: UN | F94: 1 | G94: 5020.925 | H94: 5020.925 | I94: 5020.93 | J94: 5020.93
G95: 0 | H95: 0 | I95: 0 | J95: 0
G96: 0 | H96: 0 | I96: 0 | J96: 0
B97: MATERIAL (C) - TOTAL | I97: 5020.93 | J97: 5020.93
A99: 194 | B99: FONTE | C99: CÓDIGO | D99: DESCRIÇÃO | E99: UNIDADE | F99: COEFIC. | G99: CUSTO UNITÁRIO | I99: CUSTO TOTAL (A) + (B) + (C) + (D) + (E)
G100: DESONERADO | H100: NÃO DESONER. | I100: DESONERADO | J100: NÃO DESONER.
B101: COMPOSIÇÃO | C101: COMP 194_SEE | D101: TAMPÃO CEGO COM CORRENTE 1.1/2" | E101: UN | I101: 54.32 | J101: 54.64
B102: AGETOP_I | C102: 11 | D102: ENCANADOR | E102: h | F102: 0.15 | G102: 13.4 | H102: 15.53 | I102: 2.01 | J102: 2.33
G103: 0 | H103: 0 | I103: 0 | J103: 0
G104: 0 | H104: 0 | I104: 0 | J104: 0
B105: MÃO DE OBRA (B) - TOTAL | I105: 2.01 | J105: 2.33
B106: SINAPI_I | C106: 20964 | D106: TAMPAO COM CORRENTE, EM LATAO, ENGATE RAPIDO 1 1/2", PARA INSTALACAO PREDIAL DE COMBATE A INCENDIO | E106: UN | F106: 1 | G106: 52.31 | H106: 52.31 | I106: 52.31 | J106: 52.31
G107: 0 | H107: 0 | I107: 0 | J107: 0
G108: 0 | H108: 0 | I108: 0 | J108: 0
B109: MATERIAL (C) - TOTAL | I109: 52.31 | J109: 52.31
A111: 17 | B111: FONTE | C111: CÓDIGO | D111: DESCRIÇÃO | E111: UNIDADE | F111: COEFIC. | G111: CUSTO UNITÁRIO | I111: CUSTO TOTAL (A) + (B) + (C) + (D) + (E)
G112: DESONERADO | H112: NÃO DESONER. | I112: DESONERADO | J112: NÃO DESONER.
B113: COMPOSIÇÃO | C113: COMP 017_SEE | D113: REDUCAO GIRATÓRIA TIPO STORZ LATAO P/ INST. PREDIAL COMBATE A INCENDIO ENGATE RAPIDO 2.1/2" X 1.1/2" | E113: UN | G113: - | H113: - | I113: 99.14 | J113: 99.69
B114: AGETOP_I | C114: 8 | D114: AJUDANTE | E114: h | F114: 0.16 | G114: 8.2 | H114: 9.51 | I114: 1.31 | J114: 1.52
B115: AGETOP_I | C115: 11 | D115: ENCANADOR | E115: h | F115: 0.16 | G115: 13.4 | H115: 15.53 | I115: 2.14 | J115: 2.48
G116: 0 | H116: 0 | I116: 0 | J116: 0
B117: MÃO DE OBRA (B) - TOTAL | I117: 3.45 | J117: 4
B118: SINAPI_I | C118: 20972 | D118: REDUCAO FIXA TIPO STORZ, ENGATE RAPIDO 2.1/2" X 1.1/2", EM LATAO, PARA INSTALACAO PREDIAL COMBATE A INCENDIO PREDIAL | E118: UN | F118: 1 | G118: 95.69 | H118: 95.69 | I118: 95.69 | J118: 95.69
G119: 0 | H119: 0 | I119: 0 | J119: 0
G120: 0 | H120: 0 | I120: 0 | J120: 0
B121: MATERIAL (C) - TOTAL | I121: 95.69 | J121: 95.69
A123: 18 | B123: FONTE | C123: CÓDIGO | D123: DESCRIÇÃO | E123: UNIDADE | F123: COEFIC. | G123: CUSTO UNITÁRIO | I123: CUSTO TOTAL (A) + (B) + (C) + (D) + (E)
G124: DESONERADO | H124: NÃO DESONER. | I124: DESONERADO | J124: NÃO DESONER.
B125: COMPOSIÇÃO | C125: COMP 018_SEE | D125: CHAVE DUPLA P/ CONEXÕES TIPO STORZ EM LATÃO ENGATE RÁPIDO 1 1/2" X 2 1/2" | E125: UN | G125: - | H125: - | I125: 14.76 | J125: 15.08
B126: AGETOP_I | C126: 11 | D126: ENCANADOR | E126: h | F126: 0.15 | G126: 13.4 | H126: 15.53 | I126: 2.01 | J126: 2.33
G127: 0 | H127: 0 | I127: 0 | J127: 0
G128: 0 | H128: 0 | I128: 0 | J128: 0
B129: MÃO DE OBRA (B) - TOTAL | I129: 2.01 | J129: 2.33
B130: SINAPI_I | C130: 20971 | D130: CHAVE DUPLA PARA CONEXOES TIPO STORZ, ENGATE RAPIDO 1 1/2" X 2 1/2", EM LATAO, PARA INSTALACAO PREDIAL COMBATE A INCENDIO | E130: UN | F130: 1 | G130: 12.75 | H130: 12.75 | I130: 12.75 | J130: 12.75
G131: 0 | H131: 0 | I131: 0 | J131: 0
G132: 0 | H132: 0 | I132: 0 | J132: 0
B133: MATERIAL (C) - TOTAL | I133: 12.75 | J133: 12.75
A135: 87 | B135: FONTE | C135: CÓDIGO | D135: DESCRIÇÃO | E135: UNIDADE | F135: COEFIC. | G135: CUSTO UNITÁRIO | I135: CUSTO TOTAL (A) + (B) + (C) + (D) + (E)
G136: DESONERADO | H136: NÃO DESONER. | I136: DESONERADO | J136: NÃO DESONER.
B137: COMPOSIÇÃO | C137: COMP 087_SEE | D137: REGISTRO DE GAVETA COM HASTE ASCENDENTE DE BRONZE 2 1/2" | E137: UN | I137: 257.3 | J137: 261.26
B138: AGETOP_I | C138: 8 | D138: AJUDANTE | E138: h | F138: 1.15 | G138: 8.2 | H138: 9.51 | I138: 9.43 | J138: 10.94
B139: AGETOP_I | C139: 11 | D139: ENCANADOR | E139: h | F139: 1.15 | G139: 13.4 | H139: 15.53 | I139: 15.41 | J139: 17.86
G140: 0 | H140: 0 | I140: 0 | J140: 0
B141: MÃO DE OBRA (B) - TOTAL | I141: 24.84 | J141: 28.8
B142: AGETOP_I | C142: H689 | D142: FITA VEDAROSCA 12 MM | E142: m | F142: 2.82 | G142: 0.28 | H142: 0.28 | I142: 0.79 | J142: 0.79
B143: COTAÇÃO | C143: COT 017_SEE | D143: REGISTRO DE GAVETA COM HASTE ASCENDENTE DE BRONZE 2 1/2" | E143: UN | F143: 1 | G143: 231.6666667 | H143: 231.6666667 | I143: 231.67 | J143: 231.67
G144: 0 | H144: 0 | I144: 0 | J144: 0
B145: MATERIAL (C) - TOTAL | I145: 232.46 | J145: 232.46
A147: 19 | B147: FONTE | C147: CÓDIGO | D147: DESCRIÇÃO | E147: UNIDADE | F147: COEFIC. | G147: CUSTO UNITÁRIO | I147: CUSTO TOTAL (A) + (B) + (C) + (D) + (E)
G148: DESONERADO | H148: NÃO DESONER. | I148: DESONERADO | J148: NÃO DESONER.
B149: COMPOSIÇÃO | C149: COMP 019_SEE | D149: TAMPÃO LATAO C/ CORRENTE P/ INSTALAÇÃO PREDIAL COMBATE A INCÊNDIO ENGATE RÁPIDO 1 1/2" | E149: UN | G149: - | H149: - | I149: 55.55 | J149: 56.07
B150: AGETOP_I | C150: 11 | D150: ENCANADOR | E150: h | F150: 0.15 | G150: 13.4 | H150: 15.53 | I150: 2.01 | J150: 2.33
B151: AGETOP_I | C151: 8 | D151: AJUDANTE | E151: h | F151: 0.15 | G151: 8.2 | H151: 9.51 | I151: 1.23 | J151: 1.43
G152: 0 | H152: 0 | I152: 0 | J152: 0
B153: MÃO DE OBRA (B) - TOTAL | I153: 3.24 | J153: 3.76
B154: SINAPI_I | C154: 20964 | D154: TAMPAO COM CORRENTE, EM LATAO, ENGATE RAPIDO 1 1/2", PARA INSTALACAO PREDIAL DE COMBATE A INCENDIO | E154: UN | F154: 1 | G154: 52.31 | H154: 52.31 | I154: 52.31 | J154: 52.31
G155: 0 | H155: 0 | I155: 0 | J155: 0
G156: 0 | H156: 0 | I156: 0 | J156: 0
B157: MATERIAL (C) - TOTAL | I157: 52.31 | J157: 52.31
A159: 30 | B159: FONTE | C159: CÓDIGO | D159: DESCRIÇÃO | E159: UNIDADE | F159: COEFIC. | G159: CUSTO UNITÁRIO | I159: CUSTO TOTAL (A) + (B) + (C) + (D) + (E)
G160: DESONERADO | H160: NÃO DESONER. | I160: DESONERADO | J160: NÃO DESONER.
B161: COMPOSIÇÃO | C161: COMP 030_SEE | D161: COTOVELO DE FERRO GALV. 90° X 2 1/2" | E161: UN | I161: 69.16 | J161: 72.33
B162: AGETOP_I | C162: 8 | D162: AJUDANTE | E162: h | F162: 0.92 | G162: 8.2 | H162: 9.51 | I162: 7.54 | J162: 8.75
B163: AGETOP_I | C163: 11 | D163: ENCANADOR | E163: h | F163: 0.92 | G163: 13.4 | H163: 15.53 | I163: 12.33 | J163: 14.29
B164: MÃO DE OBRA (B) - TOTAL | I164: 19.87 | J164: 23.04
B165: SINAPI_I | C165: 3470 | D165: COTOVELO 90 GRAUS DE FERRO GALVANIZADO, COM ROSCA BSP, DE 2 1/2" | E165: UN | F165: 1 | G165: 48.73 | H165: 48.73 | I165: 48.73 | J165: 48.73
B166: AGETOP_I | C166: H689 | D166: FITA VEDAROSCA 12 MM | E166: m | F166: 2 | G166: 0.28 | H166: 0.28 | I166: 0.56 | J166: 0.56
B167: MATERIAL (C) - TOTAL | I167: 49.29 | J167: 49.29
A169: 76 | B169: FONTE | C169: CÓDIGO | D169: DESCRIÇÃO | E169: UNIDADE | F169: COEFIC. | G169: CUSTO UNITÁRIO | I169: CUSTO TOTAL (A) + (B) + (C) + (D) + (E)
G170: DESONERADO | H170: NÃO DESONER. | I170: DESONERADO | J170: NÃO DESONER.
B171: COMPOSIÇÃO | C171: COMP 076_SEE | D171: CURVA FERRO GALVANIZADO 45G ROSCA MACHO/FEMEA REF. 2 1/2" | E171: UN | I171: 116.73 | J171: 119.9
B172: AGETOP_I | C172: 8 | D172: AJUDANTE | E172: h | F172: 0.92 | G172: 8.2 | H172: 9.51 | I172: 7.54 | J172: 8.75
B173: AGETOP_I | C173: 11 | D173: ENCANADOR | E173: h | F173: 0.92 | G173: 13.4 | H173: 15.53 | I173: 12.33 | J173: 14.29
B174: MÃO DE OBRA (B) - TOTAL | I174: 19.87 | J174: 23.04
B175: SINAPI_I | C175: 3148 | D175: FITA VEDA ROSCA EM ROLOS DE 18 MM X 50 M (L X C) | E175: UN | F175: 0.0491 | G175: 14.38 | H175: 14.38 | I175: 0.71 | J175: 0.71
B176: SINAPI_I | C176: 1784 | D176: CURVA 45 GRAUS DE FERRO GALVANIZADO, COM ROSCA BSP MACHO/FEMEA, DE 2 1/2" | E176: UN | F176: 1 | G176: 96.15 | H176: 96.15 | I176: 96.15 | J176: 96.15
B177: MATERIAL (C) - TOTAL | I177: 96.86 | J177: 96.86
A179: 77 | B179: FONTE | C179: CÓDIGO | D179: DESCRIÇÃO | E179: UNIDADE | F179: COEFIC. | G179: CUSTO UNITÁRIO | I179: CUSTO TOTAL (A) + (B) + (C) + (D) + (E)
G180: DESONERADO | H180: NÃO DESONER. | I180: DESONERADO | J180: NÃO DESONER.
B181: COMPOSIÇÃO | C181: COMP 077_SEE | D181: UNIAO FERRO GALV C/ASSENTO CONICO BRONZE 2 1/2" | E181: UN | I181: 148.3 | J181: 149.67
B182: AGETOP_I | C182: 8 | D182: AJUDANTE | E182: h | F182: 0.4 | G182: 8.2 | H182: 9.51 | I182: 3.28 | J182: 3.8
B183: AGETOP_I | C183: 11 | D183: ENCANADOR | E183: h | F183: 0.4 | G183: 13.4 | H183: 15.53 | I183: 5.36 | J183: 6.21
B184: MÃO DE OBRA (B) - TOTAL | I184: 8.64 | J184: 10.01
B185: AGETOP_I | C185: H689 | D185: FITA VEDAROSCA 12 MM | E185: m | F185: 2.4 | G185: 0.28 | H185: 0.28 | I185: 0.67 | J185: 0.67
B186: SINAPI_I | C186: 12427 | D186: UNIAO COM ASSENTO CONICO DE BRONZE, DIAMETRO 2 1/2" | E186: UN | F186: 1 | G186: 138.99 | H186: 138.99 | I186: 138.99 | J186: 138.99
B187: MATERIAL (C) - TOTAL | I187: 139.66 | J187: 139.66
A189: 347 | B189: FONTE | C189: CÓDIGO | D189: DESCRIÇÃO | E189: UNIDADE | F189: COEFIC. | G189: CUSTO UNITÁRIO | I189: CUSTO TOTAL (A) + (B) + (C) + (D) + (E)
G190: DESONERADO | H190: NÃO DESONER. | I190: DESONERADO | J190: NÃO DESONER.
B191: COMPOSIÇÃO | C191: COMP 347_SEE | D191: ADAPTADOR PVC SOLDAVEL, COM FLANGES LIVRES, 75 MM X 2 1/2", PARA CAIXA D' AGUA | E191: UN | I191: 121.1 | J191: 121.57
B192: AGETOP_I | C192: 11 | D192: ENCANADOR | E192: h | F192: 0.14 | G192: 13.4 | H192: 15.53 | I192: 1.88 | J192: 2.17
B193: AGETOP_I | C193: 8 | D193: AJUDANTE | E193: h | F193: 0.14 | G193: 8.2 | H193: 9.51 | I193: 1.15 | J193: 1.33
G194: 0 | H194: 0 | I194: 0 | J194: 0
B195: MÃO DE OBRA (B) - TOTAL | I195: 3.03 | J195: 3.5
B196: SINAPI_I | C196: 83 | D196: ADAPTADOR PVC SOLDAVEL, COM FLANGES LIVRES, 75 MM X 2 1/2", PARA CAIXA D' AGUA | E196: UN | F196: 1 | G196: 117.54 | H196: 117.54 | I196: 117.54 | J196: 117.54
B197: AGETOP_I | C197: H689 | D197: FITA VEDAROSCA 12 MM | E197: m | F197: 1.88 | G197: 0.28 | H197: 0.28 | I197: 0.53 | J197: 0.53
G198: 0 | H198: 0 | I198: 0 | J198: 0
B199: MATERIAL (C) - TOTAL | I199: 118.07 | J199: 118.07
A201: 22 | B201: FONTE | C201: CÓDIGO | D201: DESCRIÇÃO | E201: UNIDADE | F201: COEFIC. | G201: CUSTO UNITÁRIO | I201: CUSTO TOTAL (A) + (B) + (C) + (D) + (E)
G202: DESONERADO | H202: NÃO DESONER. | I202: DESONERADO | J202: NÃO DESONER.
B203: COMPOSIÇÃO | C203: COMP 022_SEE | D203: TAMPÃO FOFO 40X50CM C/INSCRIÇÃO | E203: UN | G203: - | H203: - | I203: 199.83 | J203: 200.15
B204: AGETOP_I | C204: 11 | D204: ENCANADOR | E204: h | F204: 0.15 | G204: 13.4 | H204: 15.53 | I204: 2.01 | J204: 2.33
G205: 0 | H205: 0 | I205: 0 | J205: 0
G206: 0 | H206: 0 | I206: 0 | J206: 0
B207: MÃO DE OBRA (B) - TOTAL | I207: 2.01 | J207: 2.33
B208: SINAPI_I | C208: 11293 | D208: TAMPAO FOFO SIMPLES COM BASE, CLASSE A15 CARGA MAX 1,5 T, 400 X 500 MM, COM INSCRICAO INCENDIO | E208: UN | F208: 1 | G208: 197.82 | H208: 197.82 | I208: 197.82 | J208: 197.82
G209: 0 | H209: 0 | I209: 0 | J209: 0
G210: 0 | H210: 0 | I210: 0 | J210: 0
B211: MATERIAL (C) - TOTAL | I211: 197.82 | J211: 197.82
A213: 546 | B213: FONTE | C213: CÓDIGO | D213: DESCRIÇÃO | E213: UNID | F213: COEFIC. | G213: CUSTO UNITÁRIO | I213: CUSTO TOTAL (A) + (B) + (C) + (D) + (E)
G214: DESONERADO | H214: NÃO DESONER. | I214: DESONERADO | J214: NÃO DESONER.
B215: COMPOSIÇÃO | C215: COMP 546_SEE | D215: BUJÃO DE REBORDO 2.1/2" | E215: UN | F215: - | G215: - | H215: - | I215: 16.51 | J215: 16.76
B216: AGETOP_I | C216: 8 | D216: AJUDANTE | E216: h | F216: 0.07 | G216: 8.2 | H216: 9.51 | I216: 0.57 | J216: 0.67
B217: AGETOP_I | C217: 11 | D217: ENCANADOR | E217: h | F217: 0.07 | G217: 13.4 | H217: 15.53 | I217: 0.94 | J217: 1.09
G218: 0 | H218: 0 | I218: 0 | J218: 0
B219: MÃO DE OBRA (B) - TOTAL | I219: 1.51 | J219: 1.76
B220: COTAÇÃO | C220: COT 286_SEE | D220: BUJÃO DE REBORDO 2.1/2" | E220: UN | F220: 1 | G220: 15 | H220: 15 | I220: 15 | J220: 15
G221: 0 | H221: 0 | I221: 0 | J221: 0
G222: 0 | H222: 0 | I222: 0 | J222: 0
B223: MATERIAL (C) - TOTAL | I223: 15 | J223: 15
A225: 24 | B225: FONTE | C225: CÓDIGO | D225: DESCRIÇÃO | E225: UNIDADE | F225: COEFIC. | G225: CUSTO UNITÁRIO | I225: CUSTO TOTAL (A) + (B) + (C) + (D) + (E)
... 229 more rows

Sheet Cotações
A4: UNIDADE ESCOLAR | H4: CÓDIGO INEP
A5: =Orçamento!$O$4 -> COLÉGIO ESTADUAL RUY BRASIL CAVALCANTE | H5: =Orçamento!$V$4 -> 52060993
A7: OBRA | H7: CIDADE
A8: =Orçamento!$O$7 -> AMPLIAÇÃO E REFORMA | H8: =Orçamento!$V$7 -> PIRACANJUBA
A10: CRE | D10: ENDEREÇO | H10: REFERÊNCIA AGETOP
A11: =Orçamento!$O$10 -> PIRACANJUBA | D11: =Orçamento!$R$10 -> PRACA DIMAS COSTA 413, CENTRO, CEP:75640-000 | H11: =Orçamento!$V$10 -> DEZ/18 | I11: =Orçamento!$W$10 -> ONERADA
A13: DATA | D13: ÁREA TOTAL CONSTRUÍDA (M²) | H13: REFERÊNCIA SINAPI
A14: =Orçamento!$S$7 -> 2020-04-13 | D14: =Orçamento!$S$13 -> 2185.87 | H14: =Orçamento!$V$13 -> AGO/19 | I14: =Orçamento!$W$13 -> ONERADA
A16: COTAÇÕES DE PREÇOS - SEE-GO
B17: FONTE | C17: CÓDIGO | D17: DESCRIÇÃO | E17: UNIDADE | F17: MÉDIA | H17: ÍNDICE RETROAÇÃO
F18: DESONERADA | G18: ONERADA
A19: 10 | B19: COTAÇÃO | C19: COT 010_SEE | D19: CAPUZ PARA PROTEÇÃO DOS PARA RAIOS | E19: UN | F19: 15.81 | G19: 15.81
C20: EMPRESA | D20: NOME DA EMPRESA | F20: COTAÇÕES | H20: DATA COTAÇÃO
C21: E013 - ELETRO... | D21: ELETROTRANSOL | F21: 15.81 | G21: 15.81 | H21: 06/02/2019
C26: OBSERVAÇÕES:
B28: FONTE | C28: CÓDIGO | D28: DESCRIÇÃO | E28: UNIDADE | F28: MÉDIA | H28: ÍNDICE RETROAÇÃO
F29: DESONERADA | G29: ONERADA
A30: 11 | B30: COTAÇÃO | C30: COT 011_SEE | D30: CAPUZ DE PROTEÇÃO PARA BUCHA DE TRANSFORMADOR | E30: UN | F30: 15.81 | G30: 15.81
C31: EMPRESA | D31: NOME DA EMPRESA | F31: COTAÇÕES | H31: DATA COTAÇÃO
C32: E013 - ELETRO... | D32: ELETROTRANSOL | F32: 15.81 | G32: 15.81 | H32: 06/02/2019
C37: OBSERVAÇÕES:
B39: FONTE | C39: CÓDIGO | D39: DESCRIÇÃO | E39: UNIDADE | F39: MÉDIA | H39: ÍNDICE RETROAÇÃO
F40: DESONERADA | G40: ONERADA
A41: 12 | B41: COTAÇÃO | C41: COT 012_SEE | D41: HASTE ROSQUEADA "TIRANTE" 3/8" | E41: M | F41: 5.383333333 | G41: 5.383333333
C42: EMPRESA | D42: NOME DA EMPRESA | F42: COTAÇÕES | H42: DATA COTAÇÃO
C43: E013 - ELETRO... | D43: ELETROTRANSOL | F43: 5.383333333 | G43: 5.383333333 | H43: 06/02/2019
C48: OBSERVAÇÕES:
B50: FONTE | C50: CÓDIGO | D50: DESCRIÇÃO | E50: UNIDADE | F50: MÉDIA | H50: ÍNDICE RETROAÇÃO
F51: DESONERADA | G51: ONERADA
A52: 13 | B52: COTAÇÃO | C52: COT 013_SEE | D52: PORCA SEXTAVADA 3/8" | E52: UN | F52: 0.13 | G52: 0.13
C53: EMPRESA | D53: NOME DA EMPRESA | F53: COTAÇÕES | H53: DATA COTAÇÃO
C54: E013 - ELETRO... | D54: ELETROTRANSOL | F54: 0.12 | G54: 0.12 | H54: 06/02/2019
C55: E055 - SANETA... | D55: SANETAM COMERCIO DE TUBOS E CONEXOES LTDA. | F55: 0.13 | G55: 0.13 | H55: 06/02/2019
C56: E056 - AC COM... | D56: AC COMERCIO DE FERRAMENTAS E PRODUTOS PARA FIXACAO EIRE | F56: 0.14 | G56: 0.14 | H56: 06/02/2019
C59: OBSERVAÇÕES:
B61: FONTE | C61: CÓDIGO | D61: DESCRIÇÃO | E61: UNIDADE | F61: MÉDIA | H61: ÍNDICE RETROAÇÃO
F62: DESONERADA | G62: ONERADA
A63: 302 | B63: COTAÇÃO | C63: COT 302_SEE | D63: BOMBA THSI-18 10,0 CV TRIFÁSICA | E63: UN | F63: 5020.925 | G63: 5020.925
C64: EMPRESA | D64: NOME DA EMPRESA | F64: COTAÇÕES | H64: DATA COTAÇÃO
C65: E034 - VALK T... | D65: VALK TUBOS | F65: 5560 | G65: 5560 | H65: 16/08/2019
C66: E085 - CIA DA... | D66: CIA DAS BOMBAS | F66: 3850 | G66: 3850 | H66: 16/08/2019
C67: E080 - IMPACT... | D67: IMPACTO MOTO BOMBAS | F67: 5130 | G67: 5130 | H67: 17/08/2019
C68: E081 - CASA I... | D68: CASA IRACEMA | F68: 5543.7 | G68: 5543.7 | H68: 16/08/2019
C70: OBSERVAÇÕES:
B72: FONTE | C72: CÓDIGO | D72: DESCRIÇÃO | E72: UNIDADE | F72: MÉDIA | H72: ÍNDICE RETROAÇÃO
F73: DESONERADA | G73: ONERADA
A74: 17 | B74: COTAÇÃO | C74: COT 017_SEE | D74: REGISTRO DE GAVETA COM HASTE ASCENDENTE DE BRONZE 2 1/2" | E74: UN | F74: 231.6666667 | G74: 231.6666667
C75: EMPRESA | D75: NOME DA EMPRESA | F75: COTAÇÕES | H75: DATA COTAÇÃO
C76: E034 - VALK T... | D76: VALK TUBOS | F76: 220 | G76: 220
C77: E035 - ACIONA... | D77: ACIONAR SERVIÇOS E EQUIPAMENTOS CONTRA INCÊNDIO | F77: 250 | G77: 250
C78: E038 - CENTER... | D78: CENTER FIRE | F78: 225 | G78: 225
C81: OBSERVAÇÕES:
B83: FONTE | C83: CÓDIGO | D83: DESCRIÇÃO | E83: UNIDADE | F83: MÉDIA | H83: ÍNDICE RETROAÇÃO
F84: DESONERADA | G84: ONERADA
A85: 286 | B85: COTAÇÃO | C85: COT 286_SEE | D85: BUJÃO DE REBORDO 2.1/2" | E85: UN | F85: 15 | G85: 15
C86: EMPRESA | D86: NOME DA EMPRESA | F86: COTAÇÕES | H86: DATA COTAÇÃO
C87: E076 - GOIÂNI... | D87: GOIÂNIA TUBOS | F87: 15 | G87: 15 | H87: 12/04/2019
C92: OBSERVAÇÕES:
B94: FONTE | C94: CÓDIGO | D94: DESCRIÇÃO | E94: UNIDADE | F94: MÉDIA | H94: ÍNDICE RETROAÇÃO
F95: DESONERADA | G95: ONERADA
A96: 88 | B96: COTAÇÃO | C96: COT 088_SEE | D96: BOTOEIRA BOMBA DE INCÊNDIO C/ MARTELO CONVENCIONAL/ ANALÓGICA | E96: UN | F96: 63.5 | G96: 63.5
C97: EMPRESA | D97: NOME DA EMPRESA | F97: COTAÇÕES | H97: DATA COTAÇÃO
C98: E034 - VALK T... | D98: VALK TUBOS | F98: 58 | G98: 58
C99: E035 - ACIONA... | D99: ACIONAR SERVIÇOS E EQUIPAMENTOS CONTRA INCÊNDIO | F99: 67.5 | G99: 67.5
C100: E038 - CENTER... | D100: CENTER FIRE | F100: 65 | G100: 65
C103: OBSERVAÇÕES:
B105: FONTE | C105: CÓDIGO | D105: DESCRIÇÃO | E105: UNIDADE | F105: MÉDIA | H105: ÍNDICE RETROAÇÃO
F106: DESONERADA | G106: ONERADA
A107: 90 | B107: COTAÇÃO | C107: COT 090_SEE | D107: ACIONADOR MANUAL DE ALARME | E107: UN | F107: 83.33333333 | G107: 83.33333333
C108: EMPRESA | D108: NOME DA EMPRESA | F108: COTAÇÕES | H108: DATA COTAÇÃO
C109: E034 - VALK T... | D109: VALK TUBOS | F109: 120 | G109: 120
C110: E035 - ACIONA... | D110: ACIONAR SERVIÇOS E EQUIPAMENTOS CONTRA INCÊNDIO | F110: 65 | G110: 65
C111: E038 - CENTER... | D111: CENTER FIRE | F111: 65 | G111: 65
C114: OBSERVAÇÕES:
B116: FONTE | C116: CÓDIGO | D116: DESCRIÇÃO | E116: UNIDADE | F116: MÉDIA | H116: ÍNDICE RETROAÇÃO
F117: DESONERADA | G117: ONERADA
A118: 92 | B118: COTAÇÃO | C118: COT 092_SEE | D118: CENTRAL DE DETECÇÃO E ALARME DE 40 SETORES COM BATERIA (PREÇO MÉDIO) | E118: UN | F118: 963.3333333 | G118: 963.3333333
C119: EMPRESA | D119: NOME DA EMPRESA | F119: COTAÇÕES | H119: DATA COTAÇÃO
C120: E034 - VALK T... | D120: VALK TUBOS | F120: 840 | G120: 840
C121: E035 - ACIONA... | D121: ACIONAR SERVIÇOS E EQUIPAMENTOS CONTRA INCÊNDIO | F121: 980 | G121: 980
C122: E038 - CENTER... | D122: CENTER FIRE | F122: 1070 | G122: 1070
C125: OBSERVAÇÕES:
B127: FONTE | C127: CÓDIGO | D127: DESCRIÇÃO | E127: UNIDADE | F127: MÉDIA | H127: ÍNDICE RETROAÇÃO
F128: DESONERADA | G128: ONERADA
A129: 103 | B129: COTAÇÃO | C129: COT 103_SEE | D129: NIPLE DE REDUÇÃO 1/2" X 1/4" BSP | E129: UN | F129: 6.053333333 | G129: 6.053333333
C130: EMPRESA | D130: NOME DA EMPRESA | F130: COTAÇÕES | H130: DATA COTAÇÃO
C131: E070 - FOCO R... | D131: FOCO REPRESENTAÇÃO E CONSULTORIA LTDA-ME | F131: 4.46 | G131: 4.46 | H131: 12/02/2019
C132: E071 - CASA D... | D132: CASA DAS PEÇAS COM E INDUSTRIA DE FOGOES LTDA | F132: 3.9 | G132: 3.9 | H132: 11/02/2019
C133: E072 - AMIG I... | D133: AMIG INSTALAÇÃO DE REDE DE GÁS E INCÊNDIO | F133: 9.8 | G133: 9.8 | H133: 08/02/2019
C136: OBSERVAÇÕES:
B138: FONTE | C138: CÓDIGO | D138: DESCRIÇÃO | E138: UNIDADE | F138: MÉDIA | H138: ÍNDICE RETROAÇÃO
F139: DESONERADA | G139: ONERADA
A140: 104 | B140: COTAÇÃO | C140: COT 104_SEE | D140: NIPLE DE REDUÇÃO 3/4" X 1/2" BSP | E140: UN | F140: 9.71 | G140: 9.71
C141: EMPRESA | D141: NOME DA EMPRESA | F141: COTAÇÕES | H141: DATA COTAÇÃO
C142: E070 - FOCO R... | D142: FOCO REPRESENTAÇÃO E CONSULTORIA LTDA-ME | F142: 10.93 | G142: 10.93 | H142: 12/02/2019
C143: E071 - CASA D... | D143: CASA DAS PEÇAS COM E INDUSTRIA DE FOGOES LTDA | F143: 5.5 | G143: 5.5 | H143: 11/02/2019
C144: E072 - AMIG I... | D144: AMIG INSTALAÇÃO DE REDE DE GÁS E INCÊNDIO | F144: 12.7 | G144: 12.7 | H144: 08/02/2019
C147: OBSERVAÇÕES:
B149: FONTE | C149: CÓDIGO | D149: DESCRIÇÃO | E149: UNIDADE | F149: MÉDIA | H149: ÍNDICE RETROAÇÃO
F150: DESONERADA | G150: ONERADA
A151: 281 | B151: COTAÇÃO | C151: COT 281_SEE | D151: VÁLVULA UGV 3/4" (S) LATÃO | E151: UN | F151: 15.83666667 | G151: 15.83666667
C152: EMPRESA | D152: NOME DA EMPRESA | F152: COTAÇÕES | H152: DATA COTAÇÃO
C153: E070 - FOCO R... | D153: FOCO REPRESENTAÇÃO E CONSULTORIA LTDA-ME | F153: 12.51 | G153: 12.51 | H153: 12/02/2019
C154: E071 - CASA D... | D154: CASA DAS PEÇAS COM E INDUSTRIA DE FOGOES LTDA | F154: 17.5 | G154: 17.5 | H154: 11/02/2019
C155: E072 - AMIG I... | D155: AMIG INSTALAÇÃO DE REDE DE GÁS E INCÊNDIO | F155: 17.5 | G155: 17.5 | H155: 08/02/2019
C158: OBSERVAÇÕES:
B160: FONTE | C160: CÓDIGO | D160: DESCRIÇÃO | E160: UNIDADE | F160: MÉDIA | H160: ÍNDICE RETROAÇÃO
F161: DESONERADA | G161: ONERADA
A162: 282 | B162: COTAÇÃO | C162: COT 282_SEE | D162: VÁLVULA UGV 1/2" (S) LATÃO | E162: UN | F162: 15.16666667 | G162: 15.16666667
C163: EMPRESA | D163: NOME DA EMPRESA | F163: COTAÇÕES | H163: DATA COTAÇÃO
C164: E070 - FOCO R... | D164: FOCO REPRESENTAÇÃO E CONSULTORIA LTDA-ME | F164: 11.2 | G164: 11.2 | H164: 12/02/2019
C165: E071 - CASA D... | D165: CASA DAS PEÇAS COM E INDUSTRIA DE FOGOES LTDA | F165: 17.5 | G165: 17.5 | H165: 11/02/2019
C166: E072 - AMIG I... | D166: AMIG INSTALAÇÃO DE REDE DE GÁS E INCÊNDIO | F166: 16.8 | G166: 16.8 | H166: 08/02/2019
C169: OBSERVAÇÕES:
B171: FONTE | C171: CÓDIGO | D171: DESCRIÇÃO | E171: UNIDADE | F171: MÉDIA | H171: ÍNDICE RETROAÇÃO
F172: DESONERADA | G172: ONERADA
A173: 102 | B173: COTAÇÃO | C173: COT 102_SEE | D173: REGULADOR DE 2º ESTÁGIO 5KG/H | E173: UN | F173: 59.83333333 | G173: 59.83333333
C174: EMPRESA | D174: NOME DA EMPRESA | F174: COTAÇÕES | H174: DATA COTAÇÃO
C175: E070 - FOCO R... | D175: FOCO REPRESENTAÇÃO E CONSULTORIA LTDA-ME | F175: 38.9 | G175: 38.9 | H175: 12/02/2019
C176: E071 - CASA D... | D176: CASA DAS PEÇAS COM E INDUSTRIA DE FOGOES LTDA | F176: 55.6 | G176: 55.6 | H176: 11/02/2019
C177: E072 - AMIG I... | D177: AMIG INSTALAÇÃO DE REDE DE GÁS E INCÊNDIO | F177: 85 | G177: 85 | H177: 08/02/2019
C180: OBSERVAÇÕES: | D180: AMIG enviou cotação de regulador de 2º estágio de 12kg/h.
B182: FONTE | C182: CÓDIGO | D182: DESCRIÇÃO | E182: UNIDADE | F182: MÉDIA | H182: ÍNDICE RETROAÇÃO
F183: DESONERADA | G183: ONERADA
A184: 101 | B184: COTAÇÃO | C184: COT 101_SEE | D184: REGULADOR DE 1º ESTÁGIO 60KG/H MODELO AP-40 COM MANÔMETRO | E184: UN | F184: 205.5766667 | G184: 205.5766667
C185: EMPRESA | D185: NOME DA EMPRESA | F185: COTAÇÕES | H185: DATA COTAÇÃO
C186: E070 - FOCO R... | D186: FOCO REPRESENTAÇÃO E CONSULTORIA LTDA-ME | F186: 148.73 | G186: 148.73 | H186: 12/02/2019
C187: E071 - CASA D... | D187: CASA DAS PEÇAS COM E INDUSTRIA DE FOGOES LTDA | F187: 198 | G187: 198 | H187: 11/02/2019
C188: E072 - AMIG I... | D188: AMIG INSTALAÇÃO DE REDE DE GÁS E INCÊNDIO | F188: 270 | G188: 270 | H188: 08/02/2019
C191: OBSERVAÇÕES:
